{"text_format":"1","workbook":"xlsx","n_sheets":6,"sheets":["Identificação","Plan_9-Proced Oftalmológicos","Descrição dos casos","Não alterar 1","NAO alterar 2","Estatistica"],"not_rendered":{"charts":0,"images":2,"macros":0,"external_links":1,"defined_names":13,"comments":0,"pivot_tables":0},"unopened":[],"bounds":{"document_bytes":16777216,"sheet_cells":100000,"rows_first":2000,"rows_last":500,"rows_between":2000,"halvings":0,"cell_chars":16384,"cell_head_chars":4096},"cells_cut":0,"cells_raw":0,"read":"whole","date_system":"1900"}

{"sheet":"Identificação","index":0,"n_rows":32,"n_cols":9,"rows_kept":32,"cut":false,"hidden":false,"merged":[[28,2,28,13],[29,2,29,13],[30,5,30,13],[31,3,31,13],[22,1,22,7],[25,2,25,7],[13,6,13,13],[14,4,14,13],[7,0,7,13],[0,4,0,14],[1,4,1,14],[3,4,3,14],[4,4,4,14],[6,0,6,14],[12,3,12,11],[5,4,5,14],[2,4,2,14],[8,11,8,12],[10,3,10,6],[9,5,9,13],[11,3,11,13]]}
[null,null,null,null,"SECRETARIA DE ESTADO DA SAÚDE DE SÃO PAULO"]
[null,null,null,null,"COORDENADORIA DE CONTROLE DE DOENÇAS - CCD"]
[null,null,null,null,"CENTRO DE VIGILÂNCIA EPIDEMIOLÓGICA “PROF.  ALEXANDRE VRANJAC” – CVE"]
[null,null,null,null,"DIVISÃO DE INFECÇÃO HOSPITALAR"]
[null,null,null,null,"e-mail: dvhosp@saude.sp.gov.br"]
[null,null,null,null,"Telefone: (11) 3066-8759 e 3066-8261"]
[]
["PLANILHA  DE IDENTIFICAÇÃO DO SERVIÇO DE OFTALMOLOGIA"]
["ANO DA NOTIFICAÇÃO:",null,null,null,null,null,null,null,2021]
["Nome da Instituição:"]
["Nº CNES:"]
["Município:"]
["GVE:"]
["Responsável VE Municipal:"]
["Responsável GVE:"]
["NATUREZA DA INSTITUIÇÃO:",null,null,null,null,null,null,"ESFERA DE GOVERNO, SE PÚBLICO:"]
[null,null,"PÚBLICO",null,null,null,null,null,"FEDERAL"]
[null,null,"PRIVADO",null,null,null,null,null,"ESTADUAL"]
[null,null,"FILANTRÓPICO",null,null,null,null,null,"MUNICIPAL"]
["A instituição realiza busca ativa de infecções cirúrgicas pós-alta? (X)  "]
[null,"Sim ",null,null,null,null," Não  "]
["Em caso afirmativo, informar o(s) método(s):"]
[null,"contato telefônico:"]
[null,"revisão de prontários de cirurgias indicativas:"]
[null,"ambulatório com acompanhamento:"]
[null,"outro:"]
[]
["RESPONSÁVEL PELAS INFORMAÇÕES DA INSTITUIÇÃO:"]
["Nome:"]
["Cargo:"]
["E-mail institucional:"]
["Telefone:"]

{"sheet":"Plan_9-Proced Oftalmológicos","index":1,"n_rows":71,"n_cols":4,"rows_kept":71,"cut":false,"hidden":false,"merged":[[67,0,67,3],[0,0,0,3]]}
["PLANILHA 9 - PROCEDIMENTOS OFTALMOLÓGICOS INVASIVOS"]
["Instruções:"]
["Preencher um quadro para cada mês do ano e enviar os dados mensalmente para VE Municipal"]
["Preencher todos os campos (Colocar o número ZERO quando não tiver sido realizado nenhum procedimento)"]
["Preencher os casos de endoftalmite detectados após cirurgias realizadas na própria instiuição. "]
["Os casos externos serão descritos na ABA \"Descrição dos casos\""]
[]
["Janeiro"]
["Procedimento oftalmológico invasivo ","Número de procedimentos realizados","Número de endoftalmites","Taxa de incidencia (%)"]
["Cirurgia de Catarata",null,null,{"$f":"C10/B10*100","v":{"$error":"#DIV/0!"}}]
["Injeção Intravítrea",null,null,{"$f":"C11/B11*100","v":{"$error":"#DIV/0!"}}]
[]
["Fevereiro"]
["Procedimento oftalmológico invasivo ","Número de procedimentos realizados","Número de endoftalmites","Taxa de incidencia (%)"]
["Cirurgia de Catarata",null,null,{"$f":"C15/B15*100","v":{"$error":"#DIV/0!"}}]
["Injeção Intravítrea",null,null,{"$f":"C16/B16*100","v":{"$error":"#DIV/0!"}}]
[]
["Março"]
["Procedimento oftalmológico invasivo ","Número de procedimentos realizados","Número de endoftalmites","Taxa de incidencia (%)"]
["Cirurgia de Catarata",null,null,{"$f":"C20/B20*100","v":{"$error":"#DIV/0!"}}]
["Injeção Intravítrea",null,null,{"$f":"C21/B21*100","v":{"$error":"#DIV/0!"}}]
[]
["Abril"]
["Procedimento oftalmológico invasivo ","Número de procedimentos realizados","Número de endoftalmites","Taxa de incidencia (%)"]
["Cirurgia de Catarata",null,null,{"$f":"C25/B25*100","v":{"$error":"#DIV/0!"}}]
["Injeção Intravítreo",null,null,{"$f":"C26/B26*100","v":{"$error":"#DIV/0!"}}]
[]
["Maio"]
["Procedimento oftalmológico invasivo ","Número de procedimentos realizados","Número de endoftalmites","Taxa de incidencia (%)"]
["Cirurgia de Catarata",null,null,{"$f":"C30/B30*100","v":{"$error":"#DIV/0!"}}]
["Injeção Intravítrea",null,null,{"$f":"C31/B31*100","v":{"$error":"#DIV/0!"}}]
[]
["Junho"]
["Procedimento oftalmológico invasivo ","Número de procedimentos realizados","Número de endoftalmites","Taxa de incidencia (%)"]
["Cirurgia de Catarata",null,null,{"$f":"C35/B35*100","v":{"$error":"#DIV/0!"}}]
["Injeção Intravítrea",null,null,{"$f":"C36/B36*100","v":{"$error":"#DIV/0!"}}]
[]
["Julho"]
["Procedimento oftalmológico invasivo ","Número de procedimentos realizados","Número de endoftalmites","Taxa de incidencia (%)"]
["Cirurgia de Catarata",null,null,{"$f":"C40/B40*100","v":{"$error":"#DIV/0!"}}]
["Injeção Intravítrea",null,null,{"$f":"C41/B41*100","v":{"$error":"#DIV/0!"}}]
[]
["Agosto"]
["Procedimento oftalmológico invasivo ","Número de procedimentos realizados","Número de endoftalmites","Taxa de incidencia (%)"]
["Cirurgia de Catarata",null,null,{"$f":"C45/B45*100","v":{"$error":"#DIV/0!"}}]
["Injeção Intravítrea",null,null,{"$f":"C46/B46*100","v":{"$error":"#DIV/0!"}}]
[]
["Setembro"]
["Procedimento oftalmológico invasivo ","Número de procedimentos realizados","Número de endoftalmites","Taxa de incidencia (%)"]
["Cirurgia de Catarata",null,null,{"$f":"C50/B50*100","v":{"$error":"#DIV/0!"}}]
["Injeção Intravítrea",null,null,{"$f":"C51/B51*100","v":{"$error":"#DIV/0!"}}]
[]
["Outubro"]
["Procedimento oftalmológico invasivo ","Número de procedimentos realizados","Número de endoftalmites","Taxa de incidencia (%)"]
["Cirurgia de Catarata",null,null,{"$f":"C55/B55*100","v":{"$error":"#DIV/0!"}}]
["Injeção Intravítrea",null,null,{"$f":"C56/B56*100","v":{"$error":"#DIV/0!"}}]
[]
["Novembro"]
["Procedimento oftalmológico invasivo ","Número de procedimentos realizados","Número de endoftalmites","Taxa de incidencia (%)"]
["Cirurgia de Catarata",null,null,{"$f":"C60/B60*100","v":{"$error":"#DIV/0!"}}]
["Injeção Intravítrea",null,null,{"$f":"C61/B61*100","v":{"$error":"#DIV/0!"}}]
[]
["Dezembro"]
["Procedimento oftalmológico invasivo ","Número de procedimentos realizados","Número de endoftalmites","Taxa de incidencia (%)"]
["Cirurgia de Catarata",null,null,{"$f":"C65/B65*100","v":{"$error":"#DIV/0!"}}]
["Injeção Intravítrea",null,null,{"$f":"C66/B66*100","v":{"$error":"#DIV/0!"}}]
[]
["TOTAL - NÃO EDITAR"]
["Procedimento oftalmológico invasivo ","Número de procedimentos realizados","Número de endoftalmites","Taxa de incidencia (%)"]
["Cirurgia de Catarata",{"$f":"B10+B15+B20+B25+B30+B35+B40+B45+B50+B55+B60+B65","v":0},{"$f":"C10+C15+C20+C25+C30+C35+C40+C45+C50+C55+C60+C65","v":0},{"$f":"C70/B70*100","v":{"$error":"#DIV/0!"}}]
["Injeção Intravítrea",{"$f":"B11+B16+B21+B26+B31+B36+B41+B46+B51+B56+B61+B66","v":0},{"$f":"C11+C16+C21+C26+C31+C36+C41+C46+C51+C56+C61+C66","v":0},{"$f":"C71/B71*100","v":{"$error":"#DIV/0!"}}]

{"sheet":"Descrição dos casos","index":2,"n_rows":181,"n_cols":10,"rows_kept":181,"cut":false,"hidden":false,"merged":[]}
["Caso","Cirurgia primária","Data da cirurgia primária","Data do diagnóstico","Nº de dias para diagnóstico","Cirurgia realizada na instituição?","Caso \"Não\", descreva o nome da instituição","Coletado amostra de vítreo para cultura?","Identificado o microrganismo?","Qual o microrganismo identificado?                                         Obs.: Veja as opções na lista"]
[1,null,null,null,{"$f":"D2-C2","v":0}]
[2,null,null,null,{"$f":"D3-C3","v":0}]
[3,null,null,null,0]
[4,null,null,null,0]
[5,null,null,null,0]
[6,null,null,null,0]
[7,null,null,null,0]
[8,null,null,null,0]
[9,null,null,null,0]
[10,null,null,null,0]
[11,null,null,null,0]
[12,null,null,null,0]
[13,null,null,null,0]
[14,null,null,null,0]
[15,null,null,null,0]
[16,null,null,null,0]
[17,null,null,null,0]
[18,null,null,null,0]
[19,null,null,null,0]
[20,null,null,null,0]
[21,null,null,null,0]
[22,null,null,null,0]
[23,null,null,null,0]
[24,null,null,null,0]
[25,null,null,null,0]
[26,null,null,null,0]
[27,null,null,null,0]
[28,null,null,null,0]
[29,null,null,null,0]
[30,null,null,null,0]
[31,null,null,null,0]
[32,null,null,null,0]
[33,null,null,null,0]
[34,null,null,null,0]
[35,null,null,null,0]
[36,null,null,null,0]
[37,null,null,null,0]
[38,null,null,null,0]
[39,null,null,null,0]
[40,null,null,null,0]
[41,null,null,null,0]
[42,null,null,null,0]
[43,null,null,null,0]
[44,null,null,null,0]
[45,null,null,null,0]
[46,null,null,null,0]
[47,null,null,null,0]
[48,null,null,null,0]
[49,null,null,null,0]
[50,null,null,null,0]
[51,null,null,null,0]
[52,null,null,null,0]
[53,null,null,null,0]
[54,null,null,null,0]
[55,null,null,null,0]
[56,null,null,null,0]
[57,null,null,null,0]
[58,null,null,null,0]
[59,null,null,null,0]
[60,null,null,null,0]
[61,null,null,null,0]
[62,null,null,null,0]
[63,null,null,null,0]
[64,null,null,null,0]
[65,null,null,null,0]
[66,null,null,null,{"$f":"D67-C67","v":0}]
[67,null,null,null,0]
[68,null,null,null,0]
[69,null,null,null,0]
[70,null,null,null,0]
[71,null,null,null,0]
[72,null,null,null,0]
[73,null,null,null,0]
[74,null,null,null,0]
[75,null,null,null,0]
[76,null,null,null,0]
[77,null,null,null,0]
[78,null,null,null,0]
[79,null,null,null,0]
[80,null,null,null,0]
[81,null,null,null,0]
[82,null,null,null,0]
[83,null,null,null,0]
[84,null,null,null,0]
[85,null,null,null,0]
[86,null,null,null,0]
[87,null,null,null,0]
[88,null,null,null,0]
[89,null,null,null,0]
[90,null,null,null,0]
[91,null,null,null,0]
[92,null,null,null,0]
[93,null,null,null,0]
[94,null,null,null,0]
[95,null,null,null,0]
[96,null,null,null,0]
[97,null,null,null,0]
[98,null,null,null,0]
[99,null,null,null,0]
[100,null,null,null,0]
[101,null,null,null,0]
[102,null,null,null,0]
[103,null,null,null,0]
[104,null,null,null,0]
[105,null,null,null,0]
[106,null,null,null,0]
[107,null,null,null,0]
[108,null,null,null,0]
[109,null,null,null,0]
[110,null,null,null,0]
[111,null,null,null,0]
[112,null,null,null,0]
[113,null,null,null,0]
[114,null,null,null,0]
[115,null,null,null,0]
[116,null,null,null,0]
[117,null,null,null,0]
[118,null,null,null,0]
[119,null,null,null,0]
[120,null,null,null,0]
[121,null,null,null,0]
[122,null,null,null,0]
[123,null,null,null,0]
[124,null,null,null,0]
[125,null,null,null,0]
[126,null,null,null,0]
[127,null,null,null,0]
[128,null,null,null,0]
[129,null,null,null,0]
[130,null,null,null,{"$f":"D131-C131","v":0}]
[131,null,null,null,0]
[132,null,null,null,0]
[133,null,null,null,0]
[134,null,null,null,0]
[135,null,null,null,0]
[136,null,null,null,0]
[137,null,null,null,0]
[138,null,null,null,0]
[139,null,null,null,0]
[140,null,null,null,0]
[141,null,null,null,0]
[142,null,null,null,0]
[143,null,null,null,0]
[144,null,null,null,0]
[145,null,null,null,0]
[146,null,null,null,0]
[147,null,null,null,0]
[148,null,null,null,0]
[149,null,null,null,0]
[150,null,null,null,0]
[151,null,null,null,0]
[152,null,null,null,0]
[153,null,null,null,0]
[154,null,null,null,0]
[155,null,null,null,0]
[156,null,null,null,0]
[157,null,null,null,0]
[158,null,null,null,0]
[159,null,null,null,0]
[160,null,null,null,0]
[161,null,null,null,0]
[162,null,null,null,0]
[163,null,null,null,0]
[164,null,null,null,0]
[165,null,null,null,0]
[166,null,null,null,0]
[167,null,null,null,0]
[168,null,null,null,0]
[169,null,null,null,0]
[170,null,null,null,0]
[171,null,null,null,0]
[172,null,null,null,0]
[173,null,null,null,0]
[174,null,null,null,0]
[175,null,null,null,0]
[176,null,null,null,0]
[177,null,null,null,0]
[178,null,null,null,0]
[179,null,null,null,0]
[180,null,null,null,0]

{"sheet":"Não alterar 1","index":3,"n_rows":7599,"n_cols":10,"rows_kept":7599,"cut":false,"hidden":true,"merged":[]}
[null,"Catarata",null,null,null,null,0]
[null,"Injeção Intravítrea",null,0,"Sem crescimento",null,1]
[null,null,null,null,"Acinetobacter spp.",null,2,null,null,"Atenção: Esta planilha não pode ser alterada"]
[null,null,null,null,"Actinomyces spp.",null,3]
[null,null,null,null,"Alcaligenes faecalis",null,4]
[null,null,null,null,"Aspergillus spp.",null,5]
[null,null,null,null,"Bacillus spp.",null,6]
[null,null,null,null,"Candida spp",null,7]
[null,null,null,null,"Citrobacter spp.",null,8]
[null,null,null,null,"Corynebacterium spp.",null,9]
[null,null,null,null,"Enterobacter spp.",null,10]
[null,null,null,null,"Enterococcus spp.",null,11]
[null,null,null,null,"Escherichia coli",null,12]
[null,null,null,null,"Flavobacterium spp.",null,13]
[null,null,null,null,"Gemella morbillorum",null,14]
[null,null,null,null,"Haemophilus spp.",null,15]
[null,null,null,null,"Klebsiella species",null,16]
[null,null,null,null,"Micrococcus spp.",null,17]
[null,null,null,null,"Moraxella catarrhalis",null,18]
[null,null,null,null,"Morganella morgani",null,19]
[null,null,null,null,"Nocardia spp",null,20]
[null,null,null,null,"Paenibacillus glucanolyticus",null,21]
[null,null,null,null,"Phialemonium  spp.",null,22]
[null,null,null,null,"Propionibacterium spp",null,23]
[null,null,null,null,"Proteus spp.",null,24]
[null,null,null,null,"Pseudomonas aeruginosa",null,25]
[null,null,null,null,"Pseudomonas spp.",null,26]
[null,null,null,null,"Serratia marcescens",null,27]
[null,null,null,null,"Sphingomonas paucimobilis",null,28]
[null,null,null,null,"Staphylococcus aureus",null,29]
[null,null,null,null,"Staphylococcus coagulase-negativo",null,30]
[null,null,null,null,"Staphylococcus epidermidis",null,31]
[null,null,null,null,"Staphylococcus saccharolyticus",null,32]
[null,null,null,null,"Staphylococcus spp.",null,33]
[null,null,null,null,"Stenotrophomonas maltophilia",null,34]
[null,null,null,null,"Streptococcus pneumoniae",null,35]
[null,null,null,null,"Streptococcus spp.",null,36]
[null,null,null,null,"Streptococcus viridans",null,37]
[null,null,null,null,"Weeksella virosa",null,38]
[null,null,null,null,null,null,39]
[null,null,null,null,null,null,40]
[null,null,null,null,null,null,41]
[null,null,null,null,null,null,42]
[null,null,null,null,null,null,43]
[null,null,null,null,null,null,44]
[null,null,null,null,null,null,45]
[null,null,null,null,null,null,46]
[null,null,null,null,null,null,47]
[null,null,null,null,null,null,48]
[null,null,null,null,null,null,49]
[null,null,null,null,null,null,50]
[null,null,null,null,null,null,51]
[null,null,null,null,null,null,52]
[null,null,null,null,null,null,53]
[null,null,null,null,null,null,54]
[null,null,null,null,null,null,55]
[null,null,null,null,null,null,56]
[null,null,null,null,null,null,57]
[null,null,null,null,null,null,58]
[null,null,null,null,null,null,59]
[null,null,null,null,null,null,60]
[null,null,null,null,null,null,61]
[null,null,null,null,null,null,62]
[null,null,null,null,null,null,63]
[null,null,null,null,null,null,64]
[null,null,null,null,null,null,65]
[null,null,null,null,null,null,66]
[null,null,null,null,null,null,67]
[null,null,null,null,null,null,68]
[null,null,null,null,null,null,69]
[null,null,null,null,null,null,70]
[null,null,null,null,null,null,71]
[null,null,null,null,null,null,72]
[null,null,null,null,null,null,73]
[null,null,null,null,null,null,74]
[null,null,null,null,null,null,75]
[null,null,null,null,null,null,76]
[null,null,null,null,null,null,77]
[null,null,null,null,null,null,78]
[null,null,null,null,null,null,79]
[null,null,null,null,null,null,80]
[null,null,null,null,null,null,81]
[null,null,null,null,null,null,82]
[null,null,null,null,null,null,83]
[null,null,null,null,null,null,84]
[null,null,null,null,null,null,85]
[null,null,null,null,null,null,86]
[null,null,null,null,null,null,87]
[null,null,null,null,null,null,88]
[null,null,null,null,null,null,89]
[null,null,null,null,null,null,90]
[null,null,null,null,null,null,91]
[null,null,null,null,null,null,92]
[null,null,null,null,null,null,93]
[null,null,null,null,null,null,94]
[null,null,null,null,null,null,95]
[null,null,null,null,null,null,96]
[null,null,null,null,null,null,97]
[null,null,null,null,null,null,98]
[null,null,null,null,null,null,99]
[null,null,null,null,null,null,100]
[null,null,null,null,null,null,101]
[null,null,null,null,null,null,102]
[null,null,null,null,null,null,103]
[null,null,null,null,null,null,104]
[null,null,null,null,null,null,105]
[null,null,null,null,null,null,106]
[null,null,null,null,null,null,107]
[null,null,null,null,null,null,108]
[null,null,null,null,null,null,109]
[null,null,null,null,null,null,110]
[null,null,null,null,null,null,111]
[null,null,null,null,null,null,112]
[null,null,null,null,null,null,113]
[null,null,null,null,null,null,114]
[null,null,null,null,null,null,115]
[null,null,null,null,null,null,116]
[null,null,null,null,null,null,117]
[null,null,null,null,null,null,118]
[null,null,null,null,null,null,119]
[null,null,null,null,null,null,120]
[null,null,null,null,null,null,121]
[null,null,null,null,null,null,122]
[null,null,null,null,null,null,123]
[null,null,null,null,null,null,124]
[null,null,null,null,null,null,125]
[null,null,null,null,null,null,126]
[null,null,null,null,null,null,127]
[null,null,null,null,null,null,128]
[null,null,null,null,null,null,129]
[null,null,null,null,null,null,130]
[null,null,null,null,null,null,131]
[null,null,null,null,null,null,132]
[null,null,null,null,null,null,133]
[null,null,null,null,null,null,134]
[null,null,null,null,null,null,135]
[null,null,null,null,null,null,136]
[null,null,null,null,null,null,137]
[null,null,null,null,null,null,138]
[null,null,null,null,null,null,139]
[null,null,null,null,null,null,140]
[null,null,null,null,null,null,141]
[null,null,null,null,null,null,142]
[null,null,null,null,null,null,143]
[null,null,null,null,null,null,144]
[null,null,null,null,null,null,145]
[null,null,null,null,null,null,146]
[null,null,null,null,null,null,147]
[null,null,null,null,null,null,148]
[null,null,null,null,null,null,149]
[null,null,null,null,null,null,150]
[null,null,null,null,null,null,151]
[null,null,null,null,null,null,152]
[null,null,null,null,null,null,153]
[null,null,null,null,null,null,154]
[null,null,null,null,null,null,155]
[null,null,null,null,null,null,156]
[null,null,null,null,null,null,157]
[null,null,null,null,null,null,158]
[null,null,null,null,null,null,159]
[null,null,null,null,null,null,160]
[null,null,null,null,null,null,161]
[null,null,null,null,null,null,162]
[null,null,null,null,null,null,163]
[null,null,null,null,null,null,164]
[null,null,null,null,null,null,165]
[null,null,null,null,null,null,166]
[null,null,null,null,null,null,167]
[null,null,null,null,null,null,168]
[null,null,null,null,null,null,169]
[null,null,null,null,null,null,170]
[null,null,null,null,null,null,171]
[null,null,null,null,null,null,172]
[null,null,null,null,null,null,173]
[null,null,null,null,null,null,174]
[null,null,null,null,null,null,175]
[null,null,null,null,null,null,176]
[null,null,null,null,null,null,177]
[null,null,null,null,null,null,178]
[null,null,null,null,null,null,179]
[null,null,null,null,null,null,180]
[null,null,null,null,null,null,181]
[null,null,null,null,null,null,182]
[null,null,null,null,null,null,183]
[null,null,null,null,null,null,184]
[null,null,null,null,null,null,185]
[null,null,null,null,null,null,186]
[null,null,null,null,null,null,187]
[null,null,null,null,null,null,188]
[null,null,null,null,null,null,189]
[null,null,null,null,null,null,190]
[null,null,null,null,null,null,191]
[null,null,null,null,null,null,192]
[null,null,null,null,null,null,193]
[null,null,null,null,null,null,194]
[null,null,null,null,null,null,195]
[null,null,null,null,null,null,196]
[null,null,null,null,null,null,197]
[null,null,null,null,null,null,198]
[null,null,null,null,null,null,199]
[null,null,null,null,null,null,200]
[null,null,null,null,null,null,201]
[null,null,null,null,null,null,202]
[null,null,null,null,null,null,203]
[null,null,null,null,null,null,204]
[null,null,null,null,null,null,205]
[null,null,null,null,null,null,206]
[null,null,null,null,null,null,207]
[null,null,null,null,null,null,208]
[null,null,null,null,null,null,209]
[null,null,null,null,null,null,210]
[null,null,null,null,null,null,211]
[null,null,null,null,null,null,212]
[null,null,null,null,null,null,213]
[null,null,null,null,null,null,214]
[null,null,null,null,null,null,215]
[null,null,null,null,null,null,216]
[null,null,null,null,null,null,217]
[null,null,null,null,null,null,218]
[null,null,null,null,null,null,219]
[null,null,null,null,null,null,220]
[null,null,null,null,null,null,221]
[null,null,null,null,null,null,222]
[null,null,null,null,null,null,223]
[null,null,null,null,null,null,224]
[null,null,null,null,null,null,225]
[null,null,null,null,null,null,226]
[null,null,null,null,null,null,227]
[null,null,null,null,null,null,228]
[null,null,null,null,null,null,229]
[null,null,null,null,null,null,230]
[null,null,null,null,null,null,231]
[null,null,null,null,null,null,232]
[null,null,null,null,null,null,233]
[null,null,null,null,null,null,234]
[null,null,null,null,null,null,235]
[null,null,null,null,null,null,236]
[null,null,null,null,null,null,237]
[null,null,null,null,null,null,238]
[null,null,null,null,null,null,239]
[null,null,null,null,null,null,240]
[null,null,null,null,null,null,241]
[null,null,null,null,null,null,242]
[null,null,null,null,null,null,243]
[null,null,null,null,null,null,244]
[null,null,null,null,null,null,245]
[null,null,null,null,null,null,246]
[null,null,null,null,null,null,247]
[null,null,null,null,null,null,248]
[null,null,null,null,null,null,249]
[null,null,null,null,null,null,250]
[null,null,null,null,null,null,251]
[null,null,null,null,null,null,252]
[null,null,null,null,null,null,253]
[null,null,null,null,null,null,254]
[null,null,null,null,null,null,255]
[null,null,null,null,null,null,256]
[null,null,null,null,null,null,257]
[null,null,null,null,null,null,258]
[null,null,null,null,null,null,259]
[null,null,null,null,null,null,260]
[null,null,null,null,null,null,261]
[null,null,null,null,null,null,262]
[null,null,null,null,null,null,263]
[null,null,null,null,null,null,264]
[null,null,null,null,null,null,265]
[null,null,null,null,null,null,266]
[null,null,null,null,null,null,267]
[null,null,null,null,null,null,268]
[null,null,null,null,null,null,269]
[null,null,null,null,null,null,270]
[null,null,null,null,null,null,271]
[null,null,null,null,null,null,272]
[null,null,null,null,null,null,273]
[null,null,null,null,null,null,274]
[null,null,null,null,null,null,275]
[null,null,null,null,null,null,276]
[null,null,null,null,null,null,277]
[null,null,null,null,null,null,278]
[null,null,null,null,null,null,279]
[null,null,null,null,null,null,280]
[null,null,null,null,null,null,281]
[null,null,null,null,null,null,282]
[null,null,null,null,null,null,283]
[null,null,null,null,null,null,284]
[null,null,null,null,null,null,285]
[null,null,null,null,null,null,286]
[null,null,null,null,null,null,287]
[null,null,null,null,null,null,288]
[null,null,null,null,null,null,289]
[null,null,null,null,null,null,290]
[null,null,null,null,null,null,291]
[null,null,null,null,null,null,292]
[null,null,null,null,null,null,293]
[null,null,null,null,null,null,294]
[null,null,null,null,null,null,295]
[null,null,null,null,null,null,296]
[null,null,null,null,null,null,297]
[null,null,null,null,null,null,298]
[null,null,null,null,null,null,299]
[null,null,null,null,null,null,300]
[null,null,null,null,null,null,301]
[null,null,null,null,null,null,302]
[null,null,null,null,null,null,303]
[null,null,null,null,null,null,304]
[null,null,null,null,null,null,305]
[null,null,null,null,null,null,306]
[null,null,null,null,null,null,307]
[null,null,null,null,null,null,308]
[null,null,null,null,null,null,309]
[null,null,null,null,null,null,310]
[null,null,null,null,null,null,311]
[null,null,null,null,null,null,312]
[null,null,null,null,null,null,313]
[null,null,null,null,null,null,314]
[null,null,null,null,null,null,315]
[null,null,null,null,null,null,316]
[null,null,null,null,null,null,317]
[null,null,null,null,null,null,318]
[null,null,null,null,null,null,319]
[null,null,null,null,null,null,320]
[null,null,null,null,null,null,321]
[null,null,null,null,null,null,322]
[null,null,null,null,null,null,323]
[null,null,null,null,null,null,324]
[null,null,null,null,null,null,325]
[null,null,null,null,null,null,326]
[null,null,null,null,null,null,327]
[null,null,null,null,null,null,328]
[null,null,null,null,null,null,329]
[null,null,null,null,null,null,330]
[null,null,null,null,null,null,331]
[null,null,null,null,null,null,332]
[null,null,null,null,null,null,333]
[null,null,null,null,null,null,334]
[null,null,null,null,null,null,335]
[null,null,null,null,null,null,336]
[null,null,null,null,null,null,337]
[null,null,null,null,null,null,338]
[null,null,null,null,null,null,339]
[null,null,null,null,null,null,340]
[null,null,null,null,null,null,341]
[null,null,null,null,null,null,342]
[null,null,null,null,null,null,343]
[null,null,null,null,null,null,344]
[null,null,null,null,null,null,345]
[null,null,null,null,null,null,346]
[null,null,null,null,null,null,347]
[null,null,null,null,null,null,348]
[null,null,null,null,null,null,349]
[null,null,null,null,null,null,350]
[null,null,null,null,null,null,351]
[null,null,null,null,null,null,352]
[null,null,null,null,null,null,353]
[null,null,null,null,null,null,354]
[null,null,null,null,null,null,355]
[null,null,null,null,null,null,356]
[null,null,null,null,null,null,357]
[null,null,null,null,null,null,358]
[null,null,null,null,null,null,359]
[null,null,null,null,null,null,360]
[null,null,null,null,null,null,361]
[null,null,null,null,null,null,362]
[null,null,null,null,null,null,363]
[null,null,null,null,null,null,364]
[null,null,null,null,null,null,365]
[null,null,null,null,null,null,366]
[null,null,null,null,null,null,367]
[null,null,null,null,null,null,368]
[null,null,null,null,null,null,369]
[null,null,null,null,null,null,370]
[null,null,null,null,null,null,371]
[null,null,null,null,null,null,372]
[null,null,null,null,null,null,373]
[null,null,null,null,null,null,374]
[null,null,null,null,null,null,375]
[null,null,null,null,null,null,376]
[null,null,null,null,null,null,377]
[null,null,null,null,null,null,378]
[null,null,null,null,null,null,379]
[null,null,null,null,null,null,380]
[null,null,null,null,null,null,381]
[null,null,null,null,null,null,382]
[null,null,null,null,null,null,383]
[null,null,null,null,null,null,384]
[null,null,null,null,null,null,385]
[null,null,null,null,null,null,386]
[null,null,null,null,null,null,387]
[null,null,null,null,null,null,388]
[null,null,null,null,null,null,389]
[null,null,null,null,null,null,390]
[null,null,null,null,null,null,391]
[null,null,null,null,null,null,392]
[null,null,null,null,null,null,393]
[null,null,null,null,null,null,394]
[null,null,null,null,null,null,395]
[null,null,null,null,null,null,396]
[null,null,null,null,null,null,397]
[null,null,null,null,null,null,398]
[null,null,null,null,null,null,399]
[null,null,null,null,null,null,400]
[null,null,null,null,null,null,401]
[null,null,null,null,null,null,402]
[null,null,null,null,null,null,403]
[null,null,null,null,null,null,404]
[null,null,null,null,null,null,405]
[null,null,null,null,null,null,406]
[null,null,null,null,null,null,407]
[null,null,null,null,null,null,408]
[null,null,null,null,null,null,409]
[null,null,null,null,null,null,410]
[null,null,null,null,null,null,411]
[null,null,null,null,null,null,412]
[null,null,null,null,null,null,413]
[null,null,null,null,null,null,414]
[null,null,null,null,null,null,415]
[null,null,null,null,null,null,416]
[null,null,null,null,null,null,417]
[null,null,null,null,null,null,418]
[null,null,null,null,null,null,419]
[null,null,null,null,null,null,420]
[null,null,null,null,null,null,421]
[null,null,null,null,null,null,422]
[null,null,null,null,null,null,423]
[null,null,null,null,null,null,424]
[null,null,null,null,null,null,425]
[null,null,null,null,null,null,426]
[null,null,null,null,null,null,427]
[null,null,null,null,null,null,428]
[null,null,null,null,null,null,429]
[null,null,null,null,null,null,430]
[null,null,null,null,null,null,431]
[null,null,null,null,null,null,432]
[null,null,null,null,null,null,433]
[null,null,null,null,null,null,434]
[null,null,null,null,null,null,435]
[null,null,null,null,null,null,436]
[null,null,null,null,null,null,437]
[null,null,null,null,null,null,438]
[null,null,null,null,null,null,439]
[null,null,null,null,null,null,440]
[null,null,null,null,null,null,441]
[null,null,null,null,null,null,442]
[null,null,null,null,null,null,443]
[null,null,null,null,null,null,444]
[null,null,null,null,null,null,445]
[null,null,null,null,null,null,446]
[null,null,null,null,null,null,447]
[null,null,null,null,null,null,448]
[null,null,null,null,null,null,449]
[null,null,null,null,null,null,450]
[null,null,null,null,null,null,451]
[null,null,null,null,null,null,452]
[null,null,null,null,null,null,453]
[null,null,null,null,null,null,454]
[null,null,null,null,null,null,455]
[null,null,null,null,null,null,456]
[null,null,null,null,null,null,457]
[null,null,null,null,null,null,458]
[null,null,null,null,null,null,459]
[null,null,null,null,null,null,460]
[null,null,null,null,null,null,461]
[null,null,null,null,null,null,462]
[null,null,null,null,null,null,463]
[null,null,null,null,null,null,464]
[null,null,null,null,null,null,465]
[null,null,null,null,null,null,466]
[null,null,null,null,null,null,467]
[null,null,null,null,null,null,468]
[null,null,null,null,null,null,469]
[null,null,null,null,null,null,470]
[null,null,null,null,null,null,471]
[null,null,null,null,null,null,472]
[null,null,null,null,null,null,473]
[null,null,null,null,null,null,474]
[null,null,null,null,null,null,475]
[null,null,null,null,null,null,476]
[null,null,null,null,null,null,477]
[null,null,null,null,null,null,478]
[null,null,null,null,null,null,479]
[null,null,null,null,null,null,480]
[null,null,null,null,null,null,481]
[null,null,null,null,null,null,482]
[null,null,null,null,null,null,483]
[null,null,null,null,null,null,484]
[null,null,null,null,null,null,485]
[null,null,null,null,null,null,486]
[null,null,null,null,null,null,487]
[null,null,null,null,null,null,488]
[null,null,null,null,null,null,489]
[null,null,null,null,null,null,490]
[null,null,null,null,null,null,491]
[null,null,null,null,null,null,492]
[null,null,null,null,null,null,493]
[null,null,null,null,null,null,494]
[null,null,null,null,null,null,495]
[null,null,null,null,null,null,496]
[null,null,null,null,null,null,497]
[null,null,null,null,null,null,498]
[null,null,null,null,null,null,499]
[null,null,null,null,null,null,500]
[null,null,null,null,null,null,501]
[null,null,null,null,null,null,502]
[null,null,null,null,null,null,503]
[null,null,null,null,null,null,504]
[null,null,null,null,null,null,505]
[null,null,null,null,null,null,506]
[null,null,null,null,null,null,507]
[null,null,null,null,null,null,508]
[null,null,null,null,null,null,509]
[null,null,null,null,null,null,510]
[null,null,null,null,null,null,511]
[null,null,null,null,null,null,512]
[null,null,null,null,null,null,513]
[null,null,null,null,null,null,514]
[null,null,null,null,null,null,515]
[null,null,null,null,null,null,516]
[null,null,null,null,null,null,517]
[null,null,null,null,null,null,518]
[null,null,null,null,null,null,519]
[null,null,null,null,null,null,520]
[null,null,null,null,null,null,521]
[null,null,null,null,null,null,522]
[null,null,null,null,null,null,523]
[null,null,null,null,null,null,524]
[null,null,null,null,null,null,525]
[null,null,null,null,null,null,526]
[null,null,null,null,null,null,527]
[null,null,null,null,null,null,528]
[null,null,null,null,null,null,529]
[null,null,null,null,null,null,530]
[null,null,null,null,null,null,531]
[null,null,null,null,null,null,532]
[null,null,null,null,null,null,533]
[null,null,null,null,null,null,534]
[null,null,null,null,null,null,535]
[null,null,null,null,null,null,536]
[null,null,null,null,null,null,537]
[null,null,null,null,null,null,538]
[null,null,null,null,null,null,539]
[null,null,null,null,null,null,540]
[null,null,null,null,null,null,541]
[null,null,null,null,null,null,542]
[null,null,null,null,null,null,543]
[null,null,null,null,null,null,544]
[null,null,null,null,null,null,545]
[null,null,null,null,null,null,546]
[null,null,null,null,null,null,547]
[null,null,null,null,null,null,548]
[null,null,null,null,null,null,549]
[null,null,null,null,null,null,550]
[null,null,null,null,null,null,551]
[null,null,null,null,null,null,552]
[null,null,null,null,null,null,553]
[null,null,null,null,null,null,554]
[null,null,null,null,null,null,555]
[null,null,null,null,null,null,556]
[null,null,null,null,null,null,557]
[null,null,null,null,null,null,558]
[null,null,null,null,null,null,559]
[null,null,null,null,null,null,560]
[null,null,null,null,null,null,561]
[null,null,null,null,null,null,562]
[null,null,null,null,null,null,563]
[null,null,null,null,null,null,564]
[null,null,null,null,null,null,565]
[null,null,null,null,null,null,566]
[null,null,null,null,null,null,567]
[null,null,null,null,null,null,568]
[null,null,null,null,null,null,569]
[null,null,null,null,null,null,570]
[null,null,null,null,null,null,571]
[null,null,null,null,null,null,572]
[null,null,null,null,null,null,573]
[null,null,null,null,null,null,574]
[null,null,null,null,null,null,575]
[null,null,null,null,null,null,576]
[null,null,null,null,null,null,577]
[null,null,null,null,null,null,578]
[null,null,null,null,null,null,579]
[null,null,null,null,null,null,580]
[null,null,null,null,null,null,581]
[null,null,null,null,null,null,582]
[null,null,null,null,null,null,583]
[null,null,null,null,null,null,584]
[null,null,null,null,null,null,585]
[null,null,null,null,null,null,586]
[null,null,null,null,null,null,587]
[null,null,null,null,null,null,588]
[null,null,null,null,null,null,589]
[null,null,null,null,null,null,590]
[null,null,null,null,null,null,591]
[null,null,null,null,null,null,592]
[null,null,null,null,null,null,593]
[null,null,null,null,null,null,594]
[null,null,null,null,null,null,595]
[null,null,null,null,null,null,596]
[null,null,null,null,null,null,597]
[null,null,null,null,null,null,598]
[null,null,null,null,null,null,599]
[null,null,null,null,null,null,600]
[null,null,null,null,null,null,601]
[null,null,null,null,null,null,602]
[null,null,null,null,null,null,603]
[null,null,null,null,null,null,604]
[null,null,null,null,null,null,605]
[null,null,null,null,null,null,606]
[null,null,null,null,null,null,607]
[null,null,null,null,null,null,608]
[null,null,null,null,null,null,609]
[null,null,null,null,null,null,610]
[null,null,null,null,null,null,611]
[null,null,null,null,null,null,612]
[null,null,null,null,null,null,613]
[null,null,null,null,null,null,614]
[null,null,null,null,null,null,615]
[null,null,null,null,null,null,616]
[null,null,null,null,null,null,617]
[null,null,null,null,null,null,618]
[null,null,null,null,null,null,619]
[null,null,null,null,null,null,620]
[null,null,null,null,null,null,621]
[null,null,null,null,null,null,622]
[null,null,null,null,null,null,623]
[null,null,null,null,null,null,624]
[null,null,null,null,null,null,625]
[null,null,null,null,null,null,626]
[null,null,null,null,null,null,627]
[null,null,null,null,null,null,628]
[null,null,null,null,null,null,629]
[null,null,null,null,null,null,630]
[null,null,null,null,null,null,631]
[null,null,null,null,null,null,632]
[null,null,null,null,null,null,633]
[null,null,null,null,null,null,634]
[null,null,null,null,null,null,635]
[null,null,null,null,null,null,636]
[null,null,null,null,null,null,637]
[null,null,null,null,null,null,638]
[null,null,null,null,null,null,639]
[null,null,null,null,null,null,640]
[null,null,null,null,null,null,641]
[null,null,null,null,null,null,642]
[null,null,null,null,null,null,643]
[null,null,null,null,null,null,644]
[null,null,null,null,null,null,645]
[null,null,null,null,null,null,646]
[null,null,null,null,null,null,647]
[null,null,null,null,null,null,648]
[null,null,null,null,null,null,649]
[null,null,null,null,null,null,650]
[null,null,null,null,null,null,651]
[null,null,null,null,null,null,652]
[null,null,null,null,null,null,653]
[null,null,null,null,null,null,654]
[null,null,null,null,null,null,655]
[null,null,null,null,null,null,656]
[null,null,null,null,null,null,657]
[null,null,null,null,null,null,658]
[null,null,null,null,null,null,659]
[null,null,null,null,null,null,660]
[null,null,null,null,null,null,661]
[null,null,null,null,null,null,662]
[null,null,null,null,null,null,663]
[null,null,null,null,null,null,664]
[null,null,null,null,null,null,665]
[null,null,null,null,null,null,666]
[null,null,null,null,null,null,667]
[null,null,null,null,null,null,668]
[null,null,null,null,null,null,669]
[null,null,null,null,null,null,670]
[null,null,null,null,null,null,671]
[null,null,null,null,null,null,672]
[null,null,null,null,null,null,673]
[null,null,null,null,null,null,674]
[null,null,null,null,null,null,675]
[null,null,null,null,null,null,676]
[null,null,null,null,null,null,677]
[null,null,null,null,null,null,678]
[null,null,null,null,null,null,679]
[null,null,null,null,null,null,680]
[null,null,null,null,null,null,681]
[null,null,null,null,null,null,682]
[null,null,null,null,null,null,683]
[null,null,null,null,null,null,684]
[null,null,null,null,null,null,685]
[null,null,null,null,null,null,686]
[null,null,null,null,null,null,687]
[null,null,null,null,null,null,688]
[null,null,null,null,null,null,689]
[null,null,null,null,null,null,690]
[null,null,null,null,null,null,691]
[null,null,null,null,null,null,692]
[null,null,null,null,null,null,693]
[null,null,null,null,null,null,694]
[null,null,null,null,null,null,695]
[null,null,null,null,null,null,696]
[null,null,null,null,null,null,697]
[null,null,null,null,null,null,698]
[null,null,null,null,null,null,699]
[null,null,null,null,null,null,700]
[null,null,null,null,null,null,701]
[null,null,null,null,null,null,702]
[null,null,null,null,null,null,703]
[null,null,null,null,null,null,704]
[null,null,null,null,null,null,705]
[null,null,null,null,null,null,706]
[null,null,null,null,null,null,707]
[null,null,null,null,null,null,708]
[null,null,null,null,null,null,709]
[null,null,null,null,null,null,710]
[null,null,null,null,null,null,711]
[null,null,null,null,null,null,712]
[null,null,null,null,null,null,713]
[null,null,null,null,null,null,714]
[null,null,null,null,null,null,715]
[null,null,null,null,null,null,716]
[null,null,null,null,null,null,717]
[null,null,null,null,null,null,718]
[null,null,null,null,null,null,719]
[null,null,null,null,null,null,720]
[null,null,null,null,null,null,721]
[null,null,null,null,null,null,722]
[null,null,null,null,null,null,723]
[null,null,null,null,null,null,724]
[null,null,null,null,null,null,725]
[null,null,null,null,null,null,726]
[null,null,null,null,null,null,727]
[null,null,null,null,null,null,728]
[null,null,null,null,null,null,729]
[null,null,null,null,null,null,730]
[null,null,null,null,null,null,731]
[null,null,null,null,null,null,732]
[null,null,null,null,null,null,733]
[null,null,null,null,null,null,734]
[null,null,null,null,null,null,735]
[null,null,null,null,null,null,736]
[null,null,null,null,null,null,737]
[null,null,null,null,null,null,738]
[null,null,null,null,null,null,739]
[null,null,null,null,null,null,740]
[null,null,null,null,null,null,741]
[null,null,null,null,null,null,742]
[null,null,null,null,null,null,743]
[null,null,null,null,null,null,744]
[null,null,null,null,null,null,745]
[null,null,null,null,null,null,746]
[null,null,null,null,null,null,747]
[null,null,null,null,null,null,748]
[null,null,null,null,null,null,749]
[null,null,null,null,null,null,750]
[null,null,null,null,null,null,751]
[null,null,null,null,null,null,752]
[null,null,null,null,null,null,753]
[null,null,null,null,null,null,754]
[null,null,null,null,null,null,755]
[null,null,null,null,null,null,756]
[null,null,null,null,null,null,757]
[null,null,null,null,null,null,758]
[null,null,null,null,null,null,759]
[null,null,null,null,null,null,760]
[null,null,null,null,null,null,761]
[null,null,null,null,null,null,762]
[null,null,null,null,null,null,763]
[null,null,null,null,null,null,764]
[null,null,null,null,null,null,765]
[null,null,null,null,null,null,766]
[null,null,null,null,null,null,767]
[null,null,null,null,null,null,768]
[null,null,null,null,null,null,769]
[null,null,null,null,null,null,770]
[null,null,null,null,null,null,771]
[null,null,null,null,null,null,772]
[null,null,null,null,null,null,773]
[null,null,null,null,null,null,774]
[null,null,null,null,null,null,775]
[null,null,null,null,null,null,776]
[null,null,null,null,null,null,777]
[null,null,null,null,null,null,778]
[null,null,null,null,null,null,779]
[null,null,null,null,null,null,780]
[null,null,null,null,null,null,781]
[null,null,null,null,null,null,782]
[null,null,null,null,null,null,783]
[null,null,null,null,null,null,784]
[null,null,null,null,null,null,785]
[null,null,null,null,null,null,786]
[null,null,null,null,null,null,787]
[null,null,null,null,null,null,788]
[null,null,null,null,null,null,789]
[null,null,null,null,null,null,790]
[null,null,null,null,null,null,791]
[null,null,null,null,null,null,792]
[null,null,null,null,null,null,793]
[null,null,null,null,null,null,794]
[null,null,null,null,null,null,795]
[null,null,null,null,null,null,796]
[null,null,null,null,null,null,797]
[null,null,null,null,null,null,798]
[null,null,null,null,null,null,799]
[null,null,null,null,null,null,800]
[null,null,null,null,null,null,801]
[null,null,null,null,null,null,802]
[null,null,null,null,null,null,803]
[null,null,null,null,null,null,804]
[null,null,null,null,null,null,805]
[null,null,null,null,null,null,806]
[null,null,null,null,null,null,807]
[null,null,null,null,null,null,808]
[null,null,null,null,null,null,809]
[null,null,null,null,null,null,810]
[null,null,null,null,null,null,811]
[null,null,null,null,null,null,812]
[null,null,null,null,null,null,813]
[null,null,null,null,null,null,814]
[null,null,null,null,null,null,815]
[null,null,null,null,null,null,816]
[null,null,null,null,null,null,817]
[null,null,null,null,null,null,818]
[null,null,null,null,null,null,819]
[null,null,null,null,null,null,820]
[null,null,null,null,null,null,821]
[null,null,null,null,null,null,822]
[null,null,null,null,null,null,823]
[null,null,null,null,null,null,824]
[null,null,null,null,null,null,825]
[null,null,null,null,null,null,826]
[null,null,null,null,null,null,827]
[null,null,null,null,null,null,828]
[null,null,null,null,null,null,829]
[null,null,null,null,null,null,830]
[null,null,null,null,null,null,831]
[null,null,null,null,null,null,832]
[null,null,null,null,null,null,833]
[null,null,null,null,null,null,834]
[null,null,null,null,null,null,835]
[null,null,null,null,null,null,836]
[null,null,null,null,null,null,837]
[null,null,null,null,null,null,838]
[null,null,null,null,null,null,839]
[null,null,null,null,null,null,840]
[null,null,null,null,null,null,841]
[null,null,null,null,null,null,842]
[null,null,null,null,null,null,843]
[null,null,null,null,null,null,844]
[null,null,null,null,null,null,845]
[null,null,null,null,null,null,846]
[null,null,null,null,null,null,847]
[null,null,null,null,null,null,848]
[null,null,null,null,null,null,849]
[null,null,null,null,null,null,850]
[null,null,null,null,null,null,851]
[null,null,null,null,null,null,852]
[null,null,null,null,null,null,853]
[null,null,null,null,null,null,854]
[null,null,null,null,null,null,855]
[null,null,null,null,null,null,856]
[null,null,null,null,null,null,857]
[null,null,null,null,null,null,858]
[null,null,null,null,null,null,859]
[null,null,null,null,null,null,860]
[null,null,null,null,null,null,861]
[null,null,null,null,null,null,862]
[null,null,null,null,null,null,863]
[null,null,null,null,null,null,864]
[null,null,null,null,null,null,865]
[null,null,null,null,null,null,866]
[null,null,null,null,null,null,867]
[null,null,null,null,null,null,868]
[null,null,null,null,null,null,869]
[null,null,null,null,null,null,870]
[null,null,null,null,null,null,871]
[null,null,null,null,null,null,872]
[null,null,null,null,null,null,873]
[null,null,null,null,null,null,874]
[null,null,null,null,null,null,875]
[null,null,null,null,null,null,876]
[null,null,null,null,null,null,877]
[null,null,null,null,null,null,878]
[null,null,null,null,null,null,879]
[null,null,null,null,null,null,880]
[null,null,null,null,null,null,881]
[null,null,null,null,null,null,882]
[null,null,null,null,null,null,883]
[null,null,null,null,null,null,884]
[null,null,null,null,null,null,885]
[null,null,null,null,null,null,886]
[null,null,null,null,null,null,887]
[null,null,null,null,null,null,888]
[null,null,null,null,null,null,889]
[null,null,null,null,null,null,890]
[null,null,null,null,null,null,891]
[null,null,null,null,null,null,892]
[null,null,null,null,null,null,893]
[null,null,null,null,null,null,894]
[null,null,null,null,null,null,895]
[null,null,null,null,null,null,896]
[null,null,null,null,null,null,897]
[null,null,null,null,null,null,898]
[null,null,null,null,null,null,899]
[null,null,null,null,null,null,900]
[null,null,null,null,null,null,901]
[null,null,null,null,null,null,902]
[null,null,null,null,null,null,903]
[null,null,null,null,null,null,904]
[null,null,null,null,null,null,905]
[null,null,null,null,null,null,906]
[null,null,null,null,null,null,907]
[null,null,null,null,null,null,908]
[null,null,null,null,null,null,909]
[null,null,null,null,null,null,910]
[null,null,null,null,null,null,911]
[null,null,null,null,null,null,912]
[null,null,null,null,null,null,913]
[null,null,null,null,null,null,914]
[null,null,null,null,null,null,915]
[null,null,null,null,null,null,916]
[null,null,null,null,null,null,917]
[null,null,null,null,null,null,918]
[null,null,null,null,null,null,919]
[null,null,null,null,null,null,920]
[null,null,null,null,null,null,921]
[null,null,null,null,null,null,922]
[null,null,null,null,null,null,923]
[null,null,null,null,null,null,924]
[null,null,null,null,null,null,925]
[null,null,null,null,null,null,926]
[null,null,null,null,null,null,927]
[null,null,null,null,null,null,928]
[null,null,null,null,null,null,929]
[null,null,null,null,null,null,930]
[null,null,null,null,null,null,931]
[null,null,null,null,null,null,932]
[null,null,null,null,null,null,933]
[null,null,null,null,null,null,934]
[null,null,null,null,null,null,935]
[null,null,null,null,null,null,936]
[null,null,null,null,null,null,937]
[null,null,null,null,null,null,938]
[null,null,null,null,null,null,939]
[null,null,null,null,null,null,940]
[null,null,null,null,null,null,941]
[null,null,null,null,null,null,942]
[null,null,null,null,null,null,943]
[null,null,null,null,null,null,944]
[null,null,null,null,null,null,945]
[null,null,null,null,null,null,946]
[null,null,null,null,null,null,947]
[null,null,null,null,null,null,948]
[null,null,null,null,null,null,949]
[null,null,null,null,null,null,950]
[null,null,null,null,null,null,951]
[null,null,null,null,null,null,952]
[null,null,null,null,null,null,953]
[null,null,null,null,null,null,954]
[null,null,null,null,null,null,955]
[null,null,null,null,null,null,956]
[null,null,null,null,null,null,957]
[null,null,null,null,null,null,958]
[null,null,null,null,null,null,959]
[null,null,null,null,null,null,960]
[null,null,null,null,null,null,961]
[null,null,null,null,null,null,962]
[null,null,null,null,null,null,963]
[null,null,null,null,null,null,964]
[null,null,null,null,null,null,965]
[null,null,null,null,null,null,966]
[null,null,null,null,null,null,967]
[null,null,null,null,null,null,968]
[null,null,null,null,null,null,969]
[null,null,null,null,null,null,970]
[null,null,null,null,null,null,971]
[null,null,null,null,null,null,972]
[null,null,null,null,null,null,973]
[null,null,null,null,null,null,974]
[null,null,null,null,null,null,975]
[null,null,null,null,null,null,976]
[null,null,null,null,null,null,977]
[null,null,null,null,null,null,978]
[null,null,null,null,null,null,979]
[null,null,null,null,null,null,980]
[null,null,null,null,null,null,981]
[null,null,null,null,null,null,982]
[null,null,null,null,null,null,983]
[null,null,null,null,null,null,984]
[null,null,null,null,null,null,985]
[null,null,null,null,null,null,986]
[null,null,null,null,null,null,987]
[null,null,null,null,null,null,988]
[null,null,null,null,null,null,989]
[null,null,null,null,null,null,990]
[null,null,null,null,null,null,991]
[null,null,null,null,null,null,992]
[null,null,null,null,null,null,993]
[null,null,null,null,null,null,994]
[null,null,null,null,null,null,995]
[null,null,null,null,null,null,996]
[null,null,null,null,null,null,997]
[null,null,null,null,null,null,998]
[null,null,null,null,null,null,999]
[null,null,null,null,null,null,1000]
[null,null,null,null,null,null,1001]
[null,null,null,null,null,null,1002]
[null,null,null,null,null,null,1003]
[null,null,null,null,null,null,1004]
[null,null,null,null,null,null,1005]
[null,null,null,null,null,null,1006]
[null,null,null,null,null,null,1007]
[null,null,null,null,null,null,1008]
[null,null,null,null,null,null,1009]
[null,null,null,null,null,null,1010]
[null,null,null,null,null,null,1011]
[null,null,null,null,null,null,1012]
[null,null,null,null,null,null,1013]
[null,null,null,null,null,null,1014]
[null,null,null,null,null,null,1015]
[null,null,null,null,null,null,1016]
[null,null,null,null,null,null,1017]
[null,null,null,null,null,null,1018]
[null,null,null,null,null,null,1019]
[null,null,null,null,null,null,1020]
[null,null,null,null,null,null,1021]
[null,null,null,null,null,null,1022]
[null,null,null,null,null,null,1023]
[null,null,null,null,null,null,1024]
[null,null,null,null,null,null,1025]
[null,null,null,null,null,null,1026]
[null,null,null,null,null,null,1027]
[null,null,null,null,null,null,1028]
[null,null,null,null,null,null,1029]
[null,null,null,null,null,null,1030]
[null,null,null,null,null,null,1031]
[null,null,null,null,null,null,1032]
[null,null,null,null,null,null,1033]
[null,null,null,null,null,null,1034]
[null,null,null,null,null,null,1035]
[null,null,null,null,null,null,1036]
[null,null,null,null,null,null,1037]
[null,null,null,null,null,null,1038]
[null,null,null,null,null,null,1039]
[null,null,null,null,null,null,1040]
[null,null,null,null,null,null,1041]
[null,null,null,null,null,null,1042]
[null,null,null,null,null,null,1043]
[null,null,null,null,null,null,1044]
[null,null,null,null,null,null,1045]
[null,null,null,null,null,null,1046]
[null,null,null,null,null,null,1047]
[null,null,null,null,null,null,1048]
[null,null,null,null,null,null,1049]
[null,null,null,null,null,null,1050]
[null,null,null,null,null,null,1051]
[null,null,null,null,null,null,1052]
[null,null,null,null,null,null,1053]
[null,null,null,null,null,null,1054]
[null,null,null,null,null,null,1055]
[null,null,null,null,null,null,1056]
[null,null,null,null,null,null,1057]
[null,null,null,null,null,null,1058]
[null,null,null,null,null,null,1059]
[null,null,null,null,null,null,1060]
[null,null,null,null,null,null,1061]
[null,null,null,null,null,null,1062]
[null,null,null,null,null,null,1063]
[null,null,null,null,null,null,1064]
[null,null,null,null,null,null,1065]
[null,null,null,null,null,null,1066]
[null,null,null,null,null,null,1067]
[null,null,null,null,null,null,1068]
[null,null,null,null,null,null,1069]
[null,null,null,null,null,null,1070]
[null,null,null,null,null,null,1071]
[null,null,null,null,null,null,1072]
[null,null,null,null,null,null,1073]
[null,null,null,null,null,null,1074]
[null,null,null,null,null,null,1075]
[null,null,null,null,null,null,1076]
[null,null,null,null,null,null,1077]
[null,null,null,null,null,null,1078]
[null,null,null,null,null,null,1079]
[null,null,null,null,null,null,1080]
[null,null,null,null,null,null,1081]
[null,null,null,null,null,null,1082]
[null,null,null,null,null,null,1083]
[null,null,null,null,null,null,1084]
[null,null,null,null,null,null,1085]
[null,null,null,null,null,null,1086]
[null,null,null,null,null,null,1087]
[null,null,null,null,null,null,1088]
[null,null,null,null,null,null,1089]
[null,null,null,null,null,null,1090]
[null,null,null,null,null,null,1091]
[null,null,null,null,null,null,1092]
[null,null,null,null,null,null,1093]
[null,null,null,null,null,null,1094]
[null,null,null,null,null,null,1095]
[null,null,null,null,null,null,1096]
[null,null,null,null,null,null,1097]
[null,null,null,null,null,null,1098]
[null,null,null,null,null,null,1099]
[null,null,null,null,null,null,1100]
[null,null,null,null,null,null,1101]
[null,null,null,null,null,null,1102]
[null,null,null,null,null,null,1103]
[null,null,null,null,null,null,1104]
[null,null,null,null,null,null,1105]
[null,null,null,null,null,null,1106]
[null,null,null,null,null,null,1107]
[null,null,null,null,null,null,1108]
[null,null,null,null,null,null,1109]
[null,null,null,null,null,null,1110]
[null,null,null,null,null,null,1111]
[null,null,null,null,null,null,1112]
[null,null,null,null,null,null,1113]
[null,null,null,null,null,null,1114]
[null,null,null,null,null,null,1115]
[null,null,null,null,null,null,1116]
[null,null,null,null,null,null,1117]
[null,null,null,null,null,null,1118]
[null,null,null,null,null,null,1119]
[null,null,null,null,null,null,1120]
[null,null,null,null,null,null,1121]
[null,null,null,null,null,null,1122]
[null,null,null,null,null,null,1123]
[null,null,null,null,null,null,1124]
[null,null,null,null,null,null,1125]
[null,null,null,null,null,null,1126]
[null,null,null,null,null,null,1127]
[null,null,null,null,null,null,1128]
[null,null,null,null,null,null,1129]
[null,null,null,null,null,null,1130]
[null,null,null,null,null,null,1131]
[null,null,null,null,null,null,1132]
[null,null,null,null,null,null,1133]
[null,null,null,null,null,null,1134]
[null,null,null,null,null,null,1135]
[null,null,null,null,null,null,1136]
[null,null,null,null,null,null,1137]
[null,null,null,null,null,null,1138]
[null,null,null,null,null,null,1139]
[null,null,null,null,null,null,1140]
[null,null,null,null,null,null,1141]
[null,null,null,null,null,null,1142]
[null,null,null,null,null,null,1143]
[null,null,null,null,null,null,1144]
[null,null,null,null,null,null,1145]
[null,null,null,null,null,null,1146]
[null,null,null,null,null,null,1147]
[null,null,null,null,null,null,1148]
[null,null,null,null,null,null,1149]
[null,null,null,null,null,null,1150]
[null,null,null,null,null,null,1151]
[null,null,null,null,null,null,1152]
[null,null,null,null,null,null,1153]
[null,null,null,null,null,null,1154]
[null,null,null,null,null,null,1155]
[null,null,null,null,null,null,1156]
[null,null,null,null,null,null,1157]
[null,null,null,null,null,null,1158]
[null,null,null,null,null,null,1159]
[null,null,null,null,null,null,1160]
[null,null,null,null,null,null,1161]
[null,null,null,null,null,null,1162]
[null,null,null,null,null,null,1163]
[null,null,null,null,null,null,1164]
[null,null,null,null,null,null,1165]
[null,null,null,null,null,null,1166]
[null,null,null,null,null,null,1167]
[null,null,null,null,null,null,1168]
[null,null,null,null,null,null,1169]
[null,null,null,null,null,null,1170]
[null,null,null,null,null,null,1171]
[null,null,null,null,null,null,1172]
[null,null,null,null,null,null,1173]
[null,null,null,null,null,null,1174]
[null,null,null,null,null,null,1175]
[null,null,null,null,null,null,1176]
[null,null,null,null,null,null,1177]
[null,null,null,null,null,null,1178]
[null,null,null,null,null,null,1179]
[null,null,null,null,null,null,1180]
[null,null,null,null,null,null,1181]
[null,null,null,null,null,null,1182]
[null,null,null,null,null,null,1183]
[null,null,null,null,null,null,1184]
[null,null,null,null,null,null,1185]
[null,null,null,null,null,null,1186]
[null,null,null,null,null,null,1187]
[null,null,null,null,null,null,1188]
[null,null,null,null,null,null,1189]
[null,null,null,null,null,null,1190]
[null,null,null,null,null,null,1191]
[null,null,null,null,null,null,1192]
[null,null,null,null,null,null,1193]
[null,null,null,null,null,null,1194]
[null,null,null,null,null,null,1195]
[null,null,null,null,null,null,1196]
[null,null,null,null,null,null,1197]
[null,null,null,null,null,null,1198]
[null,null,null,null,null,null,1199]
[null,null,null,null,null,null,1200]
[null,null,null,null,null,null,1201]
[null,null,null,null,null,null,1202]
[null,null,null,null,null,null,1203]
[null,null,null,null,null,null,1204]
[null,null,null,null,null,null,1205]
[null,null,null,null,null,null,1206]
[null,null,null,null,null,null,1207]
[null,null,null,null,null,null,1208]
[null,null,null,null,null,null,1209]
[null,null,null,null,null,null,1210]
[null,null,null,null,null,null,1211]
[null,null,null,null,null,null,1212]
[null,null,null,null,null,null,1213]
[null,null,null,null,null,null,1214]
[null,null,null,null,null,null,1215]
[null,null,null,null,null,null,1216]
[null,null,null,null,null,null,1217]
[null,null,null,null,null,null,1218]
[null,null,null,null,null,null,1219]
[null,null,null,null,null,null,1220]
[null,null,null,null,null,null,1221]
[null,null,null,null,null,null,1222]
[null,null,null,null,null,null,1223]
[null,null,null,null,null,null,1224]
[null,null,null,null,null,null,1225]
[null,null,null,null,null,null,1226]
[null,null,null,null,null,null,1227]
[null,null,null,null,null,null,1228]
[null,null,null,null,null,null,1229]
[null,null,null,null,null,null,1230]
[null,null,null,null,null,null,1231]
[null,null,null,null,null,null,1232]
[null,null,null,null,null,null,1233]
[null,null,null,null,null,null,1234]
[null,null,null,null,null,null,1235]
[null,null,null,null,null,null,1236]
[null,null,null,null,null,null,1237]
[null,null,null,null,null,null,1238]
[null,null,null,null,null,null,1239]
[null,null,null,null,null,null,1240]
[null,null,null,null,null,null,1241]
[null,null,null,null,null,null,1242]
[null,null,null,null,null,null,1243]
[null,null,null,null,null,null,1244]
[null,null,null,null,null,null,1245]
[null,null,null,null,null,null,1246]
[null,null,null,null,null,null,1247]
[null,null,null,null,null,null,1248]
[null,null,null,null,null,null,1249]
[null,null,null,null,null,null,1250]
[null,null,null,null,null,null,1251]
[null,null,null,null,null,null,1252]
[null,null,null,null,null,null,1253]
[null,null,null,null,null,null,1254]
[null,null,null,null,null,null,1255]
[null,null,null,null,null,null,1256]
[null,null,null,null,null,null,1257]
[null,null,null,null,null,null,1258]
[null,null,null,null,null,null,1259]
[null,null,null,null,null,null,1260]
[null,null,null,null,null,null,1261]
[null,null,null,null,null,null,1262]
[null,null,null,null,null,null,1263]
[null,null,null,null,null,null,1264]
[null,null,null,null,null,null,1265]
[null,null,null,null,null,null,1266]
[null,null,null,null,null,null,1267]
[null,null,null,null,null,null,1268]
[null,null,null,null,null,null,1269]
[null,null,null,null,null,null,1270]
[null,null,null,null,null,null,1271]
[null,null,null,null,null,null,1272]
[null,null,null,null,null,null,1273]
[null,null,null,null,null,null,1274]
[null,null,null,null,null,null,1275]
[null,null,null,null,null,null,1276]
[null,null,null,null,null,null,1277]
[null,null,null,null,null,null,1278]
[null,null,null,null,null,null,1279]
[null,null,null,null,null,null,1280]
[null,null,null,null,null,null,1281]
[null,null,null,null,null,null,1282]
[null,null,null,null,null,null,1283]
[null,null,null,null,null,null,1284]
[null,null,null,null,null,null,1285]
[null,null,null,null,null,null,1286]
[null,null,null,null,null,null,1287]
[null,null,null,null,null,null,1288]
[null,null,null,null,null,null,1289]
[null,null,null,null,null,null,1290]
[null,null,null,null,null,null,1291]
[null,null,null,null,null,null,1292]
[null,null,null,null,null,null,1293]
[null,null,null,null,null,null,1294]
[null,null,null,null,null,null,1295]
[null,null,null,null,null,null,1296]
[null,null,null,null,null,null,1297]
[null,null,null,null,null,null,1298]
[null,null,null,null,null,null,1299]
[null,null,null,null,null,null,1300]
[null,null,null,null,null,null,1301]
[null,null,null,null,null,null,1302]
[null,null,null,null,null,null,1303]
[null,null,null,null,null,null,1304]
[null,null,null,null,null,null,1305]
[null,null,null,null,null,null,1306]
[null,null,null,null,null,null,1307]
[null,null,null,null,null,null,1308]
[null,null,null,null,null,null,1309]
[null,null,null,null,null,null,1310]
[null,null,null,null,null,null,1311]
[null,null,null,null,null,null,1312]
[null,null,null,null,null,null,1313]
[null,null,null,null,null,null,1314]
[null,null,null,null,null,null,1315]
[null,null,null,null,null,null,1316]
[null,null,null,null,null,null,1317]
[null,null,null,null,null,null,1318]
[null,null,null,null,null,null,1319]
[null,null,null,null,null,null,1320]
[null,null,null,null,null,null,1321]
[null,null,null,null,null,null,1322]
[null,null,null,null,null,null,1323]
[null,null,null,null,null,null,1324]
[null,null,null,null,null,null,1325]
[null,null,null,null,null,null,1326]
[null,null,null,null,null,null,1327]
[null,null,null,null,null,null,1328]
[null,null,null,null,null,null,1329]
[null,null,null,null,null,null,1330]
[null,null,null,null,null,null,1331]
[null,null,null,null,null,null,1332]
[null,null,null,null,null,null,1333]
[null,null,null,null,null,null,1334]
[null,null,null,null,null,null,1335]
[null,null,null,null,null,null,1336]
[null,null,null,null,null,null,1337]
[null,null,null,null,null,null,1338]
[null,null,null,null,null,null,1339]
[null,null,null,null,null,null,1340]
[null,null,null,null,null,null,1341]
[null,null,null,null,null,null,1342]
[null,null,null,null,null,null,1343]
[null,null,null,null,null,null,1344]
[null,null,null,null,null,null,1345]
[null,null,null,null,null,null,1346]
[null,null,null,null,null,null,1347]
[null,null,null,null,null,null,1348]
[null,null,null,null,null,null,1349]
[null,null,null,null,null,null,1350]
[null,null,null,null,null,null,1351]
[null,null,null,null,null,null,1352]
[null,null,null,null,null,null,1353]
[null,null,null,null,null,null,1354]
[null,null,null,null,null,null,1355]
[null,null,null,null,null,null,1356]
[null,null,null,null,null,null,1357]
[null,null,null,null,null,null,1358]
[null,null,null,null,null,null,1359]
[null,null,null,null,null,null,1360]
[null,null,null,null,null,null,1361]
[null,null,null,null,null,null,1362]
[null,null,null,null,null,null,1363]
[null,null,null,null,null,null,1364]
[null,null,null,null,null,null,1365]
[null,null,null,null,null,null,1366]
[null,null,null,null,null,null,1367]
[null,null,null,null,null,null,1368]
[null,null,null,null,null,null,1369]
[null,null,null,null,null,null,1370]
[null,null,null,null,null,null,1371]
[null,null,null,null,null,null,1372]
[null,null,null,null,null,null,1373]
[null,null,null,null,null,null,1374]
[null,null,null,null,null,null,1375]
[null,null,null,null,null,null,1376]
[null,null,null,null,null,null,1377]
[null,null,null,null,null,null,1378]
[null,null,null,null,null,null,1379]
[null,null,null,null,null,null,1380]
[null,null,null,null,null,null,1381]
[null,null,null,null,null,null,1382]
[null,null,null,null,null,null,1383]
[null,null,null,null,null,null,1384]
[null,null,null,null,null,null,1385]
[null,null,null,null,null,null,1386]
[null,null,null,null,null,null,1387]
[null,null,null,null,null,null,1388]
[null,null,null,null,null,null,1389]
[null,null,null,null,null,null,1390]
[null,null,null,null,null,null,1391]
[null,null,null,null,null,null,1392]
[null,null,null,null,null,null,1393]
[null,null,null,null,null,null,1394]
[null,null,null,null,null,null,1395]
[null,null,null,null,null,null,1396]
[null,null,null,null,null,null,1397]
[null,null,null,null,null,null,1398]
[null,null,null,null,null,null,1399]
[null,null,null,null,null,null,1400]
[null,null,null,null,null,null,1401]
[null,null,null,null,null,null,1402]
[null,null,null,null,null,null,1403]
[null,null,null,null,null,null,1404]
[null,null,null,null,null,null,1405]
[null,null,null,null,null,null,1406]
[null,null,null,null,null,null,1407]
[null,null,null,null,null,null,1408]
[null,null,null,null,null,null,1409]
[null,null,null,null,null,null,1410]
[null,null,null,null,null,null,1411]
[null,null,null,null,null,null,1412]
[null,null,null,null,null,null,1413]
[null,null,null,null,null,null,1414]
[null,null,null,null,null,null,1415]
[null,null,null,null,null,null,1416]
[null,null,null,null,null,null,1417]
[null,null,null,null,null,null,1418]
[null,null,null,null,null,null,1419]
[null,null,null,null,null,null,1420]
[null,null,null,null,null,null,1421]
[null,null,null,null,null,null,1422]
[null,null,null,null,null,null,1423]
[null,null,null,null,null,null,1424]
[null,null,null,null,null,null,1425]
[null,null,null,null,null,null,1426]
[null,null,null,null,null,null,1427]
[null,null,null,null,null,null,1428]
[null,null,null,null,null,null,1429]
[null,null,null,null,null,null,1430]
[null,null,null,null,null,null,1431]
[null,null,null,null,null,null,1432]
[null,null,null,null,null,null,1433]
[null,null,null,null,null,null,1434]
[null,null,null,null,null,null,1435]
[null,null,null,null,null,null,1436]
[null,null,null,null,null,null,1437]
[null,null,null,null,null,null,1438]
[null,null,null,null,null,null,1439]
[null,null,null,null,null,null,1440]
[null,null,null,null,null,null,1441]
[null,null,null,null,null,null,1442]
[null,null,null,null,null,null,1443]
[null,null,null,null,null,null,1444]
[null,null,null,null,null,null,1445]
[null,null,null,null,null,null,1446]
[null,null,null,null,null,null,1447]
[null,null,null,null,null,null,1448]
[null,null,null,null,null,null,1449]
[null,null,null,null,null,null,1450]
[null,null,null,null,null,null,1451]
[null,null,null,null,null,null,1452]
[null,null,null,null,null,null,1453]
[null,null,null,null,null,null,1454]
[null,null,null,null,null,null,1455]
[null,null,null,null,null,null,1456]
[null,null,null,null,null,null,1457]
[null,null,null,null,null,null,1458]
[null,null,null,null,null,null,1459]
[null,null,null,null,null,null,1460]
[null,null,null,null,null,null,1461]
[null,null,null,null,null,null,1462]
[null,null,null,null,null,null,1463]
[null,null,null,null,null,null,1464]
[null,null,null,null,null,null,1465]
[null,null,null,null,null,null,1466]
[null,null,null,null,null,null,1467]
[null,null,null,null,null,null,1468]
[null,null,null,null,null,null,1469]
[null,null,null,null,null,null,1470]
[null,null,null,null,null,null,1471]
[null,null,null,null,null,null,1472]
[null,null,null,null,null,null,1473]
[null,null,null,null,null,null,1474]
[null,null,null,null,null,null,1475]
[null,null,null,null,null,null,1476]
[null,null,null,null,null,null,1477]
[null,null,null,null,null,null,1478]
[null,null,null,null,null,null,1479]
[null,null,null,null,null,null,1480]
[null,null,null,null,null,null,1481]
[null,null,null,null,null,null,1482]
[null,null,null,null,null,null,1483]
[null,null,null,null,null,null,1484]
[null,null,null,null,null,null,1485]
[null,null,null,null,null,null,1486]
[null,null,null,null,null,null,1487]
[null,null,null,null,null,null,1488]
[null,null,null,null,null,null,1489]
[null,null,null,null,null,null,1490]
[null,null,null,null,null,null,1491]
[null,null,null,null,null,null,1492]
[null,null,null,null,null,null,1493]
[null,null,null,null,null,null,1494]
[null,null,null,null,null,null,1495]
[null,null,null,null,null,null,1496]
[null,null,null,null,null,null,1497]
[null,null,null,null,null,null,1498]
[null,null,null,null,null,null,1499]
[null,null,null,null,null,null,1500]
[null,null,null,null,null,null,1501]
[null,null,null,null,null,null,1502]
[null,null,null,null,null,null,1503]
[null,null,null,null,null,null,1504]
[null,null,null,null,null,null,1505]
[null,null,null,null,null,null,1506]
[null,null,null,null,null,null,1507]
[null,null,null,null,null,null,1508]
[null,null,null,null,null,null,1509]
[null,null,null,null,null,null,1510]
[null,null,null,null,null,null,1511]
[null,null,null,null,null,null,1512]
[null,null,null,null,null,null,1513]
[null,null,null,null,null,null,1514]
[null,null,null,null,null,null,1515]
[null,null,null,null,null,null,1516]
[null,null,null,null,null,null,1517]
[null,null,null,null,null,null,1518]
[null,null,null,null,null,null,1519]
[null,null,null,null,null,null,1520]
[null,null,null,null,null,null,1521]
[null,null,null,null,null,null,1522]
[null,null,null,null,null,null,1523]
[null,null,null,null,null,null,1524]
[null,null,null,null,null,null,1525]
[null,null,null,null,null,null,1526]
[null,null,null,null,null,null,1527]
[null,null,null,null,null,null,1528]
[null,null,null,null,null,null,1529]
[null,null,null,null,null,null,1530]
[null,null,null,null,null,null,1531]
[null,null,null,null,null,null,1532]
[null,null,null,null,null,null,1533]
[null,null,null,null,null,null,1534]
[null,null,null,null,null,null,1535]
[null,null,null,null,null,null,1536]
[null,null,null,null,null,null,1537]
[null,null,null,null,null,null,1538]
[null,null,null,null,null,null,1539]
[null,null,null,null,null,null,1540]
[null,null,null,null,null,null,1541]
[null,null,null,null,null,null,1542]
[null,null,null,null,null,null,1543]
[null,null,null,null,null,null,1544]
[null,null,null,null,null,null,1545]
[null,null,null,null,null,null,1546]
[null,null,null,null,null,null,1547]
[null,null,null,null,null,null,1548]
[null,null,null,null,null,null,1549]
[null,null,null,null,null,null,1550]
[null,null,null,null,null,null,1551]
[null,null,null,null,null,null,1552]
[null,null,null,null,null,null,1553]
[null,null,null,null,null,null,1554]
[null,null,null,null,null,null,1555]
[null,null,null,null,null,null,1556]
[null,null,null,null,null,null,1557]
[null,null,null,null,null,null,1558]
[null,null,null,null,null,null,1559]
[null,null,null,null,null,null,1560]
[null,null,null,null,null,null,1561]
[null,null,null,null,null,null,1562]
[null,null,null,null,null,null,1563]
[null,null,null,null,null,null,1564]
[null,null,null,null,null,null,1565]
[null,null,null,null,null,null,1566]
[null,null,null,null,null,null,1567]
[null,null,null,null,null,null,1568]
[null,null,null,null,null,null,1569]
[null,null,null,null,null,null,1570]
[null,null,null,null,null,null,1571]
[null,null,null,null,null,null,1572]
[null,null,null,null,null,null,1573]
[null,null,null,null,null,null,1574]
[null,null,null,null,null,null,1575]
[null,null,null,null,null,null,1576]
[null,null,null,null,null,null,1577]
[null,null,null,null,null,null,1578]
[null,null,null,null,null,null,1579]
[null,null,null,null,null,null,1580]
[null,null,null,null,null,null,1581]
[null,null,null,null,null,null,1582]
[null,null,null,null,null,null,1583]
[null,null,null,null,null,null,1584]
[null,null,null,null,null,null,1585]
[null,null,null,null,null,null,1586]
[null,null,null,null,null,null,1587]
[null,null,null,null,null,null,1588]
[null,null,null,null,null,null,1589]
[null,null,null,null,null,null,1590]
[null,null,null,null,null,null,1591]
[null,null,null,null,null,null,1592]
[null,null,null,null,null,null,1593]
[null,null,null,null,null,null,1594]
[null,null,null,null,null,null,1595]
[null,null,null,null,null,null,1596]
[null,null,null,null,null,null,1597]
[null,null,null,null,null,null,1598]
[null,null,null,null,null,null,1599]
[null,null,null,null,null,null,1600]
[null,null,null,null,null,null,1601]
[null,null,null,null,null,null,1602]
[null,null,null,null,null,null,1603]
[null,null,null,null,null,null,1604]
[null,null,null,null,null,null,1605]
[null,null,null,null,null,null,1606]
[null,null,null,null,null,null,1607]
[null,null,null,null,null,null,1608]
[null,null,null,null,null,null,1609]
[null,null,null,null,null,null,1610]
[null,null,null,null,null,null,1611]
[null,null,null,null,null,null,1612]
[null,null,null,null,null,null,1613]
[null,null,null,null,null,null,1614]
[null,null,null,null,null,null,1615]
[null,null,null,null,null,null,1616]
[null,null,null,null,null,null,1617]
[null,null,null,null,null,null,1618]
[null,null,null,null,null,null,1619]
[null,null,null,null,null,null,1620]
[null,null,null,null,null,null,1621]
[null,null,null,null,null,null,1622]
[null,null,null,null,null,null,1623]
[null,null,null,null,null,null,1624]
[null,null,null,null,null,null,1625]
[null,null,null,null,null,null,1626]
[null,null,null,null,null,null,1627]
[null,null,null,null,null,null,1628]
[null,null,null,null,null,null,1629]
[null,null,null,null,null,null,1630]
[null,null,null,null,null,null,1631]
[null,null,null,null,null,null,1632]
[null,null,null,null,null,null,1633]
[null,null,null,null,null,null,1634]
[null,null,null,null,null,null,1635]
[null,null,null,null,null,null,1636]
[null,null,null,null,null,null,1637]
[null,null,null,null,null,null,1638]
[null,null,null,null,null,null,1639]
[null,null,null,null,null,null,1640]
[null,null,null,null,null,null,1641]
[null,null,null,null,null,null,1642]
[null,null,null,null,null,null,1643]
[null,null,null,null,null,null,1644]
[null,null,null,null,null,null,1645]
[null,null,null,null,null,null,1646]
[null,null,null,null,null,null,1647]
[null,null,null,null,null,null,1648]
[null,null,null,null,null,null,1649]
[null,null,null,null,null,null,1650]
[null,null,null,null,null,null,1651]
[null,null,null,null,null,null,1652]
[null,null,null,null,null,null,1653]
[null,null,null,null,null,null,1654]
[null,null,null,null,null,null,1655]
[null,null,null,null,null,null,1656]
[null,null,null,null,null,null,1657]
[null,null,null,null,null,null,1658]
[null,null,null,null,null,null,1659]
[null,null,null,null,null,null,1660]
[null,null,null,null,null,null,1661]
[null,null,null,null,null,null,1662]
[null,null,null,null,null,null,1663]
[null,null,null,null,null,null,1664]
[null,null,null,null,null,null,1665]
[null,null,null,null,null,null,1666]
[null,null,null,null,null,null,1667]
[null,null,null,null,null,null,1668]
[null,null,null,null,null,null,1669]
[null,null,null,null,null,null,1670]
[null,null,null,null,null,null,1671]
[null,null,null,null,null,null,1672]
[null,null,null,null,null,null,1673]
[null,null,null,null,null,null,1674]
[null,null,null,null,null,null,1675]
[null,null,null,null,null,null,1676]
[null,null,null,null,null,null,1677]
[null,null,null,null,null,null,1678]
[null,null,null,null,null,null,1679]
[null,null,null,null,null,null,1680]
[null,null,null,null,null,null,1681]
[null,null,null,null,null,null,1682]
[null,null,null,null,null,null,1683]
[null,null,null,null,null,null,1684]
[null,null,null,null,null,null,1685]
[null,null,null,null,null,null,1686]
[null,null,null,null,null,null,1687]
[null,null,null,null,null,null,1688]
[null,null,null,null,null,null,1689]
[null,null,null,null,null,null,1690]
[null,null,null,null,null,null,1691]
[null,null,null,null,null,null,1692]
[null,null,null,null,null,null,1693]
[null,null,null,null,null,null,1694]
[null,null,null,null,null,null,1695]
[null,null,null,null,null,null,1696]
[null,null,null,null,null,null,1697]
[null,null,null,null,null,null,1698]
[null,null,null,null,null,null,1699]
[null,null,null,null,null,null,1700]
[null,null,null,null,null,null,1701]
[null,null,null,null,null,null,1702]
[null,null,null,null,null,null,1703]
[null,null,null,null,null,null,1704]
[null,null,null,null,null,null,1705]
[null,null,null,null,null,null,1706]
[null,null,null,null,null,null,1707]
[null,null,null,null,null,null,1708]
[null,null,null,null,null,null,1709]
[null,null,null,null,null,null,1710]
[null,null,null,null,null,null,1711]
[null,null,null,null,null,null,1712]
[null,null,null,null,null,null,1713]
[null,null,null,null,null,null,1714]
[null,null,null,null,null,null,1715]
[null,null,null,null,null,null,1716]
[null,null,null,null,null,null,1717]
[null,null,null,null,null,null,1718]
[null,null,null,null,null,null,1719]
[null,null,null,null,null,null,1720]
[null,null,null,null,null,null,1721]
[null,null,null,null,null,null,1722]
[null,null,null,null,null,null,1723]
[null,null,null,null,null,null,1724]
[null,null,null,null,null,null,1725]
[null,null,null,null,null,null,1726]
[null,null,null,null,null,null,1727]
[null,null,null,null,null,null,1728]
[null,null,null,null,null,null,1729]
[null,null,null,null,null,null,1730]
[null,null,null,null,null,null,1731]
[null,null,null,null,null,null,1732]
[null,null,null,null,null,null,1733]
[null,null,null,null,null,null,1734]
[null,null,null,null,null,null,1735]
[null,null,null,null,null,null,1736]
[null,null,null,null,null,null,1737]
[null,null,null,null,null,null,1738]
[null,null,null,null,null,null,1739]
[null,null,null,null,null,null,1740]
[null,null,null,null,null,null,1741]
[null,null,null,null,null,null,1742]
[null,null,null,null,null,null,1743]
[null,null,null,null,null,null,1744]
[null,null,null,null,null,null,1745]
[null,null,null,null,null,null,1746]
[null,null,null,null,null,null,1747]
[null,null,null,null,null,null,1748]
[null,null,null,null,null,null,1749]
[null,null,null,null,null,null,1750]
[null,null,null,null,null,null,1751]
[null,null,null,null,null,null,1752]
[null,null,null,null,null,null,1753]
[null,null,null,null,null,null,1754]
[null,null,null,null,null,null,1755]
[null,null,null,null,null,null,1756]
[null,null,null,null,null,null,1757]
[null,null,null,null,null,null,1758]
[null,null,null,null,null,null,1759]
[null,null,null,null,null,null,1760]
[null,null,null,null,null,null,1761]
[null,null,null,null,null,null,1762]
[null,null,null,null,null,null,1763]
[null,null,null,null,null,null,1764]
[null,null,null,null,null,null,1765]
[null,null,null,null,null,null,1766]
[null,null,null,null,null,null,1767]
[null,null,null,null,null,null,1768]
[null,null,null,null,null,null,1769]
[null,null,null,null,null,null,1770]
[null,null,null,null,null,null,1771]
[null,null,null,null,null,null,1772]
[null,null,null,null,null,null,1773]
[null,null,null,null,null,null,1774]
[null,null,null,null,null,null,1775]
[null,null,null,null,null,null,1776]
[null,null,null,null,null,null,1777]
[null,null,null,null,null,null,1778]
[null,null,null,null,null,null,1779]
[null,null,null,null,null,null,1780]
[null,null,null,null,null,null,1781]
[null,null,null,null,null,null,1782]
[null,null,null,null,null,null,1783]
[null,null,null,null,null,null,1784]
[null,null,null,null,null,null,1785]
[null,null,null,null,null,null,1786]
[null,null,null,null,null,null,1787]
[null,null,null,null,null,null,1788]
[null,null,null,null,null,null,1789]
[null,null,null,null,null,null,1790]
[null,null,null,null,null,null,1791]
[null,null,null,null,null,null,1792]
[null,null,null,null,null,null,1793]
[null,null,null,null,null,null,1794]
[null,null,null,null,null,null,1795]
[null,null,null,null,null,null,1796]
[null,null,null,null,null,null,1797]
[null,null,null,null,null,null,1798]
[null,null,null,null,null,null,1799]
[null,null,null,null,null,null,1800]
[null,null,null,null,null,null,1801]
[null,null,null,null,null,null,1802]
[null,null,null,null,null,null,1803]
[null,null,null,null,null,null,1804]
[null,null,null,null,null,null,1805]
[null,null,null,null,null,null,1806]
[null,null,null,null,null,null,1807]
[null,null,null,null,null,null,1808]
[null,null,null,null,null,null,1809]
[null,null,null,null,null,null,1810]
[null,null,null,null,null,null,1811]
[null,null,null,null,null,null,1812]
[null,null,null,null,null,null,1813]
[null,null,null,null,null,null,1814]
[null,null,null,null,null,null,1815]
[null,null,null,null,null,null,1816]
[null,null,null,null,null,null,1817]
[null,null,null,null,null,null,1818]
[null,null,null,null,null,null,1819]
[null,null,null,null,null,null,1820]
[null,null,null,null,null,null,1821]
[null,null,null,null,null,null,1822]
[null,null,null,null,null,null,1823]
[null,null,null,null,null,null,1824]
[null,null,null,null,null,null,1825]
[null,null,null,null,null,null,1826]
[null,null,null,null,null,null,1827]
[null,null,null,null,null,null,1828]
[null,null,null,null,null,null,1829]
[null,null,null,null,null,null,1830]
[null,null,null,null,null,null,1831]
[null,null,null,null,null,null,1832]
[null,null,null,null,null,null,1833]
[null,null,null,null,null,null,1834]
[null,null,null,null,null,null,1835]
[null,null,null,null,null,null,1836]
[null,null,null,null,null,null,1837]
[null,null,null,null,null,null,1838]
[null,null,null,null,null,null,1839]
[null,null,null,null,null,null,1840]
[null,null,null,null,null,null,1841]
[null,null,null,null,null,null,1842]
[null,null,null,null,null,null,1843]
[null,null,null,null,null,null,1844]
[null,null,null,null,null,null,1845]
[null,null,null,null,null,null,1846]
[null,null,null,null,null,null,1847]
[null,null,null,null,null,null,1848]
[null,null,null,null,null,null,1849]
[null,null,null,null,null,null,1850]
[null,null,null,null,null,null,1851]
[null,null,null,null,null,null,1852]
[null,null,null,null,null,null,1853]
[null,null,null,null,null,null,1854]
[null,null,null,null,null,null,1855]
[null,null,null,null,null,null,1856]
[null,null,null,null,null,null,1857]
[null,null,null,null,null,null,1858]
[null,null,null,null,null,null,1859]
[null,null,null,null,null,null,1860]
[null,null,null,null,null,null,1861]
[null,null,null,null,null,null,1862]
[null,null,null,null,null,null,1863]
[null,null,null,null,null,null,1864]
[null,null,null,null,null,null,1865]
[null,null,null,null,null,null,1866]
[null,null,null,null,null,null,1867]
[null,null,null,null,null,null,1868]
[null,null,null,null,null,null,1869]
[null,null,null,null,null,null,1870]
[null,null,null,null,null,null,1871]
[null,null,null,null,null,null,1872]
[null,null,null,null,null,null,1873]
[null,null,null,null,null,null,1874]
[null,null,null,null,null,null,1875]
[null,null,null,null,null,null,1876]
[null,null,null,null,null,null,1877]
[null,null,null,null,null,null,1878]
[null,null,null,null,null,null,1879]
[null,null,null,null,null,null,1880]
[null,null,null,null,null,null,1881]
[null,null,null,null,null,null,1882]
[null,null,null,null,null,null,1883]
[null,null,null,null,null,null,1884]
[null,null,null,null,null,null,1885]
[null,null,null,null,null,null,1886]
[null,null,null,null,null,null,1887]
[null,null,null,null,null,null,1888]
[null,null,null,null,null,null,1889]
[null,null,null,null,null,null,1890]
[null,null,null,null,null,null,1891]
[null,null,null,null,null,null,1892]
[null,null,null,null,null,null,1893]
[null,null,null,null,null,null,1894]
[null,null,null,null,null,null,1895]
[null,null,null,null,null,null,1896]
[null,null,null,null,null,null,1897]
[null,null,null,null,null,null,1898]
[null,null,null,null,null,null,1899]
[null,null,null,null,null,null,1900]
[null,null,null,null,null,null,1901]
[null,null,null,null,null,null,1902]
[null,null,null,null,null,null,1903]
[null,null,null,null,null,null,1904]
[null,null,null,null,null,null,1905]
[null,null,null,null,null,null,1906]
[null,null,null,null,null,null,1907]
[null,null,null,null,null,null,1908]
[null,null,null,null,null,null,1909]
[null,null,null,null,null,null,1910]
[null,null,null,null,null,null,1911]
[null,null,null,null,null,null,1912]
[null,null,null,null,null,null,1913]
[null,null,null,null,null,null,1914]
[null,null,null,null,null,null,1915]
[null,null,null,null,null,null,1916]
[null,null,null,null,null,null,1917]
[null,null,null,null,null,null,1918]
[null,null,null,null,null,null,1919]
[null,null,null,null,null,null,1920]
[null,null,null,null,null,null,1921]
[null,null,null,null,null,null,1922]
[null,null,null,null,null,null,1923]
[null,null,null,null,null,null,1924]
[null,null,null,null,null,null,1925]
[null,null,null,null,null,null,1926]
[null,null,null,null,null,null,1927]
[null,null,null,null,null,null,1928]
[null,null,null,null,null,null,1929]
[null,null,null,null,null,null,1930]
[null,null,null,null,null,null,1931]
[null,null,null,null,null,null,1932]
[null,null,null,null,null,null,1933]
[null,null,null,null,null,null,1934]
[null,null,null,null,null,null,1935]
[null,null,null,null,null,null,1936]
[null,null,null,null,null,null,1937]
[null,null,null,null,null,null,1938]
[null,null,null,null,null,null,1939]
[null,null,null,null,null,null,1940]
[null,null,null,null,null,null,1941]
[null,null,null,null,null,null,1942]
[null,null,null,null,null,null,1943]
[null,null,null,null,null,null,1944]
[null,null,null,null,null,null,1945]
[null,null,null,null,null,null,1946]
[null,null,null,null,null,null,1947]
[null,null,null,null,null,null,1948]
[null,null,null,null,null,null,1949]
[null,null,null,null,null,null,1950]
[null,null,null,null,null,null,1951]
[null,null,null,null,null,null,1952]
[null,null,null,null,null,null,1953]
[null,null,null,null,null,null,1954]
[null,null,null,null,null,null,1955]
[null,null,null,null,null,null,1956]
[null,null,null,null,null,null,1957]
[null,null,null,null,null,null,1958]
[null,null,null,null,null,null,1959]
[null,null,null,null,null,null,1960]
[null,null,null,null,null,null,1961]
[null,null,null,null,null,null,1962]
[null,null,null,null,null,null,1963]
[null,null,null,null,null,null,1964]
[null,null,null,null,null,null,1965]
[null,null,null,null,null,null,1966]
[null,null,null,null,null,null,1967]
[null,null,null,null,null,null,1968]
[null,null,null,null,null,null,1969]
[null,null,null,null,null,null,1970]
[null,null,null,null,null,null,1971]
[null,null,null,null,null,null,1972]
[null,null,null,null,null,null,1973]
[null,null,null,null,null,null,1974]
[null,null,null,null,null,null,1975]
[null,null,null,null,null,null,1976]
[null,null,null,null,null,null,1977]
[null,null,null,null,null,null,1978]
[null,null,null,null,null,null,1979]
[null,null,null,null,null,null,1980]
[null,null,null,null,null,null,1981]
[null,null,null,null,null,null,1982]
[null,null,null,null,null,null,1983]
[null,null,null,null,null,null,1984]
[null,null,null,null,null,null,1985]
[null,null,null,null,null,null,1986]
[null,null,null,null,null,null,1987]
[null,null,null,null,null,null,1988]
[null,null,null,null,null,null,1989]
[null,null,null,null,null,null,1990]
[null,null,null,null,null,null,1991]
[null,null,null,null,null,null,1992]
[null,null,null,null,null,null,1993]
[null,null,null,null,null,null,1994]
[null,null,null,null,null,null,1995]
[null,null,null,null,null,null,1996]
[null,null,null,null,null,null,1997]
[null,null,null,null,null,null,1998]
[null,null,null,null,null,null,1999]
[null,null,null,null,null,null,2000]
[null,null,null,null,null,null,2001]
[null,null,null,null,null,null,2002]
[null,null,null,null,null,null,2003]
[null,null,null,null,null,null,2004]
[null,null,null,null,null,null,2005]
[null,null,null,null,null,null,2006]
[null,null,null,null,null,null,2007]
[null,null,null,null,null,null,2008]
[null,null,null,null,null,null,2009]
[null,null,null,null,null,null,2010]
[null,null,null,null,null,null,2011]
[null,null,null,null,null,null,2012]
[null,null,null,null,null,null,2013]
[null,null,null,null,null,null,2014]
[null,null,null,null,null,null,2015]
[null,null,null,null,null,null,2016]
[null,null,null,null,null,null,2017]
[null,null,null,null,null,null,2018]
[null,null,null,null,null,null,2019]
[null,null,null,null,null,null,2020]
[null,null,null,null,null,null,2021]
[null,null,null,null,null,null,2022]
[null,null,null,null,null,null,2023]
[null,null,null,null,null,null,2024]
[null,null,null,null,null,null,2025]
[null,null,null,null,null,null,2026]
[null,null,null,null,null,null,2027]
[null,null,null,null,null,null,2028]
[null,null,null,null,null,null,2029]
[null,null,null,null,null,null,2030]
[null,null,null,null,null,null,2031]
[null,null,null,null,null,null,2032]
[null,null,null,null,null,null,2033]
[null,null,null,null,null,null,2034]
[null,null,null,null,null,null,2035]
[null,null,null,null,null,null,2036]
[null,null,null,null,null,null,2037]
[null,null,null,null,null,null,2038]
[null,null,null,null,null,null,2039]
[null,null,null,null,null,null,2040]
[null,null,null,null,null,null,2041]
[null,null,null,null,null,null,2042]
[null,null,null,null,null,null,2043]
[null,null,null,null,null,null,2044]
[null,null,null,null,null,null,2045]
[null,null,null,null,null,null,2046]
[null,null,null,null,null,null,2047]
[null,null,null,null,null,null,2048]
[null,null,null,null,null,null,2049]
[null,null,null,null,null,null,2050]
[null,null,null,null,null,null,2051]
[null,null,null,null,null,null,2052]
[null,null,null,null,null,null,2053]
[null,null,null,null,null,null,2054]
[null,null,null,null,null,null,2055]
[null,null,null,null,null,null,2056]
[null,null,null,null,null,null,2057]
[null,null,null,null,null,null,2058]
[null,null,null,null,null,null,2059]
[null,null,null,null,null,null,2060]
[null,null,null,null,null,null,2061]
[null,null,null,null,null,null,2062]
[null,null,null,null,null,null,2063]
[null,null,null,null,null,null,2064]
[null,null,null,null,null,null,2065]
[null,null,null,null,null,null,2066]
[null,null,null,null,null,null,2067]
[null,null,null,null,null,null,2068]
[null,null,null,null,null,null,2069]
[null,null,null,null,null,null,2070]
[null,null,null,null,null,null,2071]
[null,null,null,null,null,null,2072]
[null,null,null,null,null,null,2073]
[null,null,null,null,null,null,2074]
[null,null,null,null,null,null,2075]
[null,null,null,null,null,null,2076]
[null,null,null,null,null,null,2077]
[null,null,null,null,null,null,2078]
[null,null,null,null,null,null,2079]
[null,null,null,null,null,null,2080]
[null,null,null,null,null,null,2081]
[null,null,null,null,null,null,2082]
[null,null,null,null,null,null,2083]
[null,null,null,null,null,null,2084]
[null,null,null,null,null,null,2085]
[null,null,null,null,null,null,2086]
[null,null,null,null,null,null,2087]
[null,null,null,null,null,null,2088]
[null,null,null,null,null,null,2089]
[null,null,null,null,null,null,2090]
[null,null,null,null,null,null,2091]
[null,null,null,null,null,null,2092]
[null,null,null,null,null,null,2093]
[null,null,null,null,null,null,2094]
[null,null,null,null,null,null,2095]
[null,null,null,null,null,null,2096]
[null,null,null,null,null,null,2097]
[null,null,null,null,null,null,2098]
[null,null,null,null,null,null,2099]
[null,null,null,null,null,null,2100]
[null,null,null,null,null,null,2101]
[null,null,null,null,null,null,2102]
[null,null,null,null,null,null,2103]
[null,null,null,null,null,null,2104]
[null,null,null,null,null,null,2105]
[null,null,null,null,null,null,2106]
[null,null,null,null,null,null,2107]
[null,null,null,null,null,null,2108]
[null,null,null,null,null,null,2109]
[null,null,null,null,null,null,2110]
[null,null,null,null,null,null,2111]
[null,null,null,null,null,null,2112]
[null,null,null,null,null,null,2113]
[null,null,null,null,null,null,2114]
[null,null,null,null,null,null,2115]
[null,null,null,null,null,null,2116]
[null,null,null,null,null,null,2117]
[null,null,null,null,null,null,2118]
[null,null,null,null,null,null,2119]
[null,null,null,null,null,null,2120]
[null,null,null,null,null,null,2121]
[null,null,null,null,null,null,2122]
[null,null,null,null,null,null,2123]
[null,null,null,null,null,null,2124]
[null,null,null,null,null,null,2125]
[null,null,null,null,null,null,2126]
[null,null,null,null,null,null,2127]
[null,null,null,null,null,null,2128]
[null,null,null,null,null,null,2129]
[null,null,null,null,null,null,2130]
[null,null,null,null,null,null,2131]
[null,null,null,null,null,null,2132]
[null,null,null,null,null,null,2133]
[null,null,null,null,null,null,2134]
[null,null,null,null,null,null,2135]
[null,null,null,null,null,null,2136]
[null,null,null,null,null,null,2137]
[null,null,null,null,null,null,2138]
[null,null,null,null,null,null,2139]
[null,null,null,null,null,null,2140]
[null,null,null,null,null,null,2141]
[null,null,null,null,null,null,2142]
[null,null,null,null,null,null,2143]
[null,null,null,null,null,null,2144]
[null,null,null,null,null,null,2145]
[null,null,null,null,null,null,2146]
[null,null,null,null,null,null,2147]
[null,null,null,null,null,null,2148]
[null,null,null,null,null,null,2149]
[null,null,null,null,null,null,2150]
[null,null,null,null,null,null,2151]
[null,null,null,null,null,null,2152]
[null,null,null,null,null,null,2153]
[null,null,null,null,null,null,2154]
[null,null,null,null,null,null,2155]
[null,null,null,null,null,null,2156]
[null,null,null,null,null,null,2157]
[null,null,null,null,null,null,2158]
[null,null,null,null,null,null,2159]
[null,null,null,null,null,null,2160]
[null,null,null,null,null,null,2161]
[null,null,null,null,null,null,2162]
[null,null,null,null,null,null,2163]
[null,null,null,null,null,null,2164]
[null,null,null,null,null,null,2165]
[null,null,null,null,null,null,2166]
[null,null,null,null,null,null,2167]
[null,null,null,null,null,null,2168]
[null,null,null,null,null,null,2169]
[null,null,null,null,null,null,2170]
[null,null,null,null,null,null,2171]
[null,null,null,null,null,null,2172]
[null,null,null,null,null,null,2173]
[null,null,null,null,null,null,2174]
[null,null,null,null,null,null,2175]
[null,null,null,null,null,null,2176]
[null,null,null,null,null,null,2177]
[null,null,null,null,null,null,2178]
[null,null,null,null,null,null,2179]
[null,null,null,null,null,null,2180]
[null,null,null,null,null,null,2181]
[null,null,null,null,null,null,2182]
[null,null,null,null,null,null,2183]
[null,null,null,null,null,null,2184]
[null,null,null,null,null,null,2185]
[null,null,null,null,null,null,2186]
[null,null,null,null,null,null,2187]
[null,null,null,null,null,null,2188]
[null,null,null,null,null,null,2189]
[null,null,null,null,null,null,2190]
[null,null,null,null,null,null,2191]
[null,null,null,null,null,null,2192]
[null,null,null,null,null,null,2193]
[null,null,null,null,null,null,2194]
[null,null,null,null,null,null,2195]
[null,null,null,null,null,null,2196]
[null,null,null,null,null,null,2197]
[null,null,null,null,null,null,2198]
[null,null,null,null,null,null,2199]
[null,null,null,null,null,null,2200]
[null,null,null,null,null,null,2201]
[null,null,null,null,null,null,2202]
[null,null,null,null,null,null,2203]
[null,null,null,null,null,null,2204]
[null,null,null,null,null,null,2205]
[null,null,null,null,null,null,2206]
[null,null,null,null,null,null,2207]
[null,null,null,null,null,null,2208]
[null,null,null,null,null,null,2209]
[null,null,null,null,null,null,2210]
[null,null,null,null,null,null,2211]
[null,null,null,null,null,null,2212]
[null,null,null,null,null,null,2213]
[null,null,null,null,null,null,2214]
[null,null,null,null,null,null,2215]
[null,null,null,null,null,null,2216]
[null,null,null,null,null,null,2217]
[null,null,null,null,null,null,2218]
[null,null,null,null,null,null,2219]
[null,null,null,null,null,null,2220]
[null,null,null,null,null,null,2221]
[null,null,null,null,null,null,2222]
[null,null,null,null,null,null,2223]
[null,null,null,null,null,null,2224]
[null,null,null,null,null,null,2225]
[null,null,null,null,null,null,2226]
[null,null,null,null,null,null,2227]
[null,null,null,null,null,null,2228]
[null,null,null,null,null,null,2229]
[null,null,null,null,null,null,2230]
[null,null,null,null,null,null,2231]
[null,null,null,null,null,null,2232]
[null,null,null,null,null,null,2233]
[null,null,null,null,null,null,2234]
[null,null,null,null,null,null,2235]
[null,null,null,null,null,null,2236]
[null,null,null,null,null,null,2237]
[null,null,null,null,null,null,2238]
[null,null,null,null,null,null,2239]
[null,null,null,null,null,null,2240]
[null,null,null,null,null,null,2241]
[null,null,null,null,null,null,2242]
[null,null,null,null,null,null,2243]
[null,null,null,null,null,null,2244]
[null,null,null,null,null,null,2245]
[null,null,null,null,null,null,2246]
[null,null,null,null,null,null,2247]
[null,null,null,null,null,null,2248]
[null,null,null,null,null,null,2249]
[null,null,null,null,null,null,2250]
[null,null,null,null,null,null,2251]
[null,null,null,null,null,null,2252]
[null,null,null,null,null,null,2253]
[null,null,null,null,null,null,2254]
[null,null,null,null,null,null,2255]
[null,null,null,null,null,null,2256]
[null,null,null,null,null,null,2257]
[null,null,null,null,null,null,2258]
[null,null,null,null,null,null,2259]
[null,null,null,null,null,null,2260]
[null,null,null,null,null,null,2261]
[null,null,null,null,null,null,2262]
[null,null,null,null,null,null,2263]
[null,null,null,null,null,null,2264]
[null,null,null,null,null,null,2265]
[null,null,null,null,null,null,2266]
[null,null,null,null,null,null,2267]
[null,null,null,null,null,null,2268]
[null,null,null,null,null,null,2269]
[null,null,null,null,null,null,2270]
[null,null,null,null,null,null,2271]
[null,null,null,null,null,null,2272]
[null,null,null,null,null,null,2273]
[null,null,null,null,null,null,2274]
[null,null,null,null,null,null,2275]
[null,null,null,null,null,null,2276]
[null,null,null,null,null,null,2277]
[null,null,null,null,null,null,2278]
[null,null,null,null,null,null,2279]
[null,null,null,null,null,null,2280]
[null,null,null,null,null,null,2281]
[null,null,null,null,null,null,2282]
[null,null,null,null,null,null,2283]
[null,null,null,null,null,null,2284]
[null,null,null,null,null,null,2285]
[null,null,null,null,null,null,2286]
[null,null,null,null,null,null,2287]
[null,null,null,null,null,null,2288]
[null,null,null,null,null,null,2289]
[null,null,null,null,null,null,2290]
[null,null,null,null,null,null,2291]
[null,null,null,null,null,null,2292]
[null,null,null,null,null,null,2293]
[null,null,null,null,null,null,2294]
[null,null,null,null,null,null,2295]
[null,null,null,null,null,null,2296]
[null,null,null,null,null,null,2297]
[null,null,null,null,null,null,2298]
[null,null,null,null,null,null,2299]
[null,null,null,null,null,null,2300]
[null,null,null,null,null,null,2301]
[null,null,null,null,null,null,2302]
[null,null,null,null,null,null,2303]
[null,null,null,null,null,null,2304]
[null,null,null,null,null,null,2305]
[null,null,null,null,null,null,2306]
[null,null,null,null,null,null,2307]
[null,null,null,null,null,null,2308]
[null,null,null,null,null,null,2309]
[null,null,null,null,null,null,2310]
[null,null,null,null,null,null,2311]
[null,null,null,null,null,null,2312]
[null,null,null,null,null,null,2313]
[null,null,null,null,null,null,2314]
[null,null,null,null,null,null,2315]
[null,null,null,null,null,null,2316]
[null,null,null,null,null,null,2317]
[null,null,null,null,null,null,2318]
[null,null,null,null,null,null,2319]
[null,null,null,null,null,null,2320]
[null,null,null,null,null,null,2321]
[null,null,null,null,null,null,2322]
[null,null,null,null,null,null,2323]
[null,null,null,null,null,null,2324]
[null,null,null,null,null,null,2325]
[null,null,null,null,null,null,2326]
[null,null,null,null,null,null,2327]
[null,null,null,null,null,null,2328]
[null,null,null,null,null,null,2329]
[null,null,null,null,null,null,2330]
[null,null,null,null,null,null,2331]
[null,null,null,null,null,null,2332]
[null,null,null,null,null,null,2333]
[null,null,null,null,null,null,2334]
[null,null,null,null,null,null,2335]
[null,null,null,null,null,null,2336]
[null,null,null,null,null,null,2337]
[null,null,null,null,null,null,2338]
[null,null,null,null,null,null,2339]
[null,null,null,null,null,null,2340]
[null,null,null,null,null,null,2341]
[null,null,null,null,null,null,2342]
[null,null,null,null,null,null,2343]
[null,null,null,null,null,null,2344]
[null,null,null,null,null,null,2345]
[null,null,null,null,null,null,2346]
[null,null,null,null,null,null,2347]
[null,null,null,null,null,null,2348]
[null,null,null,null,null,null,2349]
[null,null,null,null,null,null,2350]
[null,null,null,null,null,null,2351]
[null,null,null,null,null,null,2352]
[null,null,null,null,null,null,2353]
[null,null,null,null,null,null,2354]
[null,null,null,null,null,null,2355]
[null,null,null,null,null,null,2356]
[null,null,null,null,null,null,2357]
[null,null,null,null,null,null,2358]
[null,null,null,null,null,null,2359]
[null,null,null,null,null,null,2360]
[null,null,null,null,null,null,2361]
[null,null,null,null,null,null,2362]
[null,null,null,null,null,null,2363]
[null,null,null,null,null,null,2364]
[null,null,null,null,null,null,2365]
[null,null,null,null,null,null,2366]
[null,null,null,null,null,null,2367]
[null,null,null,null,null,null,2368]
[null,null,null,null,null,null,2369]
[null,null,null,null,null,null,2370]
[null,null,null,null,null,null,2371]
[null,null,null,null,null,null,2372]
[null,null,null,null,null,null,2373]
[null,null,null,null,null,null,2374]
[null,null,null,null,null,null,2375]
[null,null,null,null,null,null,2376]
[null,null,null,null,null,null,2377]
[null,null,null,null,null,null,2378]
[null,null,null,null,null,null,2379]
[null,null,null,null,null,null,2380]
[null,null,null,null,null,null,2381]
[null,null,null,null,null,null,2382]
[null,null,null,null,null,null,2383]
[null,null,null,null,null,null,2384]
[null,null,null,null,null,null,2385]
[null,null,null,null,null,null,2386]
[null,null,null,null,null,null,2387]
[null,null,null,null,null,null,2388]
[null,null,null,null,null,null,2389]
[null,null,null,null,null,null,2390]
[null,null,null,null,null,null,2391]
[null,null,null,null,null,null,2392]
[null,null,null,null,null,null,2393]
[null,null,null,null,null,null,2394]
[null,null,null,null,null,null,2395]
[null,null,null,null,null,null,2396]
[null,null,null,null,null,null,2397]
[null,null,null,null,null,null,2398]
[null,null,null,null,null,null,2399]
[null,null,null,null,null,null,2400]
[null,null,null,null,null,null,2401]
[null,null,null,null,null,null,2402]
[null,null,null,null,null,null,2403]
[null,null,null,null,null,null,2404]
[null,null,null,null,null,null,2405]
[null,null,null,null,null,null,2406]
[null,null,null,null,null,null,2407]
[null,null,null,null,null,null,2408]
[null,null,null,null,null,null,2409]
[null,null,null,null,null,null,2410]
[null,null,null,null,null,null,2411]
[null,null,null,null,null,null,2412]
[null,null,null,null,null,null,2413]
[null,null,null,null,null,null,2414]
[null,null,null,null,null,null,2415]
[null,null,null,null,null,null,2416]
[null,null,null,null,null,null,2417]
[null,null,null,null,null,null,2418]
[null,null,null,null,null,null,2419]
[null,null,null,null,null,null,2420]
[null,null,null,null,null,null,2421]
[null,null,null,null,null,null,2422]
[null,null,null,null,null,null,2423]
[null,null,null,null,null,null,2424]
[null,null,null,null,null,null,2425]
[null,null,null,null,null,null,2426]
[null,null,null,null,null,null,2427]
[null,null,null,null,null,null,2428]
[null,null,null,null,null,null,2429]
[null,null,null,null,null,null,2430]
[null,null,null,null,null,null,2431]
[null,null,null,null,null,null,2432]
[null,null,null,null,null,null,2433]
[null,null,null,null,null,null,2434]
[null,null,null,null,null,null,2435]
[null,null,null,null,null,null,2436]
[null,null,null,null,null,null,2437]
[null,null,null,null,null,null,2438]
[null,null,null,null,null,null,2439]
[null,null,null,null,null,null,2440]
[null,null,null,null,null,null,2441]
[null,null,null,null,null,null,2442]
[null,null,null,null,null,null,2443]
[null,null,null,null,null,null,2444]
[null,null,null,null,null,null,2445]
[null,null,null,null,null,null,2446]
[null,null,null,null,null,null,2447]
[null,null,null,null,null,null,2448]
[null,null,null,null,null,null,2449]
[null,null,null,null,null,null,2450]
[null,null,null,null,null,null,2451]
[null,null,null,null,null,null,2452]
[null,null,null,null,null,null,2453]
[null,null,null,null,null,null,2454]
[null,null,null,null,null,null,2455]
[null,null,null,null,null,null,2456]
[null,null,null,null,null,null,2457]
[null,null,null,null,null,null,2458]
[null,null,null,null,null,null,2459]
[null,null,null,null,null,null,2460]
[null,null,null,null,null,null,2461]
[null,null,null,null,null,null,2462]
[null,null,null,null,null,null,2463]
[null,null,null,null,null,null,2464]
[null,null,null,null,null,null,2465]
[null,null,null,null,null,null,2466]
[null,null,null,null,null,null,2467]
[null,null,null,null,null,null,2468]
[null,null,null,null,null,null,2469]
[null,null,null,null,null,null,2470]
[null,null,null,null,null,null,2471]
[null,null,null,null,null,null,2472]
[null,null,null,null,null,null,2473]
[null,null,null,null,null,null,2474]
[null,null,null,null,null,null,2475]
[null,null,null,null,null,null,2476]
[null,null,null,null,null,null,2477]
[null,null,null,null,null,null,2478]
[null,null,null,null,null,null,2479]
[null,null,null,null,null,null,2480]
[null,null,null,null,null,null,2481]
[null,null,null,null,null,null,2482]
[null,null,null,null,null,null,2483]
[null,null,null,null,null,null,2484]
[null,null,null,null,null,null,2485]
[null,null,null,null,null,null,2486]
[null,null,null,null,null,null,2487]
[null,null,null,null,null,null,2488]
[null,null,null,null,null,null,2489]
[null,null,null,null,null,null,2490]
[null,null,null,null,null,null,2491]
[null,null,null,null,null,null,2492]
[null,null,null,null,null,null,2493]
[null,null,null,null,null,null,2494]
[null,null,null,null,null,null,2495]
[null,null,null,null,null,null,2496]
[null,null,null,null,null,null,2497]
[null,null,null,null,null,null,2498]
[null,null,null,null,null,null,2499]
[null,null,null,null,null,null,2500]
[null,null,null,null,null,null,2501]
[null,null,null,null,null,null,2502]
[null,null,null,null,null,null,2503]
[null,null,null,null,null,null,2504]
[null,null,null,null,null,null,2505]
[null,null,null,null,null,null,2506]
[null,null,null,null,null,null,2507]
[null,null,null,null,null,null,2508]
[null,null,null,null,null,null,2509]
[null,null,null,null,null,null,2510]
[null,null,null,null,null,null,2511]
[null,null,null,null,null,null,2512]
[null,null,null,null,null,null,2513]
[null,null,null,null,null,null,2514]
[null,null,null,null,null,null,2515]
[null,null,null,null,null,null,2516]
[null,null,null,null,null,null,2517]
[null,null,null,null,null,null,2518]
[null,null,null,null,null,null,2519]
[null,null,null,null,null,null,2520]
[null,null,null,null,null,null,2521]
[null,null,null,null,null,null,2522]
[null,null,null,null,null,null,2523]
[null,null,null,null,null,null,2524]
[null,null,null,null,null,null,2525]
[null,null,null,null,null,null,2526]
[null,null,null,null,null,null,2527]
[null,null,null,null,null,null,2528]
[null,null,null,null,null,null,2529]
[null,null,null,null,null,null,2530]
[null,null,null,null,null,null,2531]
[null,null,null,null,null,null,2532]
[null,null,null,null,null,null,2533]
[null,null,null,null,null,null,2534]
[null,null,null,null,null,null,2535]
[null,null,null,null,null,null,2536]
[null,null,null,null,null,null,2537]
[null,null,null,null,null,null,2538]
[null,null,null,null,null,null,2539]
[null,null,null,null,null,null,2540]
[null,null,null,null,null,null,2541]
[null,null,null,null,null,null,2542]
[null,null,null,null,null,null,2543]
[null,null,null,null,null,null,2544]
[null,null,null,null,null,null,2545]
[null,null,null,null,null,null,2546]
[null,null,null,null,null,null,2547]
[null,null,null,null,null,null,2548]
[null,null,null,null,null,null,2549]
[null,null,null,null,null,null,2550]
[null,null,null,null,null,null,2551]
[null,null,null,null,null,null,2552]
[null,null,null,null,null,null,2553]
[null,null,null,null,null,null,2554]
[null,null,null,null,null,null,2555]
[null,null,null,null,null,null,2556]
[null,null,null,null,null,null,2557]
[null,null,null,null,null,null,2558]
[null,null,null,null,null,null,2559]
[null,null,null,null,null,null,2560]
[null,null,null,null,null,null,2561]
[null,null,null,null,null,null,2562]
[null,null,null,null,null,null,2563]
[null,null,null,null,null,null,2564]
[null,null,null,null,null,null,2565]
[null,null,null,null,null,null,2566]
[null,null,null,null,null,null,2567]
[null,null,null,null,null,null,2568]
[null,null,null,null,null,null,2569]
[null,null,null,null,null,null,2570]
[null,null,null,null,null,null,2571]
[null,null,null,null,null,null,2572]
[null,null,null,null,null,null,2573]
[null,null,null,null,null,null,2574]
[null,null,null,null,null,null,2575]
[null,null,null,null,null,null,2576]
[null,null,null,null,null,null,2577]
[null,null,null,null,null,null,2578]
[null,null,null,null,null,null,2579]
[null,null,null,null,null,null,2580]
[null,null,null,null,null,null,2581]
[null,null,null,null,null,null,2582]
[null,null,null,null,null,null,2583]
[null,null,null,null,null,null,2584]
[null,null,null,null,null,null,2585]
[null,null,null,null,null,null,2586]
[null,null,null,null,null,null,2587]
[null,null,null,null,null,null,2588]
[null,null,null,null,null,null,2589]
[null,null,null,null,null,null,2590]
[null,null,null,null,null,null,2591]
[null,null,null,null,null,null,2592]
[null,null,null,null,null,null,2593]
[null,null,null,null,null,null,2594]
[null,null,null,null,null,null,2595]
[null,null,null,null,null,null,2596]
[null,null,null,null,null,null,2597]
[null,null,null,null,null,null,2598]
[null,null,null,null,null,null,2599]
[null,null,null,null,null,null,2600]
[null,null,null,null,null,null,2601]
[null,null,null,null,null,null,2602]
[null,null,null,null,null,null,2603]
[null,null,null,null,null,null,2604]
[null,null,null,null,null,null,2605]
[null,null,null,null,null,null,2606]
[null,null,null,null,null,null,2607]
[null,null,null,null,null,null,2608]
[null,null,null,null,null,null,2609]
[null,null,null,null,null,null,2610]
[null,null,null,null,null,null,2611]
[null,null,null,null,null,null,2612]
[null,null,null,null,null,null,2613]
[null,null,null,null,null,null,2614]
[null,null,null,null,null,null,2615]
[null,null,null,null,null,null,2616]
[null,null,null,null,null,null,2617]
[null,null,null,null,null,null,2618]
[null,null,null,null,null,null,2619]
[null,null,null,null,null,null,2620]
[null,null,null,null,null,null,2621]
[null,null,null,null,null,null,2622]
[null,null,null,null,null,null,2623]
[null,null,null,null,null,null,2624]
[null,null,null,null,null,null,2625]
[null,null,null,null,null,null,2626]
[null,null,null,null,null,null,2627]
[null,null,null,null,null,null,2628]
[null,null,null,null,null,null,2629]
[null,null,null,null,null,null,2630]
[null,null,null,null,null,null,2631]
[null,null,null,null,null,null,2632]
[null,null,null,null,null,null,2633]
[null,null,null,null,null,null,2634]
[null,null,null,null,null,null,2635]
[null,null,null,null,null,null,2636]
[null,null,null,null,null,null,2637]
[null,null,null,null,null,null,2638]
[null,null,null,null,null,null,2639]
[null,null,null,null,null,null,2640]
[null,null,null,null,null,null,2641]
[null,null,null,null,null,null,2642]
[null,null,null,null,null,null,2643]
[null,null,null,null,null,null,2644]
[null,null,null,null,null,null,2645]
[null,null,null,null,null,null,2646]
[null,null,null,null,null,null,2647]
[null,null,null,null,null,null,2648]
[null,null,null,null,null,null,2649]
[null,null,null,null,null,null,2650]
[null,null,null,null,null,null,2651]
[null,null,null,null,null,null,2652]
[null,null,null,null,null,null,2653]
[null,null,null,null,null,null,2654]
[null,null,null,null,null,null,2655]
[null,null,null,null,null,null,2656]
[null,null,null,null,null,null,2657]
[null,null,null,null,null,null,2658]
[null,null,null,null,null,null,2659]
[null,null,null,null,null,null,2660]
[null,null,null,null,null,null,2661]
[null,null,null,null,null,null,2662]
[null,null,null,null,null,null,2663]
[null,null,null,null,null,null,2664]
[null,null,null,null,null,null,2665]
[null,null,null,null,null,null,2666]
[null,null,null,null,null,null,2667]
[null,null,null,null,null,null,2668]
[null,null,null,null,null,null,2669]
[null,null,null,null,null,null,2670]
[null,null,null,null,null,null,2671]
[null,null,null,null,null,null,2672]
[null,null,null,null,null,null,2673]
[null,null,null,null,null,null,2674]
[null,null,null,null,null,null,2675]
[null,null,null,null,null,null,2676]
[null,null,null,null,null,null,2677]
[null,null,null,null,null,null,2678]
[null,null,null,null,null,null,2679]
[null,null,null,null,null,null,2680]
[null,null,null,null,null,null,2681]
[null,null,null,null,null,null,2682]
[null,null,null,null,null,null,2683]
[null,null,null,null,null,null,2684]
[null,null,null,null,null,null,2685]
[null,null,null,null,null,null,2686]
[null,null,null,null,null,null,2687]
[null,null,null,null,null,null,2688]
[null,null,null,null,null,null,2689]
[null,null,null,null,null,null,2690]
[null,null,null,null,null,null,2691]
[null,null,null,null,null,null,2692]
[null,null,null,null,null,null,2693]
[null,null,null,null,null,null,2694]
[null,null,null,null,null,null,2695]
[null,null,null,null,null,null,2696]
[null,null,null,null,null,null,2697]
[null,null,null,null,null,null,2698]
[null,null,null,null,null,null,2699]
[null,null,null,null,null,null,2700]
[null,null,null,null,null,null,2701]
[null,null,null,null,null,null,2702]
[null,null,null,null,null,null,2703]
[null,null,null,null,null,null,2704]
[null,null,null,null,null,null,2705]
[null,null,null,null,null,null,2706]
[null,null,null,null,null,null,2707]
[null,null,null,null,null,null,2708]
[null,null,null,null,null,null,2709]
[null,null,null,null,null,null,2710]
[null,null,null,null,null,null,2711]
[null,null,null,null,null,null,2712]
[null,null,null,null,null,null,2713]
[null,null,null,null,null,null,2714]
[null,null,null,null,null,null,2715]
[null,null,null,null,null,null,2716]
[null,null,null,null,null,null,2717]
[null,null,null,null,null,null,2718]
[null,null,null,null,null,null,2719]
[null,null,null,null,null,null,2720]
[null,null,null,null,null,null,2721]
[null,null,null,null,null,null,2722]
[null,null,null,null,null,null,2723]
[null,null,null,null,null,null,2724]
[null,null,null,null,null,null,2725]
[null,null,null,null,null,null,2726]
[null,null,null,null,null,null,2727]
[null,null,null,null,null,null,2728]
[null,null,null,null,null,null,2729]
[null,null,null,null,null,null,2730]
[null,null,null,null,null,null,2731]
[null,null,null,null,null,null,2732]
[null,null,null,null,null,null,2733]
[null,null,null,null,null,null,2734]
[null,null,null,null,null,null,2735]
[null,null,null,null,null,null,2736]
[null,null,null,null,null,null,2737]
[null,null,null,null,null,null,2738]
[null,null,null,null,null,null,2739]
[null,null,null,null,null,null,2740]
[null,null,null,null,null,null,2741]
[null,null,null,null,null,null,2742]
[null,null,null,null,null,null,2743]
[null,null,null,null,null,null,2744]
[null,null,null,null,null,null,2745]
[null,null,null,null,null,null,2746]
[null,null,null,null,null,null,2747]
[null,null,null,null,null,null,2748]
[null,null,null,null,null,null,2749]
[null,null,null,null,null,null,2750]
[null,null,null,null,null,null,2751]
[null,null,null,null,null,null,2752]
[null,null,null,null,null,null,2753]
[null,null,null,null,null,null,2754]
[null,null,null,null,null,null,2755]
[null,null,null,null,null,null,2756]
[null,null,null,null,null,null,2757]
[null,null,null,null,null,null,2758]
[null,null,null,null,null,null,2759]
[null,null,null,null,null,null,2760]
[null,null,null,null,null,null,2761]
[null,null,null,null,null,null,2762]
[null,null,null,null,null,null,2763]
[null,null,null,null,null,null,2764]
[null,null,null,null,null,null,2765]
[null,null,null,null,null,null,2766]
[null,null,null,null,null,null,2767]
[null,null,null,null,null,null,2768]
[null,null,null,null,null,null,2769]
[null,null,null,null,null,null,2770]
[null,null,null,null,null,null,2771]
[null,null,null,null,null,null,2772]
[null,null,null,null,null,null,2773]
[null,null,null,null,null,null,2774]
[null,null,null,null,null,null,2775]
[null,null,null,null,null,null,2776]
[null,null,null,null,null,null,2777]
[null,null,null,null,null,null,2778]
[null,null,null,null,null,null,2779]
[null,null,null,null,null,null,2780]
[null,null,null,null,null,null,2781]
[null,null,null,null,null,null,2782]
[null,null,null,null,null,null,2783]
[null,null,null,null,null,null,2784]
[null,null,null,null,null,null,2785]
[null,null,null,null,null,null,2786]
[null,null,null,null,null,null,2787]
[null,null,null,null,null,null,2788]
[null,null,null,null,null,null,2789]
[null,null,null,null,null,null,2790]
[null,null,null,null,null,null,2791]
[null,null,null,null,null,null,2792]
[null,null,null,null,null,null,2793]
[null,null,null,null,null,null,2794]
[null,null,null,null,null,null,2795]
[null,null,null,null,null,null,2796]
[null,null,null,null,null,null,2797]
[null,null,null,null,null,null,2798]
[null,null,null,null,null,null,2799]
[null,null,null,null,null,null,2800]
[null,null,null,null,null,null,2801]
[null,null,null,null,null,null,2802]
[null,null,null,null,null,null,2803]
[null,null,null,null,null,null,2804]
[null,null,null,null,null,null,2805]
[null,null,null,null,null,null,2806]
[null,null,null,null,null,null,2807]
[null,null,null,null,null,null,2808]
[null,null,null,null,null,null,2809]
[null,null,null,null,null,null,2810]
[null,null,null,null,null,null,2811]
[null,null,null,null,null,null,2812]
[null,null,null,null,null,null,2813]
[null,null,null,null,null,null,2814]
[null,null,null,null,null,null,2815]
[null,null,null,null,null,null,2816]
[null,null,null,null,null,null,2817]
[null,null,null,null,null,null,2818]
[null,null,null,null,null,null,2819]
[null,null,null,null,null,null,2820]
[null,null,null,null,null,null,2821]
[null,null,null,null,null,null,2822]
[null,null,null,null,null,null,2823]
[null,null,null,null,null,null,2824]
[null,null,null,null,null,null,2825]
[null,null,null,null,null,null,2826]
[null,null,null,null,null,null,2827]
[null,null,null,null,null,null,2828]
[null,null,null,null,null,null,2829]
[null,null,null,null,null,null,2830]
[null,null,null,null,null,null,2831]
[null,null,null,null,null,null,2832]
[null,null,null,null,null,null,2833]
[null,null,null,null,null,null,2834]
[null,null,null,null,null,null,2835]
[null,null,null,null,null,null,2836]
[null,null,null,null,null,null,2837]
[null,null,null,null,null,null,2838]
[null,null,null,null,null,null,2839]
[null,null,null,null,null,null,2840]
[null,null,null,null,null,null,2841]
[null,null,null,null,null,null,2842]
[null,null,null,null,null,null,2843]
[null,null,null,null,null,null,2844]
[null,null,null,null,null,null,2845]
[null,null,null,null,null,null,2846]
[null,null,null,null,null,null,2847]
[null,null,null,null,null,null,2848]
[null,null,null,null,null,null,2849]
[null,null,null,null,null,null,2850]
[null,null,null,null,null,null,2851]
[null,null,null,null,null,null,2852]
[null,null,null,null,null,null,2853]
[null,null,null,null,null,null,2854]
[null,null,null,null,null,null,2855]
[null,null,null,null,null,null,2856]
[null,null,null,null,null,null,2857]
[null,null,null,null,null,null,2858]
[null,null,null,null,null,null,2859]
[null,null,null,null,null,null,2860]
[null,null,null,null,null,null,2861]
[null,null,null,null,null,null,2862]
[null,null,null,null,null,null,2863]
[null,null,null,null,null,null,2864]
[null,null,null,null,null,null,2865]
[null,null,null,null,null,null,2866]
[null,null,null,null,null,null,2867]
[null,null,null,null,null,null,2868]
[null,null,null,null,null,null,2869]
[null,null,null,null,null,null,2870]
[null,null,null,null,null,null,2871]
[null,null,null,null,null,null,2872]
[null,null,null,null,null,null,2873]
[null,null,null,null,null,null,2874]
[null,null,null,null,null,null,2875]
[null,null,null,null,null,null,2876]
[null,null,null,null,null,null,2877]
[null,null,null,null,null,null,2878]
[null,null,null,null,null,null,2879]
[null,null,null,null,null,null,2880]
[null,null,null,null,null,null,2881]
[null,null,null,null,null,null,2882]
[null,null,null,null,null,null,2883]
[null,null,null,null,null,null,2884]
[null,null,null,null,null,null,2885]
[null,null,null,null,null,null,2886]
[null,null,null,null,null,null,2887]
[null,null,null,null,null,null,2888]
[null,null,null,null,null,null,2889]
[null,null,null,null,null,null,2890]
[null,null,null,null,null,null,2891]
[null,null,null,null,null,null,2892]
[null,null,null,null,null,null,2893]
[null,null,null,null,null,null,2894]
[null,null,null,null,null,null,2895]
[null,null,null,null,null,null,2896]
[null,null,null,null,null,null,2897]
[null,null,null,null,null,null,2898]
[null,null,null,null,null,null,2899]
[null,null,null,null,null,null,2900]
[null,null,null,null,null,null,2901]
[null,null,null,null,null,null,2902]
[null,null,null,null,null,null,2903]
[null,null,null,null,null,null,2904]
[null,null,null,null,null,null,2905]
[null,null,null,null,null,null,2906]
[null,null,null,null,null,null,2907]
[null,null,null,null,null,null,2908]
[null,null,null,null,null,null,2909]
[null,null,null,null,null,null,2910]
[null,null,null,null,null,null,2911]
[null,null,null,null,null,null,2912]
[null,null,null,null,null,null,2913]
[null,null,null,null,null,null,2914]
[null,null,null,null,null,null,2915]
[null,null,null,null,null,null,2916]
[null,null,null,null,null,null,2917]
[null,null,null,null,null,null,2918]
[null,null,null,null,null,null,2919]
[null,null,null,null,null,null,2920]
[null,null,null,null,null,null,2921]
[null,null,null,null,null,null,2922]
[null,null,null,null,null,null,2923]
[null,null,null,null,null,null,2924]
[null,null,null,null,null,null,2925]
[null,null,null,null,null,null,2926]
[null,null,null,null,null,null,2927]
[null,null,null,null,null,null,2928]
[null,null,null,null,null,null,2929]
[null,null,null,null,null,null,2930]
[null,null,null,null,null,null,2931]
[null,null,null,null,null,null,2932]
[null,null,null,null,null,null,2933]
[null,null,null,null,null,null,2934]
[null,null,null,null,null,null,2935]
[null,null,null,null,null,null,2936]
[null,null,null,null,null,null,2937]
[null,null,null,null,null,null,2938]
[null,null,null,null,null,null,2939]
[null,null,null,null,null,null,2940]
[null,null,null,null,null,null,2941]
[null,null,null,null,null,null,2942]
[null,null,null,null,null,null,2943]
[null,null,null,null,null,null,2944]
[null,null,null,null,null,null,2945]
[null,null,null,null,null,null,2946]
[null,null,null,null,null,null,2947]
[null,null,null,null,null,null,2948]
[null,null,null,null,null,null,2949]
[null,null,null,null,null,null,2950]
[null,null,null,null,null,null,2951]
[null,null,null,null,null,null,2952]
[null,null,null,null,null,null,2953]
[null,null,null,null,null,null,2954]
[null,null,null,null,null,null,2955]
[null,null,null,null,null,null,2956]
[null,null,null,null,null,null,2957]
[null,null,null,null,null,null,2958]
[null,null,null,null,null,null,2959]
[null,null,null,null,null,null,2960]
[null,null,null,null,null,null,2961]
[null,null,null,null,null,null,2962]
[null,null,null,null,null,null,2963]
[null,null,null,null,null,null,2964]
[null,null,null,null,null,null,2965]
[null,null,null,null,null,null,2966]
[null,null,null,null,null,null,2967]
[null,null,null,null,null,null,2968]
[null,null,null,null,null,null,2969]
[null,null,null,null,null,null,2970]
[null,null,null,null,null,null,2971]
[null,null,null,null,null,null,2972]
[null,null,null,null,null,null,2973]
[null,null,null,null,null,null,2974]
[null,null,null,null,null,null,2975]
[null,null,null,null,null,null,2976]
[null,null,null,null,null,null,2977]
[null,null,null,null,null,null,2978]
[null,null,null,null,null,null,2979]
[null,null,null,null,null,null,2980]
[null,null,null,null,null,null,2981]
[null,null,null,null,null,null,2982]
[null,null,null,null,null,null,2983]
[null,null,null,null,null,null,2984]
[null,null,null,null,null,null,2985]
[null,null,null,null,null,null,2986]
[null,null,null,null,null,null,2987]
[null,null,null,null,null,null,2988]
[null,null,null,null,null,null,2989]
[null,null,null,null,null,null,2990]
[null,null,null,null,null,null,2991]
[null,null,null,null,null,null,2992]
[null,null,null,null,null,null,2993]
[null,null,null,null,null,null,2994]
[null,null,null,null,null,null,2995]
[null,null,null,null,null,null,2996]
[null,null,null,null,null,null,2997]
[null,null,null,null,null,null,2998]
[null,null,null,null,null,null,2999]
[null,null,null,null,null,null,3000]
[null,null,null,null,null,null,3001]
[null,null,null,null,null,null,3002]
[null,null,null,null,null,null,3003]
[null,null,null,null,null,null,3004]
[null,null,null,null,null,null,3005]
[null,null,null,null,null,null,3006]
[null,null,null,null,null,null,3007]
[null,null,null,null,null,null,3008]
[null,null,null,null,null,null,3009]
[null,null,null,null,null,null,3010]
[null,null,null,null,null,null,3011]
[null,null,null,null,null,null,3012]
[null,null,null,null,null,null,3013]
[null,null,null,null,null,null,3014]
[null,null,null,null,null,null,3015]
[null,null,null,null,null,null,3016]
[null,null,null,null,null,null,3017]
[null,null,null,null,null,null,3018]
[null,null,null,null,null,null,3019]
[null,null,null,null,null,null,3020]
[null,null,null,null,null,null,3021]
[null,null,null,null,null,null,3022]
[null,null,null,null,null,null,3023]
[null,null,null,null,null,null,3024]
[null,null,null,null,null,null,3025]
[null,null,null,null,null,null,3026]
[null,null,null,null,null,null,3027]
[null,null,null,null,null,null,3028]
[null,null,null,null,null,null,3029]
[null,null,null,null,null,null,3030]
[null,null,null,null,null,null,3031]
[null,null,null,null,null,null,3032]
[null,null,null,null,null,null,3033]
[null,null,null,null,null,null,3034]
[null,null,null,null,null,null,3035]
[null,null,null,null,null,null,3036]
[null,null,null,null,null,null,3037]
[null,null,null,null,null,null,3038]
[null,null,null,null,null,null,3039]
[null,null,null,null,null,null,3040]
[null,null,null,null,null,null,3041]
[null,null,null,null,null,null,3042]
[null,null,null,null,null,null,3043]
[null,null,null,null,null,null,3044]
[null,null,null,null,null,null,3045]
[null,null,null,null,null,null,3046]
[null,null,null,null,null,null,3047]
[null,null,null,null,null,null,3048]
[null,null,null,null,null,null,3049]
[null,null,null,null,null,null,3050]
[null,null,null,null,null,null,3051]
[null,null,null,null,null,null,3052]
[null,null,null,null,null,null,3053]
[null,null,null,null,null,null,3054]
[null,null,null,null,null,null,3055]
[null,null,null,null,null,null,3056]
[null,null,null,null,null,null,3057]
[null,null,null,null,null,null,3058]
[null,null,null,null,null,null,3059]
[null,null,null,null,null,null,3060]
[null,null,null,null,null,null,3061]
[null,null,null,null,null,null,3062]
[null,null,null,null,null,null,3063]
[null,null,null,null,null,null,3064]
[null,null,null,null,null,null,3065]
[null,null,null,null,null,null,3066]
[null,null,null,null,null,null,3067]
[null,null,null,null,null,null,3068]
[null,null,null,null,null,null,3069]
[null,null,null,null,null,null,3070]
[null,null,null,null,null,null,3071]
[null,null,null,null,null,null,3072]
[null,null,null,null,null,null,3073]
[null,null,null,null,null,null,3074]
[null,null,null,null,null,null,3075]
[null,null,null,null,null,null,3076]
[null,null,null,null,null,null,3077]
[null,null,null,null,null,null,3078]
[null,null,null,null,null,null,3079]
[null,null,null,null,null,null,3080]
[null,null,null,null,null,null,3081]
[null,null,null,null,null,null,3082]
[null,null,null,null,null,null,3083]
[null,null,null,null,null,null,3084]
[null,null,null,null,null,null,3085]
[null,null,null,null,null,null,3086]
[null,null,null,null,null,null,3087]
[null,null,null,null,null,null,3088]
[null,null,null,null,null,null,3089]
[null,null,null,null,null,null,3090]
[null,null,null,null,null,null,3091]
[null,null,null,null,null,null,3092]
[null,null,null,null,null,null,3093]
[null,null,null,null,null,null,3094]
[null,null,null,null,null,null,3095]
[null,null,null,null,null,null,3096]
[null,null,null,null,null,null,3097]
[null,null,null,null,null,null,3098]
[null,null,null,null,null,null,3099]
[null,null,null,null,null,null,3100]
[null,null,null,null,null,null,3101]
[null,null,null,null,null,null,3102]
[null,null,null,null,null,null,3103]
[null,null,null,null,null,null,3104]
[null,null,null,null,null,null,3105]
[null,null,null,null,null,null,3106]
[null,null,null,null,null,null,3107]
[null,null,null,null,null,null,3108]
[null,null,null,null,null,null,3109]
[null,null,null,null,null,null,3110]
[null,null,null,null,null,null,3111]
[null,null,null,null,null,null,3112]
[null,null,null,null,null,null,3113]
[null,null,null,null,null,null,3114]
[null,null,null,null,null,null,3115]
[null,null,null,null,null,null,3116]
[null,null,null,null,null,null,3117]
[null,null,null,null,null,null,3118]
[null,null,null,null,null,null,3119]
[null,null,null,null,null,null,3120]
[null,null,null,null,null,null,3121]
[null,null,null,null,null,null,3122]
[null,null,null,null,null,null,3123]
[null,null,null,null,null,null,3124]
[null,null,null,null,null,null,3125]
[null,null,null,null,null,null,3126]
[null,null,null,null,null,null,3127]
[null,null,null,null,null,null,3128]
[null,null,null,null,null,null,3129]
[null,null,null,null,null,null,3130]
[null,null,null,null,null,null,3131]
[null,null,null,null,null,null,3132]
[null,null,null,null,null,null,3133]
[null,null,null,null,null,null,3134]
[null,null,null,null,null,null,3135]
[null,null,null,null,null,null,3136]
[null,null,null,null,null,null,3137]
[null,null,null,null,null,null,3138]
[null,null,null,null,null,null,3139]
[null,null,null,null,null,null,3140]
[null,null,null,null,null,null,3141]
[null,null,null,null,null,null,3142]
[null,null,null,null,null,null,3143]
[null,null,null,null,null,null,3144]
[null,null,null,null,null,null,3145]
[null,null,null,null,null,null,3146]
[null,null,null,null,null,null,3147]
[null,null,null,null,null,null,3148]
[null,null,null,null,null,null,3149]
[null,null,null,null,null,null,3150]
[null,null,null,null,null,null,3151]
[null,null,null,null,null,null,3152]
[null,null,null,null,null,null,3153]
[null,null,null,null,null,null,3154]
[null,null,null,null,null,null,3155]
[null,null,null,null,null,null,3156]
[null,null,null,null,null,null,3157]
[null,null,null,null,null,null,3158]
[null,null,null,null,null,null,3159]
[null,null,null,null,null,null,3160]
[null,null,null,null,null,null,3161]
[null,null,null,null,null,null,3162]
[null,null,null,null,null,null,3163]
[null,null,null,null,null,null,3164]
[null,null,null,null,null,null,3165]
[null,null,null,null,null,null,3166]
[null,null,null,null,null,null,3167]
[null,null,null,null,null,null,3168]
[null,null,null,null,null,null,3169]
[null,null,null,null,null,null,3170]
[null,null,null,null,null,null,3171]
[null,null,null,null,null,null,3172]
[null,null,null,null,null,null,3173]
[null,null,null,null,null,null,3174]
[null,null,null,null,null,null,3175]
[null,null,null,null,null,null,3176]
[null,null,null,null,null,null,3177]
[null,null,null,null,null,null,3178]
[null,null,null,null,null,null,3179]
[null,null,null,null,null,null,3180]
[null,null,null,null,null,null,3181]
[null,null,null,null,null,null,3182]
[null,null,null,null,null,null,3183]
[null,null,null,null,null,null,3184]
[null,null,null,null,null,null,3185]
[null,null,null,null,null,null,3186]
[null,null,null,null,null,null,3187]
[null,null,null,null,null,null,3188]
[null,null,null,null,null,null,3189]
[null,null,null,null,null,null,3190]
[null,null,null,null,null,null,3191]
[null,null,null,null,null,null,3192]
[null,null,null,null,null,null,3193]
[null,null,null,null,null,null,3194]
[null,null,null,null,null,null,3195]
[null,null,null,null,null,null,3196]
[null,null,null,null,null,null,3197]
[null,null,null,null,null,null,3198]
[null,null,null,null,null,null,3199]
[null,null,null,null,null,null,3200]
[null,null,null,null,null,null,3201]
[null,null,null,null,null,null,3202]
[null,null,null,null,null,null,3203]
[null,null,null,null,null,null,3204]
[null,null,null,null,null,null,3205]
[null,null,null,null,null,null,3206]
[null,null,null,null,null,null,3207]
[null,null,null,null,null,null,3208]
[null,null,null,null,null,null,3209]
[null,null,null,null,null,null,3210]
[null,null,null,null,null,null,3211]
[null,null,null,null,null,null,3212]
[null,null,null,null,null,null,3213]
[null,null,null,null,null,null,3214]
[null,null,null,null,null,null,3215]
[null,null,null,null,null,null,3216]
[null,null,null,null,null,null,3217]
[null,null,null,null,null,null,3218]
[null,null,null,null,null,null,3219]
[null,null,null,null,null,null,3220]
[null,null,null,null,null,null,3221]
[null,null,null,null,null,null,3222]
[null,null,null,null,null,null,3223]
[null,null,null,null,null,null,3224]
[null,null,null,null,null,null,3225]
[null,null,null,null,null,null,3226]
[null,null,null,null,null,null,3227]
[null,null,null,null,null,null,3228]
[null,null,null,null,null,null,3229]
[null,null,null,null,null,null,3230]
[null,null,null,null,null,null,3231]
[null,null,null,null,null,null,3232]
[null,null,null,null,null,null,3233]
[null,null,null,null,null,null,3234]
[null,null,null,null,null,null,3235]
[null,null,null,null,null,null,3236]
[null,null,null,null,null,null,3237]
[null,null,null,null,null,null,3238]
[null,null,null,null,null,null,3239]
[null,null,null,null,null,null,3240]
[null,null,null,null,null,null,3241]
[null,null,null,null,null,null,3242]
[null,null,null,null,null,null,3243]
[null,null,null,null,null,null,3244]
[null,null,null,null,null,null,3245]
[null,null,null,null,null,null,3246]
[null,null,null,null,null,null,3247]
[null,null,null,null,null,null,3248]
[null,null,null,null,null,null,3249]
[null,null,null,null,null,null,3250]
[null,null,null,null,null,null,3251]
[null,null,null,null,null,null,3252]
[null,null,null,null,null,null,3253]
[null,null,null,null,null,null,3254]
[null,null,null,null,null,null,3255]
[null,null,null,null,null,null,3256]
[null,null,null,null,null,null,3257]
[null,null,null,null,null,null,3258]
[null,null,null,null,null,null,3259]
[null,null,null,null,null,null,3260]
[null,null,null,null,null,null,3261]
[null,null,null,null,null,null,3262]
[null,null,null,null,null,null,3263]
[null,null,null,null,null,null,3264]
[null,null,null,null,null,null,3265]
[null,null,null,null,null,null,3266]
[null,null,null,null,null,null,3267]
[null,null,null,null,null,null,3268]
[null,null,null,null,null,null,3269]
[null,null,null,null,null,null,3270]
[null,null,null,null,null,null,3271]
[null,null,null,null,null,null,3272]
[null,null,null,null,null,null,3273]
[null,null,null,null,null,null,3274]
[null,null,null,null,null,null,3275]
[null,null,null,null,null,null,3276]
[null,null,null,null,null,null,3277]
[null,null,null,null,null,null,3278]
[null,null,null,null,null,null,3279]
[null,null,null,null,null,null,3280]
[null,null,null,null,null,null,3281]
[null,null,null,null,null,null,3282]
[null,null,null,null,null,null,3283]
[null,null,null,null,null,null,3284]
[null,null,null,null,null,null,3285]
[null,null,null,null,null,null,3286]
[null,null,null,null,null,null,3287]
[null,null,null,null,null,null,3288]
[null,null,null,null,null,null,3289]
[null,null,null,null,null,null,3290]
[null,null,null,null,null,null,3291]
[null,null,null,null,null,null,3292]
[null,null,null,null,null,null,3293]
[null,null,null,null,null,null,3294]
[null,null,null,null,null,null,3295]
[null,null,null,null,null,null,3296]
[null,null,null,null,null,null,3297]
[null,null,null,null,null,null,3298]
[null,null,null,null,null,null,3299]
[null,null,null,null,null,null,3300]
[null,null,null,null,null,null,3301]
[null,null,null,null,null,null,3302]
[null,null,null,null,null,null,3303]
[null,null,null,null,null,null,3304]
[null,null,null,null,null,null,3305]
[null,null,null,null,null,null,3306]
[null,null,null,null,null,null,3307]
[null,null,null,null,null,null,3308]
[null,null,null,null,null,null,3309]
[null,null,null,null,null,null,3310]
[null,null,null,null,null,null,3311]
[null,null,null,null,null,null,3312]
[null,null,null,null,null,null,3313]
[null,null,null,null,null,null,3314]
[null,null,null,null,null,null,3315]
[null,null,null,null,null,null,3316]
[null,null,null,null,null,null,3317]
[null,null,null,null,null,null,3318]
[null,null,null,null,null,null,3319]
[null,null,null,null,null,null,3320]
[null,null,null,null,null,null,3321]
[null,null,null,null,null,null,3322]
[null,null,null,null,null,null,3323]
[null,null,null,null,null,null,3324]
[null,null,null,null,null,null,3325]
[null,null,null,null,null,null,3326]
[null,null,null,null,null,null,3327]
[null,null,null,null,null,null,3328]
[null,null,null,null,null,null,3329]
[null,null,null,null,null,null,3330]
[null,null,null,null,null,null,3331]
[null,null,null,null,null,null,3332]
[null,null,null,null,null,null,3333]
[null,null,null,null,null,null,3334]
[null,null,null,null,null,null,3335]
[null,null,null,null,null,null,3336]
[null,null,null,null,null,null,3337]
[null,null,null,null,null,null,3338]
[null,null,null,null,null,null,3339]
[null,null,null,null,null,null,3340]
[null,null,null,null,null,null,3341]
[null,null,null,null,null,null,3342]
[null,null,null,null,null,null,3343]
[null,null,null,null,null,null,3344]
[null,null,null,null,null,null,3345]
[null,null,null,null,null,null,3346]
[null,null,null,null,null,null,3347]
[null,null,null,null,null,null,3348]
[null,null,null,null,null,null,3349]
[null,null,null,null,null,null,3350]
[null,null,null,null,null,null,3351]
[null,null,null,null,null,null,3352]
[null,null,null,null,null,null,3353]
[null,null,null,null,null,null,3354]
[null,null,null,null,null,null,3355]
[null,null,null,null,null,null,3356]
[null,null,null,null,null,null,3357]
[null,null,null,null,null,null,3358]
[null,null,null,null,null,null,3359]
[null,null,null,null,null,null,3360]
[null,null,null,null,null,null,3361]
[null,null,null,null,null,null,3362]
[null,null,null,null,null,null,3363]
[null,null,null,null,null,null,3364]
[null,null,null,null,null,null,3365]
[null,null,null,null,null,null,3366]
[null,null,null,null,null,null,3367]
[null,null,null,null,null,null,3368]
[null,null,null,null,null,null,3369]
[null,null,null,null,null,null,3370]
[null,null,null,null,null,null,3371]
[null,null,null,null,null,null,3372]
[null,null,null,null,null,null,3373]
[null,null,null,null,null,null,3374]
[null,null,null,null,null,null,3375]
[null,null,null,null,null,null,3376]
[null,null,null,null,null,null,3377]
[null,null,null,null,null,null,3378]
[null,null,null,null,null,null,3379]
[null,null,null,null,null,null,3380]
[null,null,null,null,null,null,3381]
[null,null,null,null,null,null,3382]
[null,null,null,null,null,null,3383]
[null,null,null,null,null,null,3384]
[null,null,null,null,null,null,3385]
[null,null,null,null,null,null,3386]
[null,null,null,null,null,null,3387]
[null,null,null,null,null,null,3388]
[null,null,null,null,null,null,3389]
[null,null,null,null,null,null,3390]
[null,null,null,null,null,null,3391]
[null,null,null,null,null,null,3392]
[null,null,null,null,null,null,3393]
[null,null,null,null,null,null,3394]
[null,null,null,null,null,null,3395]
[null,null,null,null,null,null,3396]
[null,null,null,null,null,null,3397]
[null,null,null,null,null,null,3398]
[null,null,null,null,null,null,3399]
[null,null,null,null,null,null,3400]
[null,null,null,null,null,null,3401]
[null,null,null,null,null,null,3402]
[null,null,null,null,null,null,3403]
[null,null,null,null,null,null,3404]
[null,null,null,null,null,null,3405]
[null,null,null,null,null,null,3406]
[null,null,null,null,null,null,3407]
[null,null,null,null,null,null,3408]
[null,null,null,null,null,null,3409]
[null,null,null,null,null,null,3410]
[null,null,null,null,null,null,3411]
[null,null,null,null,null,null,3412]
[null,null,null,null,null,null,3413]
[null,null,null,null,null,null,3414]
[null,null,null,null,null,null,3415]
[null,null,null,null,null,null,3416]
[null,null,null,null,null,null,3417]
[null,null,null,null,null,null,3418]
[null,null,null,null,null,null,3419]
[null,null,null,null,null,null,3420]
[null,null,null,null,null,null,3421]
[null,null,null,null,null,null,3422]
[null,null,null,null,null,null,3423]
[null,null,null,null,null,null,3424]
[null,null,null,null,null,null,3425]
[null,null,null,null,null,null,3426]
[null,null,null,null,null,null,3427]
[null,null,null,null,null,null,3428]
[null,null,null,null,null,null,3429]
[null,null,null,null,null,null,3430]
[null,null,null,null,null,null,3431]
[null,null,null,null,null,null,3432]
[null,null,null,null,null,null,3433]
[null,null,null,null,null,null,3434]
[null,null,null,null,null,null,3435]
[null,null,null,null,null,null,3436]
[null,null,null,null,null,null,3437]
[null,null,null,null,null,null,3438]
[null,null,null,null,null,null,3439]
[null,null,null,null,null,null,3440]
[null,null,null,null,null,null,3441]
[null,null,null,null,null,null,3442]
[null,null,null,null,null,null,3443]
[null,null,null,null,null,null,3444]
[null,null,null,null,null,null,3445]
[null,null,null,null,null,null,3446]
[null,null,null,null,null,null,3447]
[null,null,null,null,null,null,3448]
[null,null,null,null,null,null,3449]
[null,null,null,null,null,null,3450]
[null,null,null,null,null,null,3451]
[null,null,null,null,null,null,3452]
[null,null,null,null,null,null,3453]
[null,null,null,null,null,null,3454]
[null,null,null,null,null,null,3455]
[null,null,null,null,null,null,3456]
[null,null,null,null,null,null,3457]
[null,null,null,null,null,null,3458]
[null,null,null,null,null,null,3459]
[null,null,null,null,null,null,3460]
[null,null,null,null,null,null,3461]
[null,null,null,null,null,null,3462]
[null,null,null,null,null,null,3463]
[null,null,null,null,null,null,3464]
[null,null,null,null,null,null,3465]
[null,null,null,null,null,null,3466]
[null,null,null,null,null,null,3467]
[null,null,null,null,null,null,3468]
[null,null,null,null,null,null,3469]
[null,null,null,null,null,null,3470]
[null,null,null,null,null,null,3471]
[null,null,null,null,null,null,3472]
[null,null,null,null,null,null,3473]
[null,null,null,null,null,null,3474]
[null,null,null,null,null,null,3475]
[null,null,null,null,null,null,3476]
[null,null,null,null,null,null,3477]
[null,null,null,null,null,null,3478]
[null,null,null,null,null,null,3479]
[null,null,null,null,null,null,3480]
[null,null,null,null,null,null,3481]
[null,null,null,null,null,null,3482]
[null,null,null,null,null,null,3483]
[null,null,null,null,null,null,3484]
[null,null,null,null,null,null,3485]
[null,null,null,null,null,null,3486]
[null,null,null,null,null,null,3487]
[null,null,null,null,null,null,3488]
[null,null,null,null,null,null,3489]
[null,null,null,null,null,null,3490]
[null,null,null,null,null,null,3491]
[null,null,null,null,null,null,3492]
[null,null,null,null,null,null,3493]
[null,null,null,null,null,null,3494]
[null,null,null,null,null,null,3495]
[null,null,null,null,null,null,3496]
[null,null,null,null,null,null,3497]
[null,null,null,null,null,null,3498]
[null,null,null,null,null,null,3499]
[null,null,null,null,null,null,3500]
[null,null,null,null,null,null,3501]
[null,null,null,null,null,null,3502]
[null,null,null,null,null,null,3503]
[null,null,null,null,null,null,3504]
[null,null,null,null,null,null,3505]
[null,null,null,null,null,null,3506]
[null,null,null,null,null,null,3507]
[null,null,null,null,null,null,3508]
[null,null,null,null,null,null,3509]
[null,null,null,null,null,null,3510]
[null,null,null,null,null,null,3511]
[null,null,null,null,null,null,3512]
[null,null,null,null,null,null,3513]
[null,null,null,null,null,null,3514]
[null,null,null,null,null,null,3515]
[null,null,null,null,null,null,3516]
[null,null,null,null,null,null,3517]
[null,null,null,null,null,null,3518]
[null,null,null,null,null,null,3519]
[null,null,null,null,null,null,3520]
[null,null,null,null,null,null,3521]
[null,null,null,null,null,null,3522]
[null,null,null,null,null,null,3523]
[null,null,null,null,null,null,3524]
[null,null,null,null,null,null,3525]
[null,null,null,null,null,null,3526]
[null,null,null,null,null,null,3527]
[null,null,null,null,null,null,3528]
[null,null,null,null,null,null,3529]
[null,null,null,null,null,null,3530]
[null,null,null,null,null,null,3531]
[null,null,null,null,null,null,3532]
[null,null,null,null,null,null,3533]
[null,null,null,null,null,null,3534]
[null,null,null,null,null,null,3535]
[null,null,null,null,null,null,3536]
[null,null,null,null,null,null,3537]
[null,null,null,null,null,null,3538]
[null,null,null,null,null,null,3539]
[null,null,null,null,null,null,3540]
[null,null,null,null,null,null,3541]
[null,null,null,null,null,null,3542]
[null,null,null,null,null,null,3543]
[null,null,null,null,null,null,3544]
[null,null,null,null,null,null,3545]
[null,null,null,null,null,null,3546]
[null,null,null,null,null,null,3547]
[null,null,null,null,null,null,3548]
[null,null,null,null,null,null,3549]
[null,null,null,null,null,null,3550]
[null,null,null,null,null,null,3551]
[null,null,null,null,null,null,3552]
[null,null,null,null,null,null,3553]
[null,null,null,null,null,null,3554]
[null,null,null,null,null,null,3555]
[null,null,null,null,null,null,3556]
[null,null,null,null,null,null,3557]
[null,null,null,null,null,null,3558]
[null,null,null,null,null,null,3559]
[null,null,null,null,null,null,3560]
[null,null,null,null,null,null,3561]
[null,null,null,null,null,null,3562]
[null,null,null,null,null,null,3563]
[null,null,null,null,null,null,3564]
[null,null,null,null,null,null,3565]
[null,null,null,null,null,null,3566]
[null,null,null,null,null,null,3567]
[null,null,null,null,null,null,3568]
[null,null,null,null,null,null,3569]
[null,null,null,null,null,null,3570]
[null,null,null,null,null,null,3571]
[null,null,null,null,null,null,3572]
[null,null,null,null,null,null,3573]
[null,null,null,null,null,null,3574]
[null,null,null,null,null,null,3575]
[null,null,null,null,null,null,3576]
[null,null,null,null,null,null,3577]
[null,null,null,null,null,null,3578]
[null,null,null,null,null,null,3579]
[null,null,null,null,null,null,3580]
[null,null,null,null,null,null,3581]
[null,null,null,null,null,null,3582]
[null,null,null,null,null,null,3583]
[null,null,null,null,null,null,3584]
[null,null,null,null,null,null,3585]
[null,null,null,null,null,null,3586]
[null,null,null,null,null,null,3587]
[null,null,null,null,null,null,3588]
[null,null,null,null,null,null,3589]
[null,null,null,null,null,null,3590]
[null,null,null,null,null,null,3591]
[null,null,null,null,null,null,3592]
[null,null,null,null,null,null,3593]
[null,null,null,null,null,null,3594]
[null,null,null,null,null,null,3595]
[null,null,null,null,null,null,3596]
[null,null,null,null,null,null,3597]
[null,null,null,null,null,null,3598]
[null,null,null,null,null,null,3599]
[null,null,null,null,null,null,3600]
[null,null,null,null,null,null,3601]
[null,null,null,null,null,null,3602]
[null,null,null,null,null,null,3603]
[null,null,null,null,null,null,3604]
[null,null,null,null,null,null,3605]
[null,null,null,null,null,null,3606]
[null,null,null,null,null,null,3607]
[null,null,null,null,null,null,3608]
[null,null,null,null,null,null,3609]
[null,null,null,null,null,null,3610]
[null,null,null,null,null,null,3611]
[null,null,null,null,null,null,3612]
[null,null,null,null,null,null,3613]
[null,null,null,null,null,null,3614]
[null,null,null,null,null,null,3615]
[null,null,null,null,null,null,3616]
[null,null,null,null,null,null,3617]
[null,null,null,null,null,null,3618]
[null,null,null,null,null,null,3619]
[null,null,null,null,null,null,3620]
[null,null,null,null,null,null,3621]
[null,null,null,null,null,null,3622]
[null,null,null,null,null,null,3623]
[null,null,null,null,null,null,3624]
[null,null,null,null,null,null,3625]
[null,null,null,null,null,null,3626]
[null,null,null,null,null,null,3627]
[null,null,null,null,null,null,3628]
[null,null,null,null,null,null,3629]
[null,null,null,null,null,null,3630]
[null,null,null,null,null,null,3631]
[null,null,null,null,null,null,3632]
[null,null,null,null,null,null,3633]
[null,null,null,null,null,null,3634]
[null,null,null,null,null,null,3635]
[null,null,null,null,null,null,3636]
[null,null,null,null,null,null,3637]
[null,null,null,null,null,null,3638]
[null,null,null,null,null,null,3639]
[null,null,null,null,null,null,3640]
[null,null,null,null,null,null,3641]
[null,null,null,null,null,null,3642]
[null,null,null,null,null,null,3643]
[null,null,null,null,null,null,3644]
[null,null,null,null,null,null,3645]
[null,null,null,null,null,null,3646]
[null,null,null,null,null,null,3647]
[null,null,null,null,null,null,3648]
[null,null,null,null,null,null,3649]
[null,null,null,null,null,null,3650]
[null,null,null,null,null,null,3651]
[null,null,null,null,null,null,3652]
[null,null,null,null,null,null,3653]
[null,null,null,null,null,null,3654]
[null,null,null,null,null,null,3655]
[null,null,null,null,null,null,3656]
[null,null,null,null,null,null,3657]
[null,null,null,null,null,null,3658]
[null,null,null,null,null,null,3659]
[null,null,null,null,null,null,3660]
[null,null,null,null,null,null,3661]
[null,null,null,null,null,null,3662]
[null,null,null,null,null,null,3663]
[null,null,null,null,null,null,3664]
[null,null,null,null,null,null,3665]
[null,null,null,null,null,null,3666]
[null,null,null,null,null,null,3667]
[null,null,null,null,null,null,3668]
[null,null,null,null,null,null,3669]
[null,null,null,null,null,null,3670]
[null,null,null,null,null,null,3671]
[null,null,null,null,null,null,3672]
[null,null,null,null,null,null,3673]
[null,null,null,null,null,null,3674]
[null,null,null,null,null,null,3675]
[null,null,null,null,null,null,3676]
[null,null,null,null,null,null,3677]
[null,null,null,null,null,null,3678]
[null,null,null,null,null,null,3679]
[null,null,null,null,null,null,3680]
[null,null,null,null,null,null,3681]
[null,null,null,null,null,null,3682]
[null,null,null,null,null,null,3683]
[null,null,null,null,null,null,3684]
[null,null,null,null,null,null,3685]
[null,null,null,null,null,null,3686]
[null,null,null,null,null,null,3687]
[null,null,null,null,null,null,3688]
[null,null,null,null,null,null,3689]
[null,null,null,null,null,null,3690]
[null,null,null,null,null,null,3691]
[null,null,null,null,null,null,3692]
[null,null,null,null,null,null,3693]
[null,null,null,null,null,null,3694]
[null,null,null,null,null,null,3695]
[null,null,null,null,null,null,3696]
[null,null,null,null,null,null,3697]
[null,null,null,null,null,null,3698]
[null,null,null,null,null,null,3699]
[null,null,null,null,null,null,3700]
[null,null,null,null,null,null,3701]
[null,null,null,null,null,null,3702]
[null,null,null,null,null,null,3703]
[null,null,null,null,null,null,3704]
[null,null,null,null,null,null,3705]
[null,null,null,null,null,null,3706]
[null,null,null,null,null,null,3707]
[null,null,null,null,null,null,3708]
[null,null,null,null,null,null,3709]
[null,null,null,null,null,null,3710]
[null,null,null,null,null,null,3711]
[null,null,null,null,null,null,3712]
[null,null,null,null,null,null,3713]
[null,null,null,null,null,null,3714]
[null,null,null,null,null,null,3715]
[null,null,null,null,null,null,3716]
[null,null,null,null,null,null,3717]
[null,null,null,null,null,null,3718]
[null,null,null,null,null,null,3719]
[null,null,null,null,null,null,3720]
[null,null,null,null,null,null,3721]
[null,null,null,null,null,null,3722]
[null,null,null,null,null,null,3723]
[null,null,null,null,null,null,3724]
[null,null,null,null,null,null,3725]
[null,null,null,null,null,null,3726]
[null,null,null,null,null,null,3727]
[null,null,null,null,null,null,3728]
[null,null,null,null,null,null,3729]
[null,null,null,null,null,null,3730]
[null,null,null,null,null,null,3731]
[null,null,null,null,null,null,3732]
[null,null,null,null,null,null,3733]
[null,null,null,null,null,null,3734]
[null,null,null,null,null,null,3735]
[null,null,null,null,null,null,3736]
[null,null,null,null,null,null,3737]
[null,null,null,null,null,null,3738]
[null,null,null,null,null,null,3739]
[null,null,null,null,null,null,3740]
[null,null,null,null,null,null,3741]
[null,null,null,null,null,null,3742]
[null,null,null,null,null,null,3743]
[null,null,null,null,null,null,3744]
[null,null,null,null,null,null,3745]
[null,null,null,null,null,null,3746]
[null,null,null,null,null,null,3747]
[null,null,null,null,null,null,3748]
[null,null,null,null,null,null,3749]
[null,null,null,null,null,null,3750]
[null,null,null,null,null,null,3751]
[null,null,null,null,null,null,3752]
[null,null,null,null,null,null,3753]
[null,null,null,null,null,null,3754]
[null,null,null,null,null,null,3755]
[null,null,null,null,null,null,3756]
[null,null,null,null,null,null,3757]
[null,null,null,null,null,null,3758]
[null,null,null,null,null,null,3759]
[null,null,null,null,null,null,3760]
[null,null,null,null,null,null,3761]
[null,null,null,null,null,null,3762]
[null,null,null,null,null,null,3763]
[null,null,null,null,null,null,3764]
[null,null,null,null,null,null,3765]
[null,null,null,null,null,null,3766]
[null,null,null,null,null,null,3767]
[null,null,null,null,null,null,3768]
[null,null,null,null,null,null,3769]
[null,null,null,null,null,null,3770]
[null,null,null,null,null,null,3771]
[null,null,null,null,null,null,3772]
[null,null,null,null,null,null,3773]
[null,null,null,null,null,null,3774]
[null,null,null,null,null,null,3775]
[null,null,null,null,null,null,3776]
[null,null,null,null,null,null,3777]
[null,null,null,null,null,null,3778]
[null,null,null,null,null,null,3779]
[null,null,null,null,null,null,3780]
[null,null,null,null,null,null,3781]
[null,null,null,null,null,null,3782]
[null,null,null,null,null,null,3783]
[null,null,null,null,null,null,3784]
[null,null,null,null,null,null,3785]
[null,null,null,null,null,null,3786]
[null,null,null,null,null,null,3787]
[null,null,null,null,null,null,3788]
[null,null,null,null,null,null,3789]
[null,null,null,null,null,null,3790]
[null,null,null,null,null,null,3791]
[null,null,null,null,null,null,3792]
[null,null,null,null,null,null,3793]
[null,null,null,null,null,null,3794]
[null,null,null,null,null,null,3795]
[null,null,null,null,null,null,3796]
[null,null,null,null,null,null,3797]
[null,null,null,null,null,null,3798]
[null,null,null,null,null,null,3799]
[null,null,null,null,null,null,3800]
[null,null,null,null,null,null,3801]
[null,null,null,null,null,null,3802]
[null,null,null,null,null,null,3803]
[null,null,null,null,null,null,3804]
[null,null,null,null,null,null,3805]
[null,null,null,null,null,null,3806]
[null,null,null,null,null,null,3807]
[null,null,null,null,null,null,3808]
[null,null,null,null,null,null,3809]
[null,null,null,null,null,null,3810]
[null,null,null,null,null,null,3811]
[null,null,null,null,null,null,3812]
[null,null,null,null,null,null,3813]
[null,null,null,null,null,null,3814]
[null,null,null,null,null,null,3815]
[null,null,null,null,null,null,3816]
[null,null,null,null,null,null,3817]
[null,null,null,null,null,null,3818]
[null,null,null,null,null,null,3819]
[null,null,null,null,null,null,3820]
[]
[]
[]
[]
[]
[]
[]
[]
[]
[]
[]
[]
[]
[]
[]
[]
[]
[]
[]
[]
[]
[]
[]
[]
[]
[]
[]
[]
[]
[]
[]
[]
[]
[]
[]
[]
[]
[]
[]
[]
[]
[]
[]
[]
[]
[]
[]
[]
[]
[]
[]
[]
[]
[]
[]
[]
[]
[]
[]
[]
[]
[]
[]
[]
[]
[]
[]
[]
[]
[]
[]
[]
[]
[]
[]
[]
[]
[]
[]
[]
[]
[]
[]
[]
[]
[]
[]
[]
[]
[]
[]
[]
[]
[]
[]
[]
[]
[]
[]
[]
[]
[]
[]
[]
[]
[]
[]
[]
[]
[]
[]
[]
[]
[]
[]
[]
[]
[]
[]
[]
[]
[]
[]
[]
[]
[]
[]
[]
[]
[]
[]
[]
[]
[]
[]
[]
[]
[]
[]
[]
[]
[]
[]
[]
[]
[]
[]
[]
[]
[]
[]
[]
[]
[]
[]
[]
[]
[]
[]
[]
[]
[]
[]
[]
[]
[]
[]
[]
[]
[]
[]
[]
[]
[]
[]
[]
[]
[]
[]
[]
[]
[]
[]
[]
[]
[]
[]
[]
[]
[]
[]
[]
[]
[]
[]
[]
[]
[]
[]
[]
[]
[]
[]
[]
[]
[]
[]
[]
[]
[]
[]
[]
[]
[]
[]
[]
[]
[]
[]
[]
[]
[]
[]
[]
[]
[]
[]
[]
[]
[]
[]
[]
[]
[]
[]
[]
[]
[]
[]
[]
[]
[]
[]
[]
[]
[]
[]
[]
[]
[]
[]
[]
[]
[]
[]
[]
[]
[]
[]
[]
[]
[]
[]
[]
[]
[]
[]
[]
[]
[]
[]
[]
[]
[]
[]
[]
[]
[]
[]
[]
[]
[]
[]
[]
[]
[]
[]
[]
[]
[]
[]
[]
[]
[]
[]
[]
[]
[]
[]
[]
[]
[]
[]
[]
[]
[]
[]
[]
[]
[]
[]
[]
[]
[]
[]
[]
[]
[]
[]
[]
[]
[]
[]
[]
[]
[]
[]
[]
[]
[]
[]
[]
[]
[]
[]
[]
[]
[]
[]
[]
[]
[]
[]
[]
[]
[]
[]
[]
[]
[]
[]
[]
[]
[]
[]
[]
[]
[]
[]
[]
[]
[]
[]
[]
[]
[]
[]
[]
[]
[]
[]
[]
[]
[]
[]
[]
[]
[]
[]
[]
[]
[]
[]
[]
[]
[]
[]
[]
[]
[]
[]
[]
[]
[]
[]
[]
[]
[]
[]
[]
[]
[]
[]
[]
[]
[]
[]
[]
[]
[]
[]
[]
[]
[]
[]
[]
[]
[]
[]
[]
[]
[]
[]
[]
[]
[]
[]
[]
[]
[]
[]
[]
[]
[]
[]
[]
[]
[]
[]
[]
[]
[]
[]
[]
[]
[]
[]
[]
[]
[]
[]
[]
[]
[]
[]
[]
[]
[]
[]
[]
[]
[]
[]
[]
[]
[]
[]
[]
[]
[]
[]
[]
[]
[]
[]
[]
[]
[]
[]
[]
[]
[]
[]
[]
[]
[]
[]
[]
[]
[]
[]
[]
[]
[]
[]
[]
[]
[]
[]
[]
[]
[]
[]
[]
[]
[]
[]
[]
[]
[]
[]
[]
[]
[]
[]
[]
[]
[]
[]
[]
[]
[]
[]
[]
[]
[]
[]
[]
[]
[]
[]
[]
[]
[]
[]
[]
[]
[]
[]
[]
[]
[]
[]
[]
[]
[]
[]
[]
[]
[]
[]
[]
[]
[]
[]
[]
[]
[]
[]
[]
[]
[]
[]
[]
[]
[]
[]
[]
[]
[]
[]
[]
[]
[]
[]
[]
[]
[]
[]
[]
[]
[]
[]
[]
[]
[]
[]
[]
[]
[]
[]
[]
[]
[]
[]
[]
[]
[]
[]
[]
[]
[]
[]
[]
[]
[]
[]
[]
[]
[]
[]
[]
[]
[]
[]
[]
[]
[]
[]
[]
[]
[]
[]
[]
[]
[]
[]
[]
[]
[]
[]
[]
[]
[]
[]
[]
[]
[]
[]
[]
[]
[]
[]
[]
[]
[]
[]
[]
[]
[]
[]
[]
[]
[]
[]
[]
[]
[]
[]
[]
[]
[]
[]
[]
[]
[]
[]
[]
[]
[]
[]
[]
[]
[]
[]
[]
[]
[]
[]
[]
[]
[]
[]
[]
[]
[]
[]
[]
[]
[]
[]
[]
[]
[]
[]
[]
[]
[]
[]
[]
[]
[]
[]
[]
[]
[]
[]
[]
[]
[]
[]
[]
[]
[]
[]
[]
[]
[]
[]
[]
[]
[]
[]
[]
[]
[]
[]
[]
[]
[]
[]
[]
[]
[]
[]
[]
[]
[]
[]
[]
[]
[]
[]
[]
[]
[]
[]
[]
[]
[]
[]
[]
[]
[]
[]
[]
[]
[]
[]
[]
[]
[]
[]
[]
[]
[]
[]
[]
[]
[]
[]
[]
[]
[]
[]
[]
[]
[]
[]
[]
[]
[]
[]
[]
[]
[]
[]
[]
[]
[]
[]
[]
[]
[]
[]
[]
[]
[]
[]
[]
[]
[]
[]
[]
[]
[]
[]
[]
[]
[]
[]
[]
[]
[]
[]
[]
[]
[]
[]
[]
[]
[]
[]
[]
[]
[]
[]
[]
[]
[]
[]
[]
[]
[]
[]
[]
[]
[]
[]
[]
[]
[]
[]
[]
[]
[]
[]
[]
[]
[]
[]
[]
[]
[]
[]
[]
[]
[]
[]
[]
[]
[]
[]
[]
[]
[]
[]
[]
[]
[]
[]
[]
[]
[]
[]
[]
[]
[]
[]
[]
[]
[]
[]
[]
[]
[]
[]
[]
[]
[]
[]
[]
[]
[]
[]
[]
[]
[]
[]
[]
[]
[]
[]
[]
[]
[]
[]
[]
[]
[]
[]
[]
[]
[]
[]
[]
[]
[]
[]
[]
[]
[]
[]
[]
[]
[]
[]
[]
[]
[]
[]
[]
[]
[]
[]
[]
[]
[]
[]
[]
[]
[]
[]
[]
[]
[]
[]
[]
[]
[]
[]
[]
[]
[]
[]
[]
[]
[]
[]
[]
[]
[]
[]
[]
[]
[]
[]
[]
[]
[]
[]
[]
[]
[]
[]
[]
[]
[]
[]
[]
[]
[]
[]
[]
[]
[]
[]
[]
[]
[]
[]
[]
[]
[]
[]
[]
[]
[]
[]
[]
[]
[]
[]
[]
[]
[]
[]
[]
[]
[]
[]
[]
[]
[]
[]
[]
[]
[]
[]
[]
[]
[]
[]
[]
[]
[]
[]
[]
[]
[]
[]
[]
[]
[]
[]
[]
[]
[]
[]
[]
[]
[]
[]
[]
[]
[]
[]
[]
[]
[]
[]
[]
[]
[]
[]
[]
[]
[]
[]
[]
[]
[]
[]
[]
[]
[]
[]
[]
[]
[]
[]
[]
[]
[]
[]
[]
[]
[]
[]
[]
[]
[]
[]
[]
[]
[]
[]
[]
[]
[]
[]
[]
[]
[]
[]
[]
[]
[]
[]
[]
[]
[]
[]
[]
[]
[]
[]
[]
[]
[]
[]
[]
[]
[]
[]
[]
[]
[]
[]
[]
[]
[]
[]
[]
[]
[]
[]
[]
[]
[]
[]
[]
[]
[]
[]
[]
[]
[]
[]
[]
[]
[]
[]
[]
[]
[]
[]
[]
[]
[]
[]
[]
[]
[]
[]
[]
[]
[]
[]
[]
[]
[]
[]
[]
[]
[]
[]
[]
[]
[]
[]
[]
[]
[]
[]
[]
[]
[]
[]
[]
[]
[]
[]
[]
[]
[]
[]
[]
[]
[]
[]
[]
[]
[]
[]
[]
[]
[]
[]
[]
[]
[]
[]
[]
[]
[]
[]
[]
[]
[]
[]
[]
[]
[]
[]
[]
[]
[]
[]
[]
[]
[]
[]
[]
[]
[]
[]
[]
[]
[]
[]
[]
[]
[]
[]
[]
[]
[]
[]
[]
[]
[]
[]
[]
[]
[]
[]
[]
[]
[]
[]
[]
[]
[]
[]
[]
[]
[]
[]
[]
[]
[]
[]
[]
[]
[]
[]
[]
[]
[]
[]
[]
[]
[]
[]
[]
[]
[]
[]
[]
[]
[]
[]
[]
[]
[]
[]
[]
[]
[]
[]
[]
[]
[]
[]
[]
[]
[]
[]
[]
[]
[]
[]
[]
[]
[]
[]
[]
[]
[]
[]
[]
[]
[]
[]
[]
[]
[]
[]
[]
[]
[]
[]
[]
[]
[]
[]
[]
[]
[]
[]
[]
[]
[]
[]
[]
[]
[]
[]
[]
[]
[]
[]
[]
[]
[]
[]
[]
[]
[]
[]
[]
[]
[]
[]
[]
[]
[]
[]
[]
[]
[]
[]
[]
[]
[]
[]
[]
[]
[]
[]
[]
[]
[]
[]
[]
[]
[]
[]
[]
[]
[]
[]
[]
[]
[]
[]
[]
[]
[]
[]
[]
[]
[]
[]
[]
[]
[]
[]
[]
[]
[]
[]
[]
[]
[]
[]
[]
[]
[]
[]
[]
[]
[]
[]
[]
[]
[]
[]
[]
[]
[]
[]
[]
[]
[]
[]
[]
[]
[]
[]
[]
[]
[]
[]
[]
[]
[]
[]
[]
[]
[]
[]
[]
[]
[]
[]
[]
[]
[]
[]
[]
[]
[]
[]
[]
[]
[]
[]
[]
[]
[]
[]
[]
[]
[]
[]
[]
[]
[]
[]
[]
[]
[]
[]
[]
[]
[]
[]
[]
[]
[]
[]
[]
[]
[]
[]
[]
[]
[]
[]
[]
[]
[]
[]
[]
[]
[]
[]
[]
[]
[]
[]
[]
[]
[]
[]
[]
[]
[]
[]
[]
[]
[]
[]
[]
[]
[]
[]
[]
[]
[]
[]
[]
[]
[]
[]
[]
[]
[]
[]
[]
[]
[]
[]
[]
[]
[]
[]
[]
[]
[]
[]
[]
[]
[]
[]
[]
[]
[]
[]
[]
[]
[]
[]
[]
[]
[]
[]
[]
[]
[]
[]
[]
[]
[]
[]
[]
[]
[]
[]
[]
[]
[]
[]
[]
[]
[]
[]
[]
[]
[]
[]
[]
[]
[]
[]
[]
[]
[]
[]
[]
[]
[]
[]
[]
[]
[]
[]
[]
[]
[]
[]
[]
[]
[]
[]
[]
[]
[]
[]
[]
[]
[]
[]
[]
[]
[]
[]
[]
[]
[]
[]
[]
[]
[]
[]
[]
[]
[]
[]
[]
[]
[]
[]
[]
[]
[]
[]
[]
[]
[]
[]
[]
[]
[]
[]
[]
[]
[]
[]
[]
[]
[]
[]
[]
[]
[]
[]
[]
[]
[]
[]
[]
[]
[]
[]
[]
[]
[]
[]
[]
[]
[]
[]
[]
[]
[]
[]
[]
[]
[]
[]
[]
[]
[]
[]
[]
[]
[]
[]
[]
[]
[]
[]
[]
[]
[]
[]
[]
[]
[]
[]
[]
[]
[]
[]
[]
[]
[]
[]
[]
[]
[]
[]
[]
[]
[]
[]
[]
[]
[]
[]
[]
[]
[]
[]
[]
[]
[]
[]
[]
[]
[]
[]
[]
[]
[]
[]
[]
[]
[]
[]
[]
[]
[]
[]
[]
[]
[]
[]
[]
[]
[]
[]
[]
[]
[]
[]
[]
[]
[]
[]
[]
[]
[]
[]
[]
[]
[]
[]
[]
[]
[]
[]
[]
[]
[]
[]
[]
[]
[]
[]
[]
[]
[]
[]
[]
[]
[]
[]
[]
[]
[]
[]
[]
[]
[]
[]
[]
[]
[]
[]
[]
[]
[]
[]
[]
[]
[]
[]
[]
[]
[]
[]
[]
[]
[]
[]
[]
[]
[]
[]
[]
[]
[]
[]
[]
[]
[]
[]
[]
[]
[]
[]
[]
[]
[]
[]
[]
[]
[]
[]
[]
[]
[]
[]
[]
[]
[]
[]
[]
[]
[]
[]
[]
[]
[]
[]
[]
[]
[]
[]
[]
[]
[]
[]
[]
[]
[]
[]
[]
[]
[]
[]
[]
[]
[]
[]
[]
[]
[]
[]
[]
[]
[]
[]
[]
[]
[]
[]
[]
[]
[]
[]
[]
[]
[]
[]
[]
[]
[]
[]
[]
[]
[]
[]
[]
[]
[]
[]
[]
[]
[]
[]
[]
[]
[]
[]
[]
[]
[]
[]
[]
[]
[]
[]
[]
[]
[]
[]
[]
[]
[]
[]
[]
[]
[]
[]
[]
[]
[]
[]
[]
[]
[]
[]
[]
[]
[]
[]
[]
[]
[]
[]
[]
[]
[]
[]
[]
[]
[]
[]
[]
[]
[]
[]
[]
[]
[]
[]
[]
[]
[]
[]
[]
[]
[]
[]
[]
[]
[]
[]
[]
[]
[]
[]
[]
[]
[]
[]
[]
[]
[]
[]
[]
[]
[]
[]
[]
[]
[]
[]
[]
[]
[]
[]
[]
[]
[]
[]
[]
[]
[]
[]
[]
[]
[]
[]
[]
[]
[]
[]
[]
[]
[]
[]
[]
[]
[]
[]
[]
[]
[]
[]
[]
[]
[]
[]
[]
[]
[]
[]
[]
[]
[]
[]
[]
[]
[]
[]
[]
[]
[]
[]
[]
[]
[]
[]
[]
[]
[]
[]
[]
[]
[]
[]
[]
[]
[]
[]
[]
[]
[]
[]
[]
[]
[]
[]
[]
[]
[]
[]
[]
[]
[]
[]
[]
[]
[]
[]
[]
[]
[]
[]
[]
[]
[]
[]
[]
[]
[]
[]
[]
[]
[]
[]
[]
[]
[]
[]
[]
[]
[]
[]
[]
[]
[]
[]
[]
[]
[]
[]
[]
[]
[]
[]
[]
[]
[]
[]
[]
[]
[]
[]
[]
[]
[]
[]
[]
[]
[]
[]
[]
[]
[]
[]
[]
[]
[]
[]
[]
[]
[]
[]
[]
[]
[]
[]
[]
[]
[]
[]
[]
[]
[]
[]
[]
[]
[]
[]
[]
[]
[]
[]
[]
[]
[]
[]
[]
[]
[]
[]
[]
[]
[]
[]
[]
[]
[]
[]
[]
[]
[]
[]
[]
[]
[]
[]
[]
[]
[]
[]
[]
[]
[]
[]
[]
[]
[]
[]
[]
[]
[]
[]
[]
[]
[]
[]
[]
[]
[]
[]
[]
[]
[]
[]
[]
[]
[]
[]
[]
[]
[]
[]
[]
[]
[]
[]
[]
[]
[]
[]
[]
[]
[]
[]
[]
[]
[]
[]
[]
[]
[]
[]
[]
[]
[]
[]
[]
[]
[]
[]
[]
[]
[]
[]
[]
[]
[]
[]
[]
[]
[]
[]
[]
[]
[]
[]
[]
[]
[]
[]
[]
[]
[]
[]
[]
[]
[]
[]
[]
[]
[]
[]
[]
[]
[]
[]
[]
[]
[]
[]
[]
[]
[]
[]
[]
[]
[]
[]
[]
[]
[]
[]
[]
[]
[]
[]
[]
[]
[]
[]
[]
[]
[]
[]
[]
[]
[]
[]
[]
[]
[]
[]
[]
[]
[]
[]
[]
[]
[]
[]
[]
[]
[]
[]
[]
[]
[]
[]
[]
[]
[]
[]
[]
[]
[]
[]
[]
[]
[]
[]
[]
[]
[]
[]
[]
[]
[]
[]
[]
[]
[]
[]
[]
[]
[]
[]
[]
[]
[]
[]
[]
[]
[]
[]
[]
[]
[]
[]
[]
[]
[]
[]
[]
[]
[]
[]
[]
[]
[]
[]
[]
[]
[]
[]
[]
[]
[]
[]
[]
[]
[]
[]
[]
[]
[]
[]
[]
[]
[]
[]
[]
[]
[]
[]
[]
[]
[]
[]
[]
[]
[]
[]
[]
[]
[]
[]
[]
[]
[]
[]
[]
[]
[]
[]
[]
[]
[]
[]
[]
[]
[]
[]
[]
[]
[]
[]
[]
[]
[]
[]
[]
[]
[]
[]
[]
[]
[]
[]
[]
[]
[]
[]
[]
[]
[]
[]
[]
[]
[]
[]
[]
[]
[]
[]
[]
[]
[]
[]
[]
[]
[]
[]
[]
[]
[]
[]
[]
[]
[]
[]
[]
[]
[]
[]
[]
[]
[]
[]
[]
[]
[]
[]
[]
[]
[]
[]
[]
[]
[]
[]
[]
[]
[]
[]
[]
[]
[]
[]
[]
[]
[]
[]
[]
[]
[]
[]
[]
[]
[]
[]
[]
[]
[]
[]
[]
[]
[]
[]
[]
[]
[]
[]
[]
[]
[]
[]
[]
[]
[]
[]
[]
[]
[]
[]
[]
[]
[]
[]
[]
[]
[]
[]
[]
[]
[]
[]
[]
[]
[]
[]
[]
[]
[]
[]
[]
[]
[]
[]
[]
[]
[]
[]
[]
[]
[]
[]
[]
[]
[]
[]
[]
[]
[]
[]
[]
[]
[]
[]
[]
[]
[]
[]
[]
[]
[]
[]
[]
[]
[]
[]
[]
[]
[]
[]
[]
[]
[]
[]
[]
[]
[]
[]
[]
[]
[]
[]
[]
[]
[]
[]
[]
[]
[]
[]
[]
[]
[]
[]
[]
[]
[]
[]
[]
[]
[]
[]
[]
[]
[]
[]
[]
[]
[]
[]
[]
[]
[]
[]
[]
[]
[]
[]
[]
[]
[]
[]
[]
[]
[]
[]
[]
[]
[]
[]
[]
[]
[]
[]
[]
[]
[]
[]
[]
[]
[]
[]
[]
[]
[]
[]
[]
[]
[]
[]
[]
[]
[]
[]
[]
[]
[]
[]
[]
[]
[]
[]
[]
[]
[]
[]
[]
[]
[]
[]
[]
[]
[]
[]
[]
[]
[]
[]
[]
[]
[]
[]
[]
[]
[]
[]
[]
[]
[]
[]
[]
[]
[]
[]
[]
[]
[]
[]
[]
[]
[]
[]
[]
[]
[]
[]
[]
[]
[]
[]
[]
[]
[]
[]
[]
[]
[]
[]
[]
[]
[]
[]
[]
[]
[]
[]
[]
[]
[]
[]
[]
[]
[]
[]
[]
[]
[]
[]
[]
[]
[]
[]
[]
[]
[]
[]
[]
[]
[]
[]
[]
[]
[]
[]
[]
[]
[]
[]
[]
[]
[]
[]
[]
[]
[]
[]
[]
[]
[]
[]
[]
[]
[]
[]
[]
[]
[]
[]
[]
[]
[]
[]
[]
[]
[]
[]
[]
[]
[]
[]
[]
[]
[]
[]
[]
[]
[]
[]
[]
[]
[]
[]
[]
[]
[]
[]
[]
[]
[]
[]
[]
[]
[]
[]
[]
[]
[]
[]
[]
[]
[]
[]
[]
[]
[]
[]
[]
[]
[]
[]
[]
[]
[]
[]
[]
[]
[]
[]
[]
[]
[]
[]
[]
[]
[]
[]
[]
[]
[]
[]
[]
[]
[]
[]
[]
[]
[]
[]
[]
[]
[]
[]
[]
[]
[]
[]
[]
[]
[]
[]
[]
[]
[]
[]
[]
[]
[]
[]
[]
[]
[]
[]
[]
[]
[]
[]
[]
[]
[]
[]
[]
[]
[]
[]
[]
[]
[]
[]
[]
[]
[]
[]
[]
[]
[]
[]
[]
[]
[]
[]
[]
[]
[]
[]
[]
[]
[]
[]
[]
[]
[]
[]
[]
[]
[]
[]
[]
[]
[]
[]
[]
[]
[]
[]
[]
[]
[]
[]
[]
[]
[]
[]
[]
[]
[]
[]
[]
[]
[]
[]
[]
[]
[]
[]
[]
[]
[]
[]
[]
[]
[]
[]
[]
[]
[]
[]
[]
[]
[]
[]
[]
[]
[]
[]
[]
[]
[]
[]
[]
[]
[]
[]
[]
[]
[]
[]
[]
[]
[]
[]
[]
[]
[]
[]
[]
[]
[]
[]
[]
[]
[]
[]
[]
[]
[]
[]
[]
[]
[]
[]
[]
[]
[]
[]
[]
[]
[]
[]
[]
[]
[]
[]
[]
[]
[]
[]
[]
[]
[]
[]
[]
[]
[]
[]
[]
[]
[]
[]
[]
[]
[]
[]
[]
[]
[]
[]
[]
[]
[]
[]
[]
[]
[]
[]
[]
[]
[]
[]
[]
[]
[]
[]
[]
[]
[]
[]
[]
[]
[]
[]
[]
[]
[]
[]
[]
[]
[]
[]
[]
[]
[]
[]
[]
[]
[]
[]
[]
[]
[]
[]
[]
[]
[]
[]
[]
[]
[]
[]
[]
[]
[]
[]
[]
[]
[]
[]
[]
[]
[]
[]
[]
[]
[]
[]
[]
[]
[]
[]
[]
[]
[]
[]
[]
[]
[]
[]
[]
[]
[]
[]
[]
[]
[]
[]
[]
[]
[]
[]
[]
[]
[]
[]
[]
[]
[]
[]
[]
[]
[]
[]
[]
[]
[]
[]
[]
[]
[]
[]
[]
[]
[]
[]
[]
[]
[]
[]
[]
[]
[]
[]
[]
[]
[]
[]
[]
[]
[]
[]
[]
[]
[]
[]
[]
[]
[]
[]
[]
[]
[]
[]
[]
[]
[]
[]
[]
[]
[]
[]
[]
[]
[]
[]
[]
[]
[]
[]
[]
[]
[]
[]
[]
[]
[]
[]
[]
[]
[]
[]
[]
[]
[]
[]
[]
[]
[]
[]
[]
[]
[]
[]
[]
[]
[]
[]
[]
[]
[]
[]
[]
[]
[]
[]
[]
[]
[]
[]
[]
[]
[]
[]
[]
[]
[]
[]
[]
[]
[]
[]
[]
[]
[]
[]
[]
[]
[]
[]
[]
[]
[]
[]
[]
[]
[]
[]
[]
[]
[]
[]
[]
[]
[]
[]
[]
[]
[]
[]
[]
[]
[]
[]
[]
[]
[]
[]
[]
[]
[]
[]
[]
[]
[]
[]
[]
[]
[]
[]
[]
[]
[]
[]
[]
[]
[]
[]
[]
[]
[]
[]
[]
[]
[]
[]
[]
[]
[]
[]
[]
[]
[]
[]
[]
[]
[]
[]
[]
[]
[]
[]
[]
[]
[]
[]
[]
[]
[]
[]
[]
[]
[]
[]
[]
[]
[]
[]
[]
[]
[]
[]
[]
[]
[]
[]
[]
[]
[]
[]
[]
[]
[]
[]
[]
[]
[]
[]
[]
[]
[]
[]
[]
[]
[]
[]
[]
[]
[]
[]
[]
[]
[]
[]
[]
[]
[]
[]
[]
[]
[]
[]
[]
[]
[]
[]
[]
[]
[]
[]
[]
[]
[]
[]
[]
[]
[]
[]
[]
[]
[]
[]
[]
[]
[]
[]
[]
[]
[]
[]
[]
[]
[]
[]
[]
[]
[]
[]
[]
[]
[]
[]
[]
[]
[]
[]
[]
[]
[]
[]
[]
[]
[]
[]
[]
[]
[]
[]
[]
[]
[]
[]
[]
[]
[]
[]
[]
[]
[]
[]
[]
[]
[]
[]
[]
[]
[]
[]
[]
[]
[]
[]
[]
[]
[]
[]
[]
[]
[]
[]
[]
[]
[]
[]
[]
[]
[]
[]
[]
[]
[]
[]
[]
[]
[]
[]
[]
[]
[]
[]
[]
[]
[]
[]
[]
[]
[]
[]
[]
[]
[]
[]
[]
[]
[]
[]
[]
[]
[]
[]
[]
[]
[]
[]
[]
[]
[]
[]
[]
[]
[]
[]
[]
[]
[]
[]
[]
[]
[]
[]
[]
[]
[]
[]
[]
[]
[]
[]
[]
[]
[]
[]
[]
[]
[]
[]
[]
[]
[]
[]
[]
[]
[]
[]
[]
[]
[]
[]
[]
[]
[]
[]
[]
[]
[]
[]
[]
[]
[]
[]
[]
[]
[]
[]
[]
[]
[]
[]
[]
[]
[]
[]
[]
[]
[]
[]
[]
[]
[]
[]
[]
[]
[]
[]
[]
[]
[]
[]
[]
[]
[]
[]
[]
[]
[]
[]
[]
[]
[]
[]
[]
[]
[]
[]
[]
[]
[]
[]
[]
[]
[]
[]
[]
[]
[]
[]
[]
[]
[]
[]
[]
[]
[]
[]
[]
[]
[]
[]
[]
[]
[]
[]
[]
[]
[]
[]
[]
[]
[]
[]
[]
[]
[]
[]
[]
[]
[]
[]
[]
[]
[]
[]
[]
[]
[]
[]
[]
[]
[]
[]
[]
[]
[]
[]
[]
[]
[]
[]
[]
[]
[]
[]
[]
[]
[]
[]
[]
[]
[]
[]
[]
[]
[]
[]
[]
[]
[]
[]
[]
[]
[]
[]
[]
[]
["x","x","x","x",null,null,"x"]

{"sheet":"NAO alterar 2","index":4,"n_rows":486,"n_cols":7,"rows_kept":486,"cut":false,"hidden":true,"merged":[]}
[null,"2017-05-20",null,"Sim"]
[null,"2017-05-21",null,"Não"]
[null,"2017-05-22",null,"Aguardando Resultado",null,null,"Atenção: Esta planilha não pode ser alterada"]
[null,"2017-05-23"]
[null,"2017-05-24"]
[null,"2017-05-25"]
[null,"2017-05-26"]
[null,"2017-05-27"]
[null,"2017-05-28"]
[null,"2017-05-29"]
[null,"2017-05-30"]
[null,"2017-05-31"]
[null,"2017-06-01"]
[null,"2017-06-02"]
[null,"2017-06-03"]
[null,"2017-06-04"]
[null,"2017-06-05"]
[null,"2017-06-06"]
[null,"2017-06-07"]
[null,"2017-06-08"]
[null,"2017-06-09"]
[null,"2017-06-10"]
[null,"2017-06-11"]
[null,"2017-06-12"]
[null,"2017-06-13"]
[null,"2017-06-14"]
[null,"2017-06-15"]
[null,"2017-06-16"]
[null,"2017-06-17"]
[null,"2017-06-18"]
[null,"2017-06-19"]
[null,"2017-06-20"]
[null,"2017-06-21"]
[null,"2017-06-22"]
[null,"2017-06-23"]
[null,"2017-06-24"]
[null,"2017-06-25"]
[null,"2017-06-26"]
[null,"2017-06-27"]
[null,"2017-06-28"]
[null,"2017-06-29"]
[null,"2017-06-30"]
[null,"2017-07-01"]
[null,"2017-07-02"]
[null,"2017-07-03"]
[null,"2017-07-04"]
[null,"2017-07-05"]
[null,"2017-07-06"]
[null,"2017-07-07"]
[null,"2017-07-08"]
[null,"2017-07-09"]
[null,"2017-07-10"]
[null,"2017-07-11"]
[null,"2017-07-12"]
[null,"2017-07-13"]
[null,"2017-07-14"]
[null,"2017-07-15"]
[null,"2017-07-16"]
[null,"2017-07-17"]
[null,"2017-07-18"]
[null,"2017-07-19"]
[null,"2017-07-20"]
[null,"2017-07-21"]
[null,"2017-07-22"]
[null,"2017-07-23"]
[null,"2017-07-24"]
[null,"2017-07-25"]
[null,"2017-07-26"]
[null,"2017-07-27"]
[null,"2017-07-28"]
[null,"2017-07-29"]
[null,"2017-07-30"]
[null,"2017-07-31"]
[null,"2017-08-01"]
[null,"2017-08-02"]
[null,"2017-08-03"]
[null,"2017-08-04"]
[null,"2017-08-05"]
[null,"2017-08-06"]
[null,"2017-08-07"]
[null,"2017-08-08"]
[null,"2017-08-09"]
[null,"2017-08-10"]
[null,"2017-08-11"]
[null,"2017-08-12"]
[null,"2017-08-13"]
[null,"2017-08-14"]
[null,"2017-08-15"]
[null,"2017-08-16"]
[null,"2017-08-17"]
[null,"2017-08-18"]
[null,"2017-08-19"]
["Sim","2017-08-20"]
["Não","2017-08-21"]
[null,"2017-08-22"]
[null,"2017-08-23"]
[null,"2017-08-24"]
[null,"2017-08-25"]
[null,"2017-08-26"]
[null,"2017-08-27"]
[null,"2017-08-28"]
[null,"2017-08-29"]
[null,"2017-08-30"]
[null,"2017-08-31"]
[null,"2017-09-01"]
[null,"2017-09-02"]
[null,"2017-09-03"]
[null,"2017-09-04"]
[null,"2017-09-05"]
[null,"2017-09-06"]
[null,"2017-09-07"]
[null,"2017-09-08"]
[null,"2017-09-09"]
[null,"2017-09-10"]
[null,"2017-09-11"]
[null,"2017-09-12"]
[null,"2017-09-13"]
[null,"2017-09-14"]
[null,"2017-09-15"]
[null,"2017-09-16"]
[null,"2017-09-17"]
[null,"2017-09-18"]
[null,"2017-09-19"]
[null,"2017-09-20"]
[null,"2017-09-21"]
[null,"2017-09-22"]
[null,"2017-09-23"]
[null,"2017-09-24"]
[null,"2017-09-25"]
[null,"2017-09-26"]
[null,"2017-09-27"]
[null,"2017-09-28"]
[null,"2017-09-29"]
[null,"2017-09-30"]
[null,"2017-10-01"]
[null,"2017-10-02"]
[null,"2017-10-03"]
[null,"2017-10-04"]
[null,"2017-10-05"]
[null,"2017-10-06"]
[null,"2017-10-07"]
[null,"2017-10-08"]
[null,"2017-10-09"]
[null,"2017-10-10"]
[null,"2017-10-11"]
[null,"2017-10-12"]
[null,"2017-10-13"]
[null,"2017-10-14"]
[null,"2017-10-15"]
[null,"2017-10-16"]
[null,"2017-10-17"]
[null,"2017-10-18"]
[null,"2017-10-19"]
[null,"2017-10-20"]
[null,"2017-10-21"]
[null,"2017-10-22"]
[null,"2017-10-23"]
[null,"2017-10-24"]
[null,"2017-10-25"]
[null,"2017-10-26"]
[null,"2017-10-27"]
[null,"2017-10-28"]
[null,"2017-10-29"]
[null,"2017-10-30"]
[null,"2017-10-31"]
[null,"2017-11-01"]
[null,"2017-11-02"]
[null,"2017-11-03"]
[null,"2017-11-04"]
[null,"2017-11-05"]
[null,"2017-11-06"]
[null,"2017-11-07"]
[null,"2017-11-08"]
[null,"2017-11-09"]
[null,"2017-11-10"]
[null,"2017-11-11"]
[null,"2017-11-12"]
[null,"2017-11-13"]
[null,"2017-11-14"]
[null,"2017-11-15"]
[null,"2017-11-16"]
[null,"2017-11-17"]
[null,"2017-11-18"]
[null,"2017-11-19"]
[null,"2017-11-20"]
[null,"2017-11-21"]
[null,"2017-11-22"]
[null,"2017-11-23"]
[null,"2017-11-24"]
[null,"2017-11-25"]
[null,"2017-11-26"]
[null,"2017-11-27"]
[null,"2017-11-28"]
[null,"2017-11-29"]
[null,"2017-11-30"]
[null,"2017-12-01"]
[null,"2017-12-02"]
[null,"2017-12-03"]
[null,"2017-12-04"]
[null,"2017-12-05"]
[null,"2017-12-06"]
[null,"2017-12-07"]
[null,"2017-12-08"]
[null,"2017-12-09"]
[null,"2017-12-10"]
[null,"2017-12-11"]
[null,"2017-12-12"]
[null,"2017-12-13"]
[null,"2017-12-14"]
[null,"2017-12-15"]
[null,"2017-12-16"]
[null,"2017-12-17"]
[null,"2017-12-18"]
[null,"2017-12-19"]
[null,"2017-12-20"]
[null,"2017-12-21"]
[null,"2017-12-22"]
[null,"2017-12-23"]
[null,"2017-12-24"]
[null,"2017-12-25"]
[null,"2017-12-26"]
[null,"2017-12-27"]
[null,"2017-12-28"]
[null,"2017-12-29"]
[null,"2017-12-30"]
[null,"2017-12-31"]
[null,"2017-12-03"]
[null,"2017-12-04"]
[null,"2017-12-05"]
[null,"2017-12-06"]
[null,"2017-12-07"]
[null,"2017-12-08"]
[null,"2017-12-09"]
[null,"2017-12-10"]
[null,"2017-12-11"]
[null,"2017-12-12"]
[null,"2017-12-13"]
[null,"2017-12-14"]
[null,"2017-12-15"]
[null,"2017-12-16"]
[null,"2017-12-17"]
[null,"2017-12-18"]
[null,"2017-12-19"]
[null,"2017-12-20"]
[null,"2017-12-21"]
[null,"2017-12-22"]
[null,"2017-12-23"]
[null,"2017-12-24"]
[null,"2017-12-25"]
[null,"2017-12-26"]
[null,"2017-12-27"]
[null,"2017-12-28"]
[null,"2017-12-29"]
[null,"2017-12-30"]
[null,"2017-12-31"]
[null,"2017-06-13"]
[null,"2017-06-14"]
[null,"2017-06-15"]
[null,"2017-06-16"]
[null,"2017-06-17"]
[null,"2017-06-18"]
[null,"2017-06-19"]
[null,"2017-06-20"]
[null,"2017-06-21"]
[null,"2017-06-22"]
[null,"2017-06-23"]
[null,"2017-06-24"]
[null,"2017-06-25"]
[null,"2017-06-26"]
[null,"2017-06-27"]
[null,"2017-06-28"]
[null,"2017-06-29"]
[null,"2017-06-30"]
[null,"2017-07-01"]
[null,"2017-07-02"]
[null,"2017-07-03"]
[null,"2017-07-04"]
[null,"2017-07-05"]
[null,"2017-07-06"]
[null,"2017-07-07"]
[null,"2017-07-08"]
[null,"2017-07-09"]
[null,"2017-07-10"]
[null,"2017-07-11"]
[null,"2017-07-12"]
[null,"2017-07-13"]
[null,"2017-07-14"]
[null,"2017-07-15"]
[null,"2017-07-16"]
[null,"2017-07-17"]
[null,"2017-07-18"]
[null,"2017-07-19"]
[null,"2017-07-20"]
[null,"2017-07-21"]
[null,"2017-07-22"]
[null,"2017-07-23"]
[null,"2017-07-24"]
[null,"2017-07-25"]
[null,"2017-07-26"]
[null,"2017-07-27"]
[null,"2017-07-28"]
[null,"2017-07-29"]
[null,"2017-07-30"]
[null,"2017-07-31"]
[null,"2017-08-01"]
[null,"2017-08-02"]
[null,"2017-08-03"]
[null,"2017-08-04"]
[null,"2017-08-05"]
[null,"2017-08-06"]
[null,"2017-08-07"]
[null,"2017-08-08"]
[null,"2017-08-09"]
[null,"2017-08-10"]
[null,"2017-08-11"]
[null,"2017-08-12"]
[null,"2017-08-13"]
[null,"2017-08-14"]
[null,"2017-08-15"]
[null,"2017-08-16"]
[null,"2017-08-17"]
[null,"2017-08-18"]
[null,"2017-08-19"]
[null,"2017-08-20"]
[null,"2017-08-21"]
[null,"2017-08-22"]
[null,"2017-08-23"]
[null,"2017-08-24"]
[null,"2017-08-25"]
[null,"2017-08-26"]
[null,"2017-08-27"]
[null,"2017-08-28"]
[null,"2017-08-29"]
[null,"2017-08-30"]
[null,"2017-08-31"]
[null,"2017-09-01"]
[null,"2017-09-02"]
[null,"2017-09-03"]
[null,"2017-09-04"]
[null,"2017-09-05"]
[null,"2017-09-06"]
[null,"2017-09-07"]
[null,"2017-09-08"]
[null,"2017-09-09"]
[null,"2017-09-10"]
[null,"2017-09-11"]
[null,"2017-09-12"]
[null,"2017-09-13"]
[null,"2017-09-14"]
[null,"2017-09-15"]
[null,"2017-09-16"]
[null,"2017-09-17"]
[null,"2017-09-18"]
[null,"2017-09-19"]
[null,"2017-09-20"]
[null,"2017-09-21"]
[null,"2017-09-22"]
[null,"2017-09-23"]
[null,"2017-09-24"]
[null,"2017-09-25"]
[null,"2017-09-26"]
[null,"2017-09-27"]
[null,"2017-09-28"]
[null,"2017-09-29"]
[null,"2017-09-30"]
[null,"2017-10-01"]
[null,"2017-10-02"]
[null,"2017-10-03"]
[null,"2017-10-04"]
[null,"2017-10-05"]
[null,"2017-10-06"]
[null,"2017-10-07"]
[null,"2017-10-08"]
[null,"2017-10-09"]
[null,"2017-10-10"]
[null,"2017-10-11"]
[null,"2017-10-12"]
[null,"2017-10-13"]
[null,"2017-10-14"]
[null,"2017-10-15"]
[null,"2017-10-16"]
[null,"2017-10-17"]
[null,"2017-10-18"]
[null,"2017-10-19"]
[null,"2017-10-20"]
[null,"2017-10-21"]
[null,"2017-10-22"]
[null,"2017-10-23"]
[null,"2017-10-24"]
[null,"2017-10-25"]
[null,"2017-10-26"]
[null,"2017-10-27"]
[null,"2017-10-28"]
[null,"2017-10-29"]
[null,"2017-10-30"]
[null,"2017-10-31"]
[null,"2017-11-01"]
[null,"2017-11-02"]
[null,"2017-11-03"]
[null,"2017-11-04"]
[null,"2017-11-05"]
[null,"2017-11-06"]
[null,"2017-11-07"]
[null,"2017-11-08"]
[null,"2017-11-09"]
[null,"2017-11-10"]
[null,"2017-11-11"]
[null,"2017-11-12"]
[null,"2017-11-13"]
[null,"2017-11-14"]
[null,"2017-11-15"]
[null,"2017-11-16"]
[null,"2017-11-17"]
[null,"2017-11-18"]
[null,"2017-11-19"]
[null,"2017-11-20"]
[null,"2017-11-21"]
[null,"2017-11-22"]
[null,"2017-11-23"]
[null,"2017-11-24"]
[null,"2017-11-25"]
[null,"2017-11-26"]
[null,"2017-11-27"]
[null,"2017-11-28"]
[null,"2017-11-29"]
[null,"2017-11-30"]
[null,"2017-12-01"]
[null,"2017-12-02"]
[null,"2017-12-03"]
[null,"2017-12-04"]
[null,"2017-12-05"]
[null,"2017-12-06"]
[null,"2017-12-07"]
[null,"2017-12-08"]
[null,"2017-12-09"]
[null,"2017-12-10"]
[null,"2017-12-11"]
[null,"2017-12-12"]
[null,"2017-12-13"]
[null,"2017-12-14"]
[null,"2017-12-15"]
[null,"2017-12-16"]
[null,"2017-12-17"]
[null,"2017-12-18"]
[null,"2017-12-19"]
[null,"2017-12-20"]
[null,"2017-12-21"]
[null,"2017-12-22"]
[null,"2017-12-23"]
[null,"2017-12-24"]
[null,"2017-12-25"]
[null,"2017-12-26"]
[null,"2017-12-27"]
[null,"2017-12-28"]
[null,"2017-12-29"]
[null,"2017-12-30"]
[null,"2017-12-31"]
[null,"2017-12-03"]
[null,"2017-12-04"]
[null,"2017-12-05"]
[null,"2017-12-06"]
[null,"2017-12-07"]
[null,"2017-12-08"]
[null,"2017-12-09"]
[null,"2017-12-10"]
[null,"2017-12-11"]
[null,"2017-12-12"]
[null,"2017-12-13"]
[null,"2017-12-14"]
[null,"2017-12-15"]
[null,"2017-12-16"]
[null,"2017-12-17"]
[null,"2017-12-18"]
[null,"2017-12-19"]
[null,"2017-12-20"]
[null,"2017-12-21"]
[null,"2017-12-22"]
[null,"2017-12-23"]
[null,"2017-12-24"]
[null,"2017-12-25"]
[null,"2017-12-26"]
[null,"2017-12-27"]
[null,"2017-12-28"]
[null,"2017-12-29"]
[null,"2017-12-30"]
[null,"2017-12-31"]

{"sheet":"Estatistica","index":5,"n_rows":12,"n_cols":15,"rows_kept":12,"cut":false,"hidden":false,"merged":[[0,0,0,14],[7,0,7,14]]}
["Cirurgia de Catarata"]
["Mês","jan","fev","mar","abr","mai","jun","jul","ago","set","out","nov","dez","Média","Total "]
["Proced. Realizados",{"$f":"'Plan_9-Proced Oftalmológicos'!$B10","v":0},{"$f":"'Plan_9-Proced Oftalmológicos'!$B15","v":0},{"$f":"'Plan_9-Proced Oftalmológicos'!$B20","v":0},{"$f":"'Plan_9-Proced Oftalmológicos'!$B25","v":0},{"$f":"'Plan_9-Proced Oftalmológicos'!$B30","v":0},{"$f":"'Plan_9-Proced Oftalmológicos'!$B35","v":0},{"$f":"'Plan_9-Proced Oftalmológicos'!$B40","v":0},{"$f":"'Plan_9-Proced Oftalmológicos'!$B45","v":0},{"$f":"'Plan_9-Proced Oftalmológicos'!$B50","v":0},{"$f":"'Plan_9-Proced Oftalmológicos'!$B55","v":0},{"$f":"'Plan_9-Proced Oftalmológicos'!$B60","v":0},{"$f":"'Plan_9-Proced Oftalmológicos'!$B65","v":0},{"$f":"AVERAGE(B3:M3)","v":0},{"$f":"SUM(B3:M3)","v":0}]
["Casos Endoftalmite",{"$f":"'Plan_9-Proced Oftalmológicos'!$C10","v":0},{"$f":"'Plan_9-Proced Oftalmológicos'!$C15","v":0},{"$f":"'Plan_9-Proced Oftalmológicos'!$C20","v":0},{"$f":"'Plan_9-Proced Oftalmológicos'!$C25","v":0},{"$f":"'Plan_9-Proced Oftalmológicos'!$C30","v":0},{"$f":"'Plan_9-Proced Oftalmológicos'!$C3510","v":0},{"$f":"'Plan_9-Proced Oftalmológicos'!$C40","v":0},{"$f":"'Plan_9-Proced Oftalmológicos'!C45","v":0},{"$f":"'Plan_9-Proced Oftalmológicos'!$C50","v":0},{"$f":"'Plan_9-Proced Oftalmológicos'!$C55","v":0},{"$f":"'Plan_9-Proced Oftalmológicos'!$C60","v":0},{"$f":"'Plan_9-Proced Oftalmológicos'!$C65","v":0},{"$f":"AVERAGE(B4:M4)","v":0},{"$f":"SUM(B4:M4)","v":0}]
["Taxa Incidência",{"$f":"B4/B3*100","v":{"$error":"#DIV/0!"}},{"$f":"C4/C3*100","v":{"$error":"#DIV/0!"}},{"$error":"#DIV/0!"},{"$error":"#DIV/0!"},{"$error":"#DIV/0!"},{"$error":"#DIV/0!"},{"$error":"#DIV/0!"},{"$error":"#DIV/0!"},{"$error":"#DIV/0!"},{"$error":"#DIV/0!"},{"$error":"#DIV/0!"},{"$error":"#DIV/0!"}]
[]
[]
["Injeção Intravítreo"]
["Mês","jan","fev","mar","abr","mai","jun","jul","ago","set","out","nov","dez","Média","Total "]
["Proced. Realizados",{"$f":"'Plan_9-Proced Oftalmológicos'!$B11","v":0},{"$f":"'Plan_9-Proced Oftalmológicos'!$B16","v":0},{"$f":"'Plan_9-Proced Oftalmológicos'!$B21","v":0},{"$f":"'Plan_9-Proced Oftalmológicos'!$B26","v":0},{"$f":"'Plan_9-Proced Oftalmológicos'!$B31","v":0},{"$f":"'Plan_9-Proced Oftalmológicos'!$B36","v":0},{"$f":"'Plan_9-Proced Oftalmológicos'!$B41","v":0},{"$f":"'Plan_9-Proced Oftalmológicos'!$B46","v":0},{"$f":"'Plan_9-Proced Oftalmológicos'!$B51","v":0},{"$f":"'Plan_9-Proced Oftalmológicos'!$B56","v":0},{"$f":"'Plan_9-Proced Oftalmológicos'!$B61","v":0},{"$f":"'Plan_9-Proced Oftalmológicos'!$B66","v":0},{"$f":"AVERAGE(B10:M10)","v":0},{"$f":"SUM(B10:M10)","v":0}]
["Casos Endoftalmite",{"$f":"'Plan_9-Proced Oftalmológicos'!$C11","v":0},{"$f":"'Plan_9-Proced Oftalmológicos'!$C16","v":0},{"$f":"'Plan_9-Proced Oftalmológicos'!$C21","v":0},{"$f":"'Plan_9-Proced Oftalmológicos'!$C26","v":0},{"$f":"'Plan_9-Proced Oftalmológicos'!$C31","v":0},{"$f":"'Plan_9-Proced Oftalmológicos'!$C36","v":0},{"$f":"'Plan_9-Proced Oftalmológicos'!$C41","v":0},{"$f":"'Plan_9-Proced Oftalmológicos'!$C46","v":0},{"$f":"'Plan_9-Proced Oftalmológicos'!$C51","v":0},{"$f":"'Plan_9-Proced Oftalmológicos'!$C56","v":0},{"$f":"'Plan_9-Proced Oftalmológicos'!$C61","v":0},{"$f":"'Plan_9-Proced Oftalmológicos'!$C66","v":0},{"$f":"AVERAGE(B11:M11)","v":0},{"$f":"SUM(B11:M11)","v":0}]
["Taxa Incidência",{"$f":"B11/B10*100","v":{"$error":"#DIV/0!"}},{"$f":"C11/C10*100","v":{"$error":"#DIV/0!"}},{"$error":"#DIV/0!"},{"$error":"#DIV/0!"},{"$error":"#DIV/0!"},{"$error":"#DIV/0!"},{"$error":"#DIV/0!"},{"$error":"#DIV/0!"},{"$error":"#DIV/0!"},{"$error":"#DIV/0!"},{"$error":"#DIV/0!"},{"$error":"#DIV/0!"}]